{"text_format":"1","workbook":"xlsx","n_sheets":2,"sheets":["StreetLightingPole","Lookups"],"not_rendered":{"charts":0,"images":0,"macros":0,"external_links":0,"defined_names":44,"comments":0,"pivot_tables":0},"unopened":[],"bounds":{"document_bytes":16777216,"sheet_cells":100000,"rows_first":2000,"rows_last":500,"rows_between":2000,"halvings":0,"cell_chars":16384,"cell_head_chars":4096},"cells_cut":0,"cells_raw":0,"read":"whole","date_system":"1900"}

{"sheet":"StreetLightingPole","index":0,"n_rows":100,"n_cols":57,"rows_kept":100,"cut":false,"hidden":false,"merged":[]}
["15f221f1-c15e-4d8e-a679-81fade5c4405_road_id","sh-rs-d","15f221f1-c15e-4d8e-a679-81fade5c4404_start_m","db2483f2-1342-4a33-ae12-e8da6cc9a4c3_pole_material_desc","db2483f2-1342-4a33-ae12-e8da6cc9a4c3_pole_material","fbd2762d-c200-477d-aa70-f3a2b4266acf_pole_shape_desc","fbd2762d-c200-477d-aa70-f3a2b4266acf_pole_shape","c7a533b0-7dd9-4271-892c-096a39716e16_pole_make_desc","c7a533b0-7dd9-4271-892c-096a39716e16_pole_make","433817f3-1a41-4840-869f-17456ed6867c_pole_mount_desc","433817f3-1a41-4840-869f-17456ed6867c_pole_mount","5885178f-5f78-41b5-b1a9-d1c890e5d5ff_pole_attach_desc","5885178f-5f78-41b5-b1a9-d1c890e5d5ff_pole_attach","ab01a8f3-f998-4290-be5f-b84fb1dd62d8_pole_purpose_desc","ab01a8f3-f998-4290-be5f-b84fb1dd62d8_pole_purpose","a3e95f9a-14ac-4c76-ad67-1c2e78d27dcc_coating_desc","a3e95f9a-14ac-4c76-ad67-1c2e78d27dcc_coating","ba568c51-877e-4755-b170-e4b692fc2357_pole_in_use_desc","ba568c51-877e-4755-b170-e4b692fc2357_pole_in_use","02b38309-e713-4a10-b522-7c50a96d1296_pole_control_desc","02b38309-e713-4a10-b522-7c50a96d1296_pole_control","cd1390e1-a81b-44d9-b438-d18f07f2090a_power_company_desc","cd1390e1-a81b-44d9-b438-d18f07f2090a_power_company","68c9e30a-37cc-4bb8-b6c8-1e892a1eb0ab_pole_no","0270fe93-05ff-4391-b546-9a5d4e9c0016_post_id","cd5a33a3-3ebc-42c8-9678-64935f4b851f_offset_side_desc","cd5a33a3-3ebc-42c8-9678-64935f4b851f_offset_side","0079a08b-bfbf-42cc-8549-c7e471af4f9a_offset","62ea590d-2cc6-42ff-9b59-dc7f541a86f7_install_date","fa6b2423-fe11-4698-b8ed-d33775976cb1_in_replace_reason_desc","fa6b2423-fe11-4698-b8ed-d33775976cb1_in_replace_reason","f00e0a16-a657-40c2-adde-7bf32fad4e83_pole_status_desc","f00e0a16-a657-40c2-adde-7bf32fad4e83_pole_status","4e0532fb-ca3d-4231-bf3c-c5d1b68b0656_date_tightened","c98f7688-a9a2-42f7-a755-a00c9fa28096_owner_desc","c98f7688-a9a2-42f7-a755-a00c9fa28096_owner","7f6e8a02-451d-4c17-a43d-3e3071ca78a8_northing","89303d96-c1c4-476a-9015-0aaeb58faf64_easting","70bd4273-e300-4649-851f-774c5da4647f_gps_date","3ff1b744-aaea-4187-b3be-de50b63832d0_gps_method_id_desc","3ff1b744-aaea-4187-b3be-de50b63832d0_gps_method_id","b760e367-a82f-476b-9f41-1899716ded0a_risk_likelihood_desc","b760e367-a82f-476b-9f41-1899716ded0a_risk_likelihood","9d0551ee-eb6c-43b7-ad9a-b6203b10cdae_risk_consequence_desc","9d0551ee-eb6c-43b7-ad9a-b6203b10cdae_risk_consequence","dccb247d-2ef8-4f3f-a400-6750787082ef_risk_desc","dccb247d-2ef8-4f3f-a400-6750787082ef_risk","0e86f836-cfc2-4f07-a500-3f56185f488c_rul_reset_desc","0e86f836-cfc2-4f07-a500-3f56185f488c_rul_reset","a022ea8c-47b9-4f27-93d4-f945f822400d_use_default_rc_desc","a022ea8c-47b9-4f27-93d4-f945f822400d_use_default_rc","bf6a0e6c-ad58-4146-a7a7-fa8252ed67c7_condition_desc","bf6a0e6c-ad58-4146-a7a7-fa8252ed67c7_condition","56db20f3-0b04-4a1d-8800-7bd096331041_condition_date","fea6122c-d110-476f-8606-620e577275db_collect_name_desc","fea6122c-d110-476f-8606-620e577275db_collect_name","f540a41e-338a-4ddd-aa40-1e6afd175c0c_notes"]
["road_id","sh-rs-d","start_m","pole_material_desc","pole_material","pole_shape_desc","pole_shape","pole_make_desc","pole_make","pole_mount_desc","pole_mount","pole_attach_desc","pole_attach","pole_purpose_desc","pole_purpose","coating_desc","coating","pole_in_use_desc","pole_in_use","pole_control_desc","pole_control","power_company_desc","power_company","pole_no","post_id","offset_side_desc","offset_side","offset","install_date","in_replace_reason_desc","in_replace_reason","pole_status_desc","pole_status","date_tightened","owner_desc","owner","northing","easting","gps_date","gps_method_id_desc","gps_method_id","risk_likelihood_desc","risk_likelihood","risk_consequence_desc","risk_consequence","risk_desc","risk","rul_reset_desc","rul_reset","use_default_rc_desc","use_default_rc","condition_desc","condition","condition_date","collect_name_desc","collect_name","notes"]
["Road ID","SH-RS-D (e.g. 016-0000-B) letter must be uppercase and include leading 0","Start (m)","Material Desc","Material","Shape Desc","Shape","Make Desc","Make","Mount Desc","Mount","Attachment Desc","Attachment","Purpose Desc","Purpose","Coating Desc","Coating","In Use Desc","In Use","Control Desc","Control","Power Company Desc","Power Company","Pole Number","Post ID","Side Desc","Side","Offset","Install Date (dd/mm/yyy) Must include leading 0","Install Reason Desc","Install Reason","Status Desc","Status","Date Tightened (dd/mm/yyyy) Must include leading 0","Owner Desc","Owner","Northing","Easting","GPS Date (dd/mm/yyyy) Must include leading 0","GPS Method Desc","GPS Method","Likelihood Desc","Likelihood","Consequence Desc","Consequence","Risk Desc","Risk","RUL Reset Desc","RUL Reset","Use Default Desc","Use Default","Condition Desc","Condition","Condition Date (dd/mm/yyyy) Must include leading 0","Organisation Desc","Organisation","Notes"]
[{"$f":"_xlfn.FILTERXML(_xlfn.WEBSERVICE(\"https://nds-beta.mobileroad.org/xy_sh?rp=\"&B4&\"/\"&C4&\"&xml=true\"),\"/lrms/id_road\")","v":"null"},null,null,null,{"$f":"IF(D4=\"\",\"\",VLOOKUP(D4,Material[],2,FALSE))","v":""},null,{"$f":"IF(F4=\"\",\"\",VLOOKUP(F4,shape[],2,FALSE))","v":""},null,{"$f":"IF(H4=\"\",\"\",VLOOKUP(H4,make[],2,FALSE))","v":""},null,{"$f":"IF(J4=\"\",\"\",VLOOKUP(J4,mounting_type[],2,FALSE))","v":""},null,{"$f":"IF(L4=\"\",\"\",VLOOKUP(L4,attachment[],2,FALSE))","v":""},null,{"$f":"IF(N4=\"\",\"\",VLOOKUP(N4,purpose[],2,FALSE))","v":""},null,{"$f":"IF(P4=\"\",\"\",VLOOKUP(P4,coating[],2,FALSE))","v":""},null,{"$f":"IF(R4=\"\",\"\",VLOOKUP(R4,pole_in_use[],2,FALSE))","v":""},null,{"$f":"IF(T4=\"\",\"\",VLOOKUP(T4,pole_control[],2,FALSE))","v":""},null,{"$f":"IF(V4=\"\",\"\",VLOOKUP(V4,power_company[],2,FALSE))","v":""},null,null,null,{"$f":"IF(Z4=\"\",\"\",VLOOKUP(Z4,side[],2,FALSE))","v":""},null,null,null,{"$f":"IF(AD4=\"\",\"\",VLOOKUP(AD4,Install_reason[],2,FALSE))","v":""},null,{"$f":"IF(AF4=\"\",\"\",VLOOKUP(AF4,status[],2,FALSE))","v":""},null,null,{"$f":"IF(AI4=\"\",\"\",VLOOKUP(AI4,asset_owner[],2,FALSE))","v":""},null,null,null,null,{"$f":"IF(AN4=\"\",\"\",VLOOKUP(AN4,gps_method[],2,FALSE))","v":""},null,{"$f":"IF(AP4=\"\",\"\",VLOOKUP(AP4,risk_likelihood[],2,FALSE))","v":""},null,{"$f":"IF(AR4=\"\",\"\",VLOOKUP(AR4,risk_consequence[],2,FALSE))","v":""},null,{"$f":"IF(AT4=\"\",\"\",VLOOKUP(AT4,risk[],2,FALSE))","v":""},null,{"$f":"IF(AV4=\"\",\"\",VLOOKUP(AV4,rul_reset[],2,FALSE))","v":""},null,{"$f":"IF(AX4=\"\",\"\",VLOOKUP(AX4,use_default_rc[],2,FALSE))","v":""},null,{"$f":"IF(AZ4=\"\",\"\",VLOOKUP(AZ4,condition[],2,FALSE))","v":""},null,null,{"$f":"IF(BC4=\"\",\"\",VLOOKUP(BC4,Organisation[],2,FALSE))","v":""}]
[{"$f":"_xlfn.FILTERXML(_xlfn.WEBSERVICE(\"https://nds-beta.mobileroad.org/xy_sh?rp=\"&B5&\"/\"&C5&\"&xml=true\"),\"/lrms/id_road\")","v":"null"},null,null,null,{"$f":"IF(D5=\"\",\"\",VLOOKUP(D5,Material[],2,FALSE))","v":""},null,{"$f":"IF(F5=\"\",\"\",VLOOKUP(F5,shape[],2,FALSE))","v":""},null,{"$f":"IF(H5=\"\",\"\",VLOOKUP(H5,make[],2,FALSE))","v":""},null,{"$f":"IF(J5=\"\",\"\",VLOOKUP(J5,mounting_type[],2,FALSE))","v":""},null,{"$f":"IF(L5=\"\",\"\",VLOOKUP(L5,attachment[],2,FALSE))","v":""},null,{"$f":"IF(N5=\"\",\"\",VLOOKUP(N5,purpose[],2,FALSE))","v":""},null,{"$f":"IF(P5=\"\",\"\",VLOOKUP(P5,coating[],2,FALSE))","v":""},null,{"$f":"IF(R5=\"\",\"\",VLOOKUP(R5,pole_in_use[],2,FALSE))","v":""},null,{"$f":"IF(T5=\"\",\"\",VLOOKUP(T5,pole_control[],2,FALSE))","v":""},null,{"$f":"IF(V5=\"\",\"\",VLOOKUP(V5,power_company[],2,FALSE))","v":""},null,null,null,{"$f":"IF(Z5=\"\",\"\",VLOOKUP(Z5,side[],2,FALSE))","v":""},null,null,null,{"$f":"IF(AD5=\"\",\"\",VLOOKUP(AD5,Install_reason[],2,FALSE))","v":""},null,{"$f":"IF(AF5=\"\",\"\",VLOOKUP(AF5,status[],2,FALSE))","v":""},null,null,{"$f":"IF(AI5=\"\",\"\",VLOOKUP(AI5,asset_owner[],2,FALSE))","v":""},null,null,null,null,{"$f":"IF(AN5=\"\",\"\",VLOOKUP(AN5,gps_method[],2,FALSE))","v":""},null,{"$f":"IF(AP5=\"\",\"\",VLOOKUP(AP5,risk_likelihood[],2,FALSE))","v":""},null,{"$f":"IF(AR5=\"\",\"\",VLOOKUP(AR5,risk_consequence[],2,FALSE))","v":""},null,{"$f":"IF(AT5=\"\",\"\",VLOOKUP(AT5,risk[],2,FALSE))","v":""},null,{"$f":"IF(AV5=\"\",\"\",VLOOKUP(AV5,rul_reset[],2,FALSE))","v":""},null,{"$f":"IF(AX5=\"\",\"\",VLOOKUP(AX5,use_default_rc[],2,FALSE))","v":""},null,{"$f":"IF(AZ5=\"\",\"\",VLOOKUP(AZ5,condition[],2,FALSE))","v":""},null,null,{"$f":"IF(BC5=\"\",\"\",VLOOKUP(BC5,Organisation[],2,FALSE))","v":""}]
["null",null,null,null,{"$f":"IF(D6=\"\",\"\",VLOOKUP(D6,Material[],2,FALSE))","v":""},null,{"$f":"IF(F6=\"\",\"\",VLOOKUP(F6,shape[],2,FALSE))","v":""},null,{"$f":"IF(H6=\"\",\"\",VLOOKUP(H6,make[],2,FALSE))","v":""},null,{"$f":"IF(J6=\"\",\"\",VLOOKUP(J6,mounting_type[],2,FALSE))","v":""},null,{"$f":"IF(L6=\"\",\"\",VLOOKUP(L6,attachment[],2,FALSE))","v":""},null,{"$f":"IF(N6=\"\",\"\",VLOOKUP(N6,purpose[],2,FALSE))","v":""},null,{"$f":"IF(P6=\"\",\"\",VLOOKUP(P6,coating[],2,FALSE))","v":""},null,{"$f":"IF(R6=\"\",\"\",VLOOKUP(R6,pole_in_use[],2,FALSE))","v":""},null,{"$f":"IF(T6=\"\",\"\",VLOOKUP(T6,pole_control[],2,FALSE))","v":""},null,{"$f":"IF(V6=\"\",\"\",VLOOKUP(V6,power_company[],2,FALSE))","v":""},null,null,null,{"$f":"IF(Z6=\"\",\"\",VLOOKUP(Z6,side[],2,FALSE))","v":""},null,null,null,{"$f":"IF(AD6=\"\",\"\",VLOOKUP(AD6,Install_reason[],2,FALSE))","v":""},null,{"$f":"IF(AF6=\"\",\"\",VLOOKUP(AF6,status[],2,FALSE))","v":""},null,null,{"$f":"IF(AI6=\"\",\"\",VLOOKUP(AI6,asset_owner[],2,FALSE))","v":""},null,null,null,null,{"$f":"IF(AN6=\"\",\"\",VLOOKUP(AN6,gps_method[],2,FALSE))","v":""},null,{"$f":"IF(AP6=\"\",\"\",VLOOKUP(AP6,risk_likelihood[],2,FALSE))","v":""},null,{"$f":"IF(AR6=\"\",\"\",VLOOKUP(AR6,risk_consequence[],2,FALSE))","v":""},null,{"$f":"IF(AT6=\"\",\"\",VLOOKUP(AT6,risk[],2,FALSE))","v":""},null,{"$f":"IF(AV6=\"\",\"\",VLOOKUP(AV6,rul_reset[],2,FALSE))","v":""},null,{"$f":"IF(AX6=\"\",\"\",VLOOKUP(AX6,use_default_rc[],2,FALSE))","v":""},null,{"$f":"IF(AZ6=\"\",\"\",VLOOKUP(AZ6,condition[],2,FALSE))","v":""},null,null,{"$f":"IF(BC6=\"\",\"\",VLOOKUP(BC6,Organisation[],2,FALSE))","v":""}]
["null",null,null,null,{"$f":"IF(D7=\"\",\"\",VLOOKUP(D7,Material[],2,FALSE))","v":""},null,{"$f":"IF(F7=\"\",\"\",VLOOKUP(F7,shape[],2,FALSE))","v":""},null,{"$f":"IF(H7=\"\",\"\",VLOOKUP(H7,make[],2,FALSE))","v":""},null,{"$f":"IF(J7=\"\",\"\",VLOOKUP(J7,mounting_type[],2,FALSE))","v":""},null,{"$f":"IF(L7=\"\",\"\",VLOOKUP(L7,attachment[],2,FALSE))","v":""},null,{"$f":"IF(N7=\"\",\"\",VLOOKUP(N7,purpose[],2,FALSE))","v":""},null,{"$f":"IF(P7=\"\",\"\",VLOOKUP(P7,coating[],2,FALSE))","v":""},null,{"$f":"IF(R7=\"\",\"\",VLOOKUP(R7,pole_in_use[],2,FALSE))","v":""},null,{"$f":"IF(T7=\"\",\"\",VLOOKUP(T7,pole_control[],2,FALSE))","v":""},null,{"$f":"IF(V7=\"\",\"\",VLOOKUP(V7,power_company[],2,FALSE))","v":""},null,null,null,{"$f":"IF(Z7=\"\",\"\",VLOOKUP(Z7,side[],2,FALSE))","v":""},null,null,null,{"$f":"IF(AD7=\"\",\"\",VLOOKUP(AD7,Install_reason[],2,FALSE))","v":""},null,{"$f":"IF(AF7=\"\",\"\",VLOOKUP(AF7,status[],2,FALSE))","v":""},null,null,{"$f":"IF(AI7=\"\",\"\",VLOOKUP(AI7,asset_owner[],2,FALSE))","v":""},null,null,null,null,{"$f":"IF(AN7=\"\",\"\",VLOOKUP(AN7,gps_method[],2,FALSE))","v":""},null,{"$f":"IF(AP7=\"\",\"\",VLOOKUP(AP7,risk_likelihood[],2,FALSE))","v":""},null,{"$f":"IF(AR7=\"\",\"\",VLOOKUP(AR7,risk_consequence[],2,FALSE))","v":""},null,{"$f":"IF(AT7=\"\",\"\",VLOOKUP(AT7,risk[],2,FALSE))","v":""},null,{"$f":"IF(AV7=\"\",\"\",VLOOKUP(AV7,rul_reset[],2,FALSE))","v":""},null,{"$f":"IF(AX7=\"\",\"\",VLOOKUP(AX7,use_default_rc[],2,FALSE))","v":""},null,{"$f":"IF(AZ7=\"\",\"\",VLOOKUP(AZ7,condition[],2,FALSE))","v":""},null,null,{"$f":"IF(BC7=\"\",\"\",VLOOKUP(BC7,Organisation[],2,FALSE))","v":""}]
["null",null,null,null,{"$f":"IF(D8=\"\",\"\",VLOOKUP(D8,Material[],2,FALSE))","v":""},null,{"$f":"IF(F8=\"\",\"\",VLOOKUP(F8,shape[],2,FALSE))","v":""},null,{"$f":"IF(H8=\"\",\"\",VLOOKUP(H8,make[],2,FALSE))","v":""},null,{"$f":"IF(J8=\"\",\"\",VLOOKUP(J8,mounting_type[],2,FALSE))","v":""},null,{"$f":"IF(L8=\"\",\"\",VLOOKUP(L8,attachment[],2,FALSE))","v":""},null,{"$f":"IF(N8=\"\",\"\",VLOOKUP(N8,purpose[],2,FALSE))","v":""},null,{"$f":"IF(P8=\"\",\"\",VLOOKUP(P8,coating[],2,FALSE))","v":""},null,{"$f":"IF(R8=\"\",\"\",VLOOKUP(R8,pole_in_use[],2,FALSE))","v":""},null,{"$f":"IF(T8=\"\",\"\",VLOOKUP(T8,pole_control[],2,FALSE))","v":""},null,{"$f":"IF(V8=\"\",\"\",VLOOKUP(V8,power_company[],2,FALSE))","v":""},null,null,null,{"$f":"IF(Z8=\"\",\"\",VLOOKUP(Z8,side[],2,FALSE))","v":""},null,null,null,{"$f":"IF(AD8=\"\",\"\",VLOOKUP(AD8,Install_reason[],2,FALSE))","v":""},null,{"$f":"IF(AF8=\"\",\"\",VLOOKUP(AF8,status[],2,FALSE))","v":""},null,null,{"$f":"IF(AI8=\"\",\"\",VLOOKUP(AI8,asset_owner[],2,FALSE))","v":""},null,null,null,null,{"$f":"IF(AN8=\"\",\"\",VLOOKUP(AN8,gps_method[],2,FALSE))","v":""},null,{"$f":"IF(AP8=\"\",\"\",VLOOKUP(AP8,risk_likelihood[],2,FALSE))","v":""},null,{"$f":"IF(AR8=\"\",\"\",VLOOKUP(AR8,risk_consequence[],2,FALSE))","v":""},null,{"$f":"IF(AT8=\"\",\"\",VLOOKUP(AT8,risk[],2,FALSE))","v":""},null,{"$f":"IF(AV8=\"\",\"\",VLOOKUP(AV8,rul_reset[],2,FALSE))","v":""},null,{"$f":"IF(AX8=\"\",\"\",VLOOKUP(AX8,use_default_rc[],2,FALSE))","v":""},null,{"$f":"IF(AZ8=\"\",\"\",VLOOKUP(AZ8,condition[],2,FALSE))","v":""},null,null,{"$f":"IF(BC8=\"\",\"\",VLOOKUP(BC8,Organisation[],2,FALSE))","v":""}]
["null",null,null,null,{"$f":"IF(D9=\"\",\"\",VLOOKUP(D9,Material[],2,FALSE))","v":""},null,{"$f":"IF(F9=\"\",\"\",VLOOKUP(F9,shape[],2,FALSE))","v":""},null,{"$f":"IF(H9=\"\",\"\",VLOOKUP(H9,make[],2,FALSE))","v":""},null,{"$f":"IF(J9=\"\",\"\",VLOOKUP(J9,mounting_type[],2,FALSE))","v":""},null,{"$f":"IF(L9=\"\",\"\",VLOOKUP(L9,attachment[],2,FALSE))","v":""},null,{"$f":"IF(N9=\"\",\"\",VLOOKUP(N9,purpose[],2,FALSE))","v":""},null,{"$f":"IF(P9=\"\",\"\",VLOOKUP(P9,coating[],2,FALSE))","v":""},null,{"$f":"IF(R9=\"\",\"\",VLOOKUP(R9,pole_in_use[],2,FALSE))","v":""},null,{"$f":"IF(T9=\"\",\"\",VLOOKUP(T9,pole_control[],2,FALSE))","v":""},null,{"$f":"IF(V9=\"\",\"\",VLOOKUP(V9,power_company[],2,FALSE))","v":""},null,null,null,{"$f":"IF(Z9=\"\",\"\",VLOOKUP(Z9,side[],2,FALSE))","v":""},null,null,null,{"$f":"IF(AD9=\"\",\"\",VLOOKUP(AD9,Install_reason[],2,FALSE))","v":""},null,{"$f":"IF(AF9=\"\",\"\",VLOOKUP(AF9,status[],2,FALSE))","v":""},null,null,{"$f":"IF(AI9=\"\",\"\",VLOOKUP(AI9,asset_owner[],2,FALSE))","v":""},null,null,null,null,{"$f":"IF(AN9=\"\",\"\",VLOOKUP(AN9,gps_method[],2,FALSE))","v":""},null,{"$f":"IF(AP9=\"\",\"\",VLOOKUP(AP9,risk_likelihood[],2,FALSE))","v":""},null,{"$f":"IF(AR9=\"\",\"\",VLOOKUP(AR9,risk_consequence[],2,FALSE))","v":""},null,{"$f":"IF(AT9=\"\",\"\",VLOOKUP(AT9,risk[],2,FALSE))","v":""},null,{"$f":"IF(AV9=\"\",\"\",VLOOKUP(AV9,rul_reset[],2,FALSE))","v":""},null,{"$f":"IF(AX9=\"\",\"\",VLOOKUP(AX9,use_default_rc[],2,FALSE))","v":""},null,{"$f":"IF(AZ9=\"\",\"\",VLOOKUP(AZ9,condition[],2,FALSE))","v":""},null,null,{"$f":"IF(BC9=\"\",\"\",VLOOKUP(BC9,Organisation[],2,FALSE))","v":""}]
["null",null,null,null,{"$f":"IF(D10=\"\",\"\",VLOOKUP(D10,Material[],2,FALSE))","v":""},null,{"$f":"IF(F10=\"\",\"\",VLOOKUP(F10,shape[],2,FALSE))","v":""},null,{"$f":"IF(H10=\"\",\"\",VLOOKUP(H10,make[],2,FALSE))","v":""},null,{"$f":"IF(J10=\"\",\"\",VLOOKUP(J10,mounting_type[],2,FALSE))","v":""},null,{"$f":"IF(L10=\"\",\"\",VLOOKUP(L10,attachment[],2,FALSE))","v":""},null,{"$f":"IF(N10=\"\",\"\",VLOOKUP(N10,purpose[],2,FALSE))","v":""},null,{"$f":"IF(P10=\"\",\"\",VLOOKUP(P10,coating[],2,FALSE))","v":""},null,{"$f":"IF(R10=\"\",\"\",VLOOKUP(R10,pole_in_use[],2,FALSE))","v":""},null,{"$f":"IF(T10=\"\",\"\",VLOOKUP(T10,pole_control[],2,FALSE))","v":""},null,{"$f":"IF(V10=\"\",\"\",VLOOKUP(V10,power_company[],2,FALSE))","v":""},null,null,null,{"$f":"IF(Z10=\"\",\"\",VLOOKUP(Z10,side[],2,FALSE))","v":""},null,null,null,{"$f":"IF(AD10=\"\",\"\",VLOOKUP(AD10,Install_reason[],2,FALSE))","v":""},null,{"$f":"IF(AF10=\"\",\"\",VLOOKUP(AF10,status[],2,FALSE))","v":""},null,null,{"$f":"IF(AI10=\"\",\"\",VLOOKUP(AI10,asset_owner[],2,FALSE))","v":""},null,null,null,null,{"$f":"IF(AN10=\"\",\"\",VLOOKUP(AN10,gps_method[],2,FALSE))","v":""},null,{"$f":"IF(AP10=\"\",\"\",VLOOKUP(AP10,risk_likelihood[],2,FALSE))","v":""},null,{"$f":"IF(AR10=\"\",\"\",VLOOKUP(AR10,risk_consequence[],2,FALSE))","v":""},null,{"$f":"IF(AT10=\"\",\"\",VLOOKUP(AT10,risk[],2,FALSE))","v":""},null,{"$f":"IF(AV10=\"\",\"\",VLOOKUP(AV10,rul_reset[],2,FALSE))","v":""},null,{"$f":"IF(AX10=\"\",\"\",VLOOKUP(AX10,use_default_rc[],2,FALSE))","v":""},null,{"$f":"IF(AZ10=\"\",\"\",VLOOKUP(AZ10,condition[],2,FALSE))","v":""},null,null,{"$f":"IF(BC10=\"\",\"\",VLOOKUP(BC10,Organisation[],2,FALSE))","v":""}]
["null",null,null,null,{"$f":"IF(D11=\"\",\"\",VLOOKUP(D11,Material[],2,FALSE))","v":""},null,{"$f":"IF(F11=\"\",\"\",VLOOKUP(F11,shape[],2,FALSE))","v":""},null,{"$f":"IF(H11=\"\",\"\",VLOOKUP(H11,make[],2,FALSE))","v":""},null,{"$f":"IF(J11=\"\",\"\",VLOOKUP(J11,mounting_type[],2,FALSE))","v":""},null,{"$f":"IF(L11=\"\",\"\",VLOOKUP(L11,attachment[],2,FALSE))","v":""},null,{"$f":"IF(N11=\"\",\"\",VLOOKUP(N11,purpose[],2,FALSE))","v":""},null,{"$f":"IF(P11=\"\",\"\",VLOOKUP(P11,coating[],2,FALSE))","v":""},null,{"$f":"IF(R11=\"\",\"\",VLOOKUP(R11,pole_in_use[],2,FALSE))","v":""},null,{"$f":"IF(T11=\"\",\"\",VLOOKUP(T11,pole_control[],2,FALSE))","v":""},null,{"$f":"IF(V11=\"\",\"\",VLOOKUP(V11,power_company[],2,FALSE))","v":""},null,null,null,{"$f":"IF(Z11=\"\",\"\",VLOOKUP(Z11,side[],2,FALSE))","v":""},null,null,null,{"$f":"IF(AD11=\"\",\"\",VLOOKUP(AD11,Install_reason[],2,FALSE))","v":""},null,{"$f":"IF(AF11=\"\",\"\",VLOOKUP(AF11,status[],2,FALSE))","v":""},null,null,{"$f":"IF(AI11=\"\",\"\",VLOOKUP(AI11,asset_owner[],2,FALSE))","v":""},null,null,null,null,{"$f":"IF(AN11=\"\",\"\",VLOOKUP(AN11,gps_method[],2,FALSE))","v":""},null,{"$f":"IF(AP11=\"\",\"\",VLOOKUP(AP11,risk_likelihood[],2,FALSE))","v":""},null,{"$f":"IF(AR11=\"\",\"\",VLOOKUP(AR11,risk_consequence[],2,FALSE))","v":""},null,{"$f":"IF(AT11=\"\",\"\",VLOOKUP(AT11,risk[],2,FALSE))","v":""},null,{"$f":"IF(AV11=\"\",\"\",VLOOKUP(AV11,rul_reset[],2,FALSE))","v":""},null,{"$f":"IF(AX11=\"\",\"\",VLOOKUP(AX11,use_default_rc[],2,FALSE))","v":""},null,{"$f":"IF(AZ11=\"\",\"\",VLOOKUP(AZ11,condition[],2,FALSE))","v":""},null,null,{"$f":"IF(BC11=\"\",\"\",VLOOKUP(BC11,Organisation[],2,FALSE))","v":""}]
["null",null,null,null,{"$f":"IF(D12=\"\",\"\",VLOOKUP(D12,Material[],2,FALSE))","v":""},null,{"$f":"IF(F12=\"\",\"\",VLOOKUP(F12,shape[],2,FALSE))","v":""},null,{"$f":"IF(H12=\"\",\"\",VLOOKUP(H12,make[],2,FALSE))","v":""},null,{"$f":"IF(J12=\"\",\"\",VLOOKUP(J12,mounting_type[],2,FALSE))","v":""},null,{"$f":"IF(L12=\"\",\"\",VLOOKUP(L12,attachment[],2,FALSE))","v":""},null,{"$f":"IF(N12=\"\",\"\",VLOOKUP(N12,purpose[],2,FALSE))","v":""},null,{"$f":"IF(P12=\"\",\"\",VLOOKUP(P12,coating[],2,FALSE))","v":""},null,{"$f":"IF(R12=\"\",\"\",VLOOKUP(R12,pole_in_use[],2,FALSE))","v":""},null,{"$f":"IF(T12=\"\",\"\",VLOOKUP(T12,pole_control[],2,FALSE))","v":""},null,{"$f":"IF(V12=\"\",\"\",VLOOKUP(V12,power_company[],2,FALSE))","v":""},null,null,null,{"$f":"IF(Z12=\"\",\"\",VLOOKUP(Z12,side[],2,FALSE))","v":""},null,null,null,{"$f":"IF(AD12=\"\",\"\",VLOOKUP(AD12,Install_reason[],2,FALSE))","v":""},null,{"$f":"IF(AF12=\"\",\"\",VLOOKUP(AF12,status[],2,FALSE))","v":""},null,null,{"$f":"IF(AI12=\"\",\"\",VLOOKUP(AI12,asset_owner[],2,FALSE))","v":""},null,null,null,null,{"$f":"IF(AN12=\"\",\"\",VLOOKUP(AN12,gps_method[],2,FALSE))","v":""},null,{"$f":"IF(AP12=\"\",\"\",VLOOKUP(AP12,risk_likelihood[],2,FALSE))","v":""},null,{"$f":"IF(AR12=\"\",\"\",VLOOKUP(AR12,risk_consequence[],2,FALSE))","v":""},null,{"$f":"IF(AT12=\"\",\"\",VLOOKUP(AT12,risk[],2,FALSE))","v":""},null,{"$f":"IF(AV12=\"\",\"\",VLOOKUP(AV12,rul_reset[],2,FALSE))","v":""},null,{"$f":"IF(AX12=\"\",\"\",VLOOKUP(AX12,use_default_rc[],2,FALSE))","v":""},null,{"$f":"IF(AZ12=\"\",\"\",VLOOKUP(AZ12,condition[],2,FALSE))","v":""},null,null,{"$f":"IF(BC12=\"\",\"\",VLOOKUP(BC12,Organisation[],2,FALSE))","v":""}]
["null",null,null,null,{"$f":"IF(D13=\"\",\"\",VLOOKUP(D13,Material[],2,FALSE))","v":""},null,{"$f":"IF(F13=\"\",\"\",VLOOKUP(F13,shape[],2,FALSE))","v":""},null,{"$f":"IF(H13=\"\",\"\",VLOOKUP(H13,make[],2,FALSE))","v":""},null,{"$f":"IF(J13=\"\",\"\",VLOOKUP(J13,mounting_type[],2,FALSE))","v":""},null,{"$f":"IF(L13=\"\",\"\",VLOOKUP(L13,attachment[],2,FALSE))","v":""},null,{"$f":"IF(N13=\"\",\"\",VLOOKUP(N13,purpose[],2,FALSE))","v":""},null,{"$f":"IF(P13=\"\",\"\",VLOOKUP(P13,coating[],2,FALSE))","v":""},null,{"$f":"IF(R13=\"\",\"\",VLOOKUP(R13,pole_in_use[],2,FALSE))","v":""},null,{"$f":"IF(T13=\"\",\"\",VLOOKUP(T13,pole_control[],2,FALSE))","v":""},null,{"$f":"IF(V13=\"\",\"\",VLOOKUP(V13,power_company[],2,FALSE))","v":""},null,null,null,{"$f":"IF(Z13=\"\",\"\",VLOOKUP(Z13,side[],2,FALSE))","v":""},null,null,null,{"$f":"IF(AD13=\"\",\"\",VLOOKUP(AD13,Install_reason[],2,FALSE))","v":""},null,{"$f":"IF(AF13=\"\",\"\",VLOOKUP(AF13,status[],2,FALSE))","v":""},null,null,{"$f":"IF(AI13=\"\",\"\",VLOOKUP(AI13,asset_owner[],2,FALSE))","v":""},null,null,null,null,{"$f":"IF(AN13=\"\",\"\",VLOOKUP(AN13,gps_method[],2,FALSE))","v":""},null,{"$f":"IF(AP13=\"\",\"\",VLOOKUP(AP13,risk_likelihood[],2,FALSE))","v":""},null,{"$f":"IF(AR13=\"\",\"\",VLOOKUP(AR13,risk_consequence[],2,FALSE))","v":""},null,{"$f":"IF(AT13=\"\",\"\",VLOOKUP(AT13,risk[],2,FALSE))","v":""},null,{"$f":"IF(AV13=\"\",\"\",VLOOKUP(AV13,rul_reset[],2,FALSE))","v":""},null,{"$f":"IF(AX13=\"\",\"\",VLOOKUP(AX13,use_default_rc[],2,FALSE))","v":""},null,{"$f":"IF(AZ13=\"\",\"\",VLOOKUP(AZ13,condition[],2,FALSE))","v":""},null,null,{"$f":"IF(BC13=\"\",\"\",VLOOKUP(BC13,Organisation[],2,FALSE))","v":""}]
["null",null,null,null,{"$f":"IF(D14=\"\",\"\",VLOOKUP(D14,Material[],2,FALSE))","v":""},null,{"$f":"IF(F14=\"\",\"\",VLOOKUP(F14,shape[],2,FALSE))","v":""},null,{"$f":"IF(H14=\"\",\"\",VLOOKUP(H14,make[],2,FALSE))","v":""},null,{"$f":"IF(J14=\"\",\"\",VLOOKUP(J14,mounting_type[],2,FALSE))","v":""},null,{"$f":"IF(L14=\"\",\"\",VLOOKUP(L14,attachment[],2,FALSE))","v":""},null,{"$f":"IF(N14=\"\",\"\",VLOOKUP(N14,purpose[],2,FALSE))","v":""},null,{"$f":"IF(P14=\"\",\"\",VLOOKUP(P14,coating[],2,FALSE))","v":""},null,{"$f":"IF(R14=\"\",\"\",VLOOKUP(R14,pole_in_use[],2,FALSE))","v":""},null,{"$f":"IF(T14=\"\",\"\",VLOOKUP(T14,pole_control[],2,FALSE))","v":""},null,{"$f":"IF(V14=\"\",\"\",VLOOKUP(V14,power_company[],2,FALSE))","v":""},null,null,null,{"$f":"IF(Z14=\"\",\"\",VLOOKUP(Z14,side[],2,FALSE))","v":""},null,null,null,{"$f":"IF(AD14=\"\",\"\",VLOOKUP(AD14,Install_reason[],2,FALSE))","v":""},null,{"$f":"IF(AF14=\"\",\"\",VLOOKUP(AF14,status[],2,FALSE))","v":""},null,null,{"$f":"IF(AI14=\"\",\"\",VLOOKUP(AI14,asset_owner[],2,FALSE))","v":""},null,null,null,null,{"$f":"IF(AN14=\"\",\"\",VLOOKUP(AN14,gps_method[],2,FALSE))","v":""},null,{"$f":"IF(AP14=\"\",\"\",VLOOKUP(AP14,risk_likelihood[],2,FALSE))","v":""},null,{"$f":"IF(AR14=\"\",\"\",VLOOKUP(AR14,risk_consequence[],2,FALSE))","v":""},null,{"$f":"IF(AT14=\"\",\"\",VLOOKUP(AT14,risk[],2,FALSE))","v":""},null,{"$f":"IF(AV14=\"\",\"\",VLOOKUP(AV14,rul_reset[],2,FALSE))","v":""},null,{"$f":"IF(AX14=\"\",\"\",VLOOKUP(AX14,use_default_rc[],2,FALSE))","v":""},null,{"$f":"IF(AZ14=\"\",\"\",VLOOKUP(AZ14,condition[],2,FALSE))","v":""},null,null,{"$f":"IF(BC14=\"\",\"\",VLOOKUP(BC14,Organisation[],2,FALSE))","v":""}]
["null",null,null,null,{"$f":"IF(D15=\"\",\"\",VLOOKUP(D15,Material[],2,FALSE))","v":""},null,{"$f":"IF(F15=\"\",\"\",VLOOKUP(F15,shape[],2,FALSE))","v":""},null,{"$f":"IF(H15=\"\",\"\",VLOOKUP(H15,make[],2,FALSE))","v":""},null,{"$f":"IF(J15=\"\",\"\",VLOOKUP(J15,mounting_type[],2,FALSE))","v":""},null,{"$f":"IF(L15=\"\",\"\",VLOOKUP(L15,attachment[],2,FALSE))","v":""},null,{"$f":"IF(N15=\"\",\"\",VLOOKUP(N15,purpose[],2,FALSE))","v":""},null,{"$f":"IF(P15=\"\",\"\",VLOOKUP(P15,coating[],2,FALSE))","v":""},null,{"$f":"IF(R15=\"\",\"\",VLOOKUP(R15,pole_in_use[],2,FALSE))","v":""},null,{"$f":"IF(T15=\"\",\"\",VLOOKUP(T15,pole_control[],2,FALSE))","v":""},null,{"$f":"IF(V15=\"\",\"\",VLOOKUP(V15,power_company[],2,FALSE))","v":""},null,null,null,{"$f":"IF(Z15=\"\",\"\",VLOOKUP(Z15,side[],2,FALSE))","v":""},null,null,null,{"$f":"IF(AD15=\"\",\"\",VLOOKUP(AD15,Install_reason[],2,FALSE))","v":""},null,{"$f":"IF(AF15=\"\",\"\",VLOOKUP(AF15,status[],2,FALSE))","v":""},null,null,{"$f":"IF(AI15=\"\",\"\",VLOOKUP(AI15,asset_owner[],2,FALSE))","v":""},null,null,null,null,{"$f":"IF(AN15=\"\",\"\",VLOOKUP(AN15,gps_method[],2,FALSE))","v":""},null,{"$f":"IF(AP15=\"\",\"\",VLOOKUP(AP15,risk_likelihood[],2,FALSE))","v":""},null,{"$f":"IF(AR15=\"\",\"\",VLOOKUP(AR15,risk_consequence[],2,FALSE))","v":""},null,{"$f":"IF(AT15=\"\",\"\",VLOOKUP(AT15,risk[],2,FALSE))","v":""},null,{"$f":"IF(AV15=\"\",\"\",VLOOKUP(AV15,rul_reset[],2,FALSE))","v":""},null,{"$f":"IF(AX15=\"\",\"\",VLOOKUP(AX15,use_default_rc[],2,FALSE))","v":""},null,{"$f":"IF(AZ15=\"\",\"\",VLOOKUP(AZ15,condition[],2,FALSE))","v":""},null,null,{"$f":"IF(BC15=\"\",\"\",VLOOKUP(BC15,Organisation[],2,FALSE))","v":""}]
["null",null,null,null,{"$f":"IF(D16=\"\",\"\",VLOOKUP(D16,Material[],2,FALSE))","v":""},null,{"$f":"IF(F16=\"\",\"\",VLOOKUP(F16,shape[],2,FALSE))","v":""},null,{"$f":"IF(H16=\"\",\"\",VLOOKUP(H16,make[],2,FALSE))","v":""},null,{"$f":"IF(J16=\"\",\"\",VLOOKUP(J16,mounting_type[],2,FALSE))","v":""},null,{"$f":"IF(L16=\"\",\"\",VLOOKUP(L16,attachment[],2,FALSE))","v":""},null,{"$f":"IF(N16=\"\",\"\",VLOOKUP(N16,purpose[],2,FALSE))","v":""},null,{"$f":"IF(P16=\"\",\"\",VLOOKUP(P16,coating[],2,FALSE))","v":""},null,{"$f":"IF(R16=\"\",\"\",VLOOKUP(R16,pole_in_use[],2,FALSE))","v":""},null,{"$f":"IF(T16=\"\",\"\",VLOOKUP(T16,pole_control[],2,FALSE))","v":""},null,{"$f":"IF(V16=\"\",\"\",VLOOKUP(V16,power_company[],2,FALSE))","v":""},null,null,null,{"$f":"IF(Z16=\"\",\"\",VLOOKUP(Z16,side[],2,FALSE))","v":""},null,null,null,{"$f":"IF(AD16=\"\",\"\",VLOOKUP(AD16,Install_reason[],2,FALSE))","v":""},null,{"$f":"IF(AF16=\"\",\"\",VLOOKUP(AF16,status[],2,FALSE))","v":""},null,null,{"$f":"IF(AI16=\"\",\"\",VLOOKUP(AI16,asset_owner[],2,FALSE))","v":""},null,null,null,null,{"$f":"IF(AN16=\"\",\"\",VLOOKUP(AN16,gps_method[],2,FALSE))","v":""},null,{"$f":"IF(AP16=\"\",\"\",VLOOKUP(AP16,risk_likelihood[],2,FALSE))","v":""},null,{"$f":"IF(AR16=\"\",\"\",VLOOKUP(AR16,risk_consequence[],2,FALSE))","v":""},null,{"$f":"IF(AT16=\"\",\"\",VLOOKUP(AT16,risk[],2,FALSE))","v":""},null,{"$f":"IF(AV16=\"\",\"\",VLOOKUP(AV16,rul_reset[],2,FALSE))","v":""},null,{"$f":"IF(AX16=\"\",\"\",VLOOKUP(AX16,use_default_rc[],2,FALSE))","v":""},null,{"$f":"IF(AZ16=\"\",\"\",VLOOKUP(AZ16,condition[],2,FALSE))","v":""},null,null,{"$f":"IF(BC16=\"\",\"\",VLOOKUP(BC16,Organisation[],2,FALSE))","v":""}]
["null",null,null,null,{"$f":"IF(D17=\"\",\"\",VLOOKUP(D17,Material[],2,FALSE))","v":""},null,{"$f":"IF(F17=\"\",\"\",VLOOKUP(F17,shape[],2,FALSE))","v":""},null,{"$f":"IF(H17=\"\",\"\",VLOOKUP(H17,make[],2,FALSE))","v":""},null,{"$f":"IF(J17=\"\",\"\",VLOOKUP(J17,mounting_type[],2,FALSE))","v":""},null,{"$f":"IF(L17=\"\",\"\",VLOOKUP(L17,attachment[],2,FALSE))","v":""},null,{"$f":"IF(N17=\"\",\"\",VLOOKUP(N17,purpose[],2,FALSE))","v":""},null,{"$f":"IF(P17=\"\",\"\",VLOOKUP(P17,coating[],2,FALSE))","v":""},null,{"$f":"IF(R17=\"\",\"\",VLOOKUP(R17,pole_in_use[],2,FALSE))","v":""},null,{"$f":"IF(T17=\"\",\"\",VLOOKUP(T17,pole_control[],2,FALSE))","v":""},null,{"$f":"IF(V17=\"\",\"\",VLOOKUP(V17,power_company[],2,FALSE))","v":""},null,null,null,{"$f":"IF(Z17=\"\",\"\",VLOOKUP(Z17,side[],2,FALSE))","v":""},null,null,null,{"$f":"IF(AD17=\"\",\"\",VLOOKUP(AD17,Install_reason[],2,FALSE))","v":""},null,{"$f":"IF(AF17=\"\",\"\",VLOOKUP(AF17,status[],2,FALSE))","v":""},null,null,{"$f":"IF(AI17=\"\",\"\",VLOOKUP(AI17,asset_owner[],2,FALSE))","v":""},null,null,null,null,{"$f":"IF(AN17=\"\",\"\",VLOOKUP(AN17,gps_method[],2,FALSE))","v":""},null,{"$f":"IF(AP17=\"\",\"\",VLOOKUP(AP17,risk_likelihood[],2,FALSE))","v":""},null,{"$f":"IF(AR17=\"\",\"\",VLOOKUP(AR17,risk_consequence[],2,FALSE))","v":""},null,{"$f":"IF(AT17=\"\",\"\",VLOOKUP(AT17,risk[],2,FALSE))","v":""},null,{"$f":"IF(AV17=\"\",\"\",VLOOKUP(AV17,rul_reset[],2,FALSE))","v":""},null,{"$f":"IF(AX17=\"\",\"\",VLOOKUP(AX17,use_default_rc[],2,FALSE))","v":""},null,{"$f":"IF(AZ17=\"\",\"\",VLOOKUP(AZ17,condition[],2,FALSE))","v":""},null,null,{"$f":"IF(BC17=\"\",\"\",VLOOKUP(BC17,Organisation[],2,FALSE))","v":""}]
["null",null,null,null,{"$f":"IF(D18=\"\",\"\",VLOOKUP(D18,Material[],2,FALSE))","v":""},null,{"$f":"IF(F18=\"\",\"\",VLOOKUP(F18,shape[],2,FALSE))","v":""},null,{"$f":"IF(H18=\"\",\"\",VLOOKUP(H18,make[],2,FALSE))","v":""},null,{"$f":"IF(J18=\"\",\"\",VLOOKUP(J18,mounting_type[],2,FALSE))","v":""},null,{"$f":"IF(L18=\"\",\"\",VLOOKUP(L18,attachment[],2,FALSE))","v":""},null,{"$f":"IF(N18=\"\",\"\",VLOOKUP(N18,purpose[],2,FALSE))","v":""},null,{"$f":"IF(P18=\"\",\"\",VLOOKUP(P18,coating[],2,FALSE))","v":""},null,{"$f":"IF(R18=\"\",\"\",VLOOKUP(R18,pole_in_use[],2,FALSE))","v":""},null,{"$f":"IF(T18=\"\",\"\",VLOOKUP(T18,pole_control[],2,FALSE))","v":""},null,{"$f":"IF(V18=\"\",\"\",VLOOKUP(V18,power_company[],2,FALSE))","v":""},null,null,null,{"$f":"IF(Z18=\"\",\"\",VLOOKUP(Z18,side[],2,FALSE))","v":""},null,null,null,{"$f":"IF(AD18=\"\",\"\",VLOOKUP(AD18,Install_reason[],2,FALSE))","v":""},null,{"$f":"IF(AF18=\"\",\"\",VLOOKUP(AF18,status[],2,FALSE))","v":""},null,null,{"$f":"IF(AI18=\"\",\"\",VLOOKUP(AI18,asset_owner[],2,FALSE))","v":""},null,null,null,null,{"$f":"IF(AN18=\"\",\"\",VLOOKUP(AN18,gps_method[],2,FALSE))","v":""},null,{"$f":"IF(AP18=\"\",\"\",VLOOKUP(AP18,risk_likelihood[],2,FALSE))","v":""},null,{"$f":"IF(AR18=\"\",\"\",VLOOKUP(AR18,risk_consequence[],2,FALSE))","v":""},null,{"$f":"IF(AT18=\"\",\"\",VLOOKUP(AT18,risk[],2,FALSE))","v":""},null,{"$f":"IF(AV18=\"\",\"\",VLOOKUP(AV18,rul_reset[],2,FALSE))","v":""},null,{"$f":"IF(AX18=\"\",\"\",VLOOKUP(AX18,use_default_rc[],2,FALSE))","v":""},null,{"$f":"IF(AZ18=\"\",\"\",VLOOKUP(AZ18,condition[],2,FALSE))","v":""},null,null,{"$f":"IF(BC18=\"\",\"\",VLOOKUP(BC18,Organisation[],2,FALSE))","v":""}]
["null",null,null,null,{"$f":"IF(D19=\"\",\"\",VLOOKUP(D19,Material[],2,FALSE))","v":""},null,{"$f":"IF(F19=\"\",\"\",VLOOKUP(F19,shape[],2,FALSE))","v":""},null,{"$f":"IF(H19=\"\",\"\",VLOOKUP(H19,make[],2,FALSE))","v":""},null,{"$f":"IF(J19=\"\",\"\",VLOOKUP(J19,mounting_type[],2,FALSE))","v":""},null,{"$f":"IF(L19=\"\",\"\",VLOOKUP(L19,attachment[],2,FALSE))","v":""},null,{"$f":"IF(N19=\"\",\"\",VLOOKUP(N19,purpose[],2,FALSE))","v":""},null,{"$f":"IF(P19=\"\",\"\",VLOOKUP(P19,coating[],2,FALSE))","v":""},null,{"$f":"IF(R19=\"\",\"\",VLOOKUP(R19,pole_in_use[],2,FALSE))","v":""},null,{"$f":"IF(T19=\"\",\"\",VLOOKUP(T19,pole_control[],2,FALSE))","v":""},null,{"$f":"IF(V19=\"\",\"\",VLOOKUP(V19,power_company[],2,FALSE))","v":""},null,null,null,{"$f":"IF(Z19=\"\",\"\",VLOOKUP(Z19,side[],2,FALSE))","v":""},null,null,null,{"$f":"IF(AD19=\"\",\"\",VLOOKUP(AD19,Install_reason[],2,FALSE))","v":""},null,{"$f":"IF(AF19=\"\",\"\",VLOOKUP(AF19,status[],2,FALSE))","v":""},null,null,{"$f":"IF(AI19=\"\",\"\",VLOOKUP(AI19,asset_owner[],2,FALSE))","v":""},null,null,null,null,{"$f":"IF(AN19=\"\",\"\",VLOOKUP(AN19,gps_method[],2,FALSE))","v":""},null,{"$f":"IF(AP19=\"\",\"\",VLOOKUP(AP19,risk_likelihood[],2,FALSE))","v":""},null,{"$f":"IF(AR19=\"\",\"\",VLOOKUP(AR19,risk_consequence[],2,FALSE))","v":""},null,{"$f":"IF(AT19=\"\",\"\",VLOOKUP(AT19,risk[],2,FALSE))","v":""},null,{"$f":"IF(AV19=\"\",\"\",VLOOKUP(AV19,rul_reset[],2,FALSE))","v":""},null,{"$f":"IF(AX19=\"\",\"\",VLOOKUP(AX19,use_default_rc[],2,FALSE))","v":""},null,{"$f":"IF(AZ19=\"\",\"\",VLOOKUP(AZ19,condition[],2,FALSE))","v":""},null,null,{"$f":"IF(BC19=\"\",\"\",VLOOKUP(BC19,Organisation[],2,FALSE))","v":""}]
["null",null,null,null,{"$f":"IF(D20=\"\",\"\",VLOOKUP(D20,Material[],2,FALSE))","v":""},null,{"$f":"IF(F20=\"\",\"\",VLOOKUP(F20,shape[],2,FALSE))","v":""},null,{"$f":"IF(H20=\"\",\"\",VLOOKUP(H20,make[],2,FALSE))","v":""},null,{"$f":"IF(J20=\"\",\"\",VLOOKUP(J20,mounting_type[],2,FALSE))","v":""},null,{"$f":"IF(L20=\"\",\"\",VLOOKUP(L20,attachment[],2,FALSE))","v":""},null,{"$f":"IF(N20=\"\",\"\",VLOOKUP(N20,purpose[],2,FALSE))","v":""},null,{"$f":"IF(P20=\"\",\"\",VLOOKUP(P20,coating[],2,FALSE))","v":""},null,{"$f":"IF(R20=\"\",\"\",VLOOKUP(R20,pole_in_use[],2,FALSE))","v":""},null,{"$f":"IF(T20=\"\",\"\",VLOOKUP(T20,pole_control[],2,FALSE))","v":""},null,{"$f":"IF(V20=\"\",\"\",VLOOKUP(V20,power_company[],2,FALSE))","v":""},null,null,null,{"$f":"IF(Z20=\"\",\"\",VLOOKUP(Z20,side[],2,FALSE))","v":""},null,null,null,{"$f":"IF(AD20=\"\",\"\",VLOOKUP(AD20,Install_reason[],2,FALSE))","v":""},null,{"$f":"IF(AF20=\"\",\"\",VLOOKUP(AF20,status[],2,FALSE))","v":""},null,null,{"$f":"IF(AI20=\"\",\"\",VLOOKUP(AI20,asset_owner[],2,FALSE))","v":""},null,null,null,null,{"$f":"IF(AN20=\"\",\"\",VLOOKUP(AN20,gps_method[],2,FALSE))","v":""},null,{"$f":"IF(AP20=\"\",\"\",VLOOKUP(AP20,risk_likelihood[],2,FALSE))","v":""},null,{"$f":"IF(AR20=\"\",\"\",VLOOKUP(AR20,risk_consequence[],2,FALSE))","v":""},null,{"$f":"IF(AT20=\"\",\"\",VLOOKUP(AT20,risk[],2,FALSE))","v":""},null,{"$f":"IF(AV20=\"\",\"\",VLOOKUP(AV20,rul_reset[],2,FALSE))","v":""},null,{"$f":"IF(AX20=\"\",\"\",VLOOKUP(AX20,use_default_rc[],2,FALSE))","v":""},null,{"$f":"IF(AZ20=\"\",\"\",VLOOKUP(AZ20,condition[],2,FALSE))","v":""},null,null,{"$f":"IF(BC20=\"\",\"\",VLOOKUP(BC20,Organisation[],2,FALSE))","v":""}]
["null",null,null,null,{"$f":"IF(D21=\"\",\"\",VLOOKUP(D21,Material[],2,FALSE))","v":""},null,{"$f":"IF(F21=\"\",\"\",VLOOKUP(F21,shape[],2,FALSE))","v":""},null,{"$f":"IF(H21=\"\",\"\",VLOOKUP(H21,make[],2,FALSE))","v":""},null,{"$f":"IF(J21=\"\",\"\",VLOOKUP(J21,mounting_type[],2,FALSE))","v":""},null,{"$f":"IF(L21=\"\",\"\",VLOOKUP(L21,attachment[],2,FALSE))","v":""},null,{"$f":"IF(N21=\"\",\"\",VLOOKUP(N21,purpose[],2,FALSE))","v":""},null,{"$f":"IF(P21=\"\",\"\",VLOOKUP(P21,coating[],2,FALSE))","v":""},null,{"$f":"IF(R21=\"\",\"\",VLOOKUP(R21,pole_in_use[],2,FALSE))","v":""},null,{"$f":"IF(T21=\"\",\"\",VLOOKUP(T21,pole_control[],2,FALSE))","v":""},null,{"$f":"IF(V21=\"\",\"\",VLOOKUP(V21,power_company[],2,FALSE))","v":""},null,null,null,{"$f":"IF(Z21=\"\",\"\",VLOOKUP(Z21,side[],2,FALSE))","v":""},null,null,null,{"$f":"IF(AD21=\"\",\"\",VLOOKUP(AD21,Install_reason[],2,FALSE))","v":""},null,{"$f":"IF(AF21=\"\",\"\",VLOOKUP(AF21,status[],2,FALSE))","v":""},null,null,{"$f":"IF(AI21=\"\",\"\",VLOOKUP(AI21,asset_owner[],2,FALSE))","v":""},null,null,null,null,{"$f":"IF(AN21=\"\",\"\",VLOOKUP(AN21,gps_method[],2,FALSE))","v":""},null,{"$f":"IF(AP21=\"\",\"\",VLOOKUP(AP21,risk_likelihood[],2,FALSE))","v":""},null,{"$f":"IF(AR21=\"\",\"\",VLOOKUP(AR21,risk_consequence[],2,FALSE))","v":""},null,{"$f":"IF(AT21=\"\",\"\",VLOOKUP(AT21,risk[],2,FALSE))","v":""},null,{"$f":"IF(AV21=\"\",\"\",VLOOKUP(AV21,rul_reset[],2,FALSE))","v":""},null,{"$f":"IF(AX21=\"\",\"\",VLOOKUP(AX21,use_default_rc[],2,FALSE))","v":""},null,{"$f":"IF(AZ21=\"\",\"\",VLOOKUP(AZ21,condition[],2,FALSE))","v":""},null,null,{"$f":"IF(BC21=\"\",\"\",VLOOKUP(BC21,Organisation[],2,FALSE))","v":""}]
["null",null,null,null,{"$f":"IF(D22=\"\",\"\",VLOOKUP(D22,Material[],2,FALSE))","v":""},null,{"$f":"IF(F22=\"\",\"\",VLOOKUP(F22,shape[],2,FALSE))","v":""},null,{"$f":"IF(H22=\"\",\"\",VLOOKUP(H22,make[],2,FALSE))","v":""},null,{"$f":"IF(J22=\"\",\"\",VLOOKUP(J22,mounting_type[],2,FALSE))","v":""},null,{"$f":"IF(L22=\"\",\"\",VLOOKUP(L22,attachment[],2,FALSE))","v":""},null,{"$f":"IF(N22=\"\",\"\",VLOOKUP(N22,purpose[],2,FALSE))","v":""},null,{"$f":"IF(P22=\"\",\"\",VLOOKUP(P22,coating[],2,FALSE))","v":""},null,{"$f":"IF(R22=\"\",\"\",VLOOKUP(R22,pole_in_use[],2,FALSE))","v":""},null,{"$f":"IF(T22=\"\",\"\",VLOOKUP(T22,pole_control[],2,FALSE))","v":""},null,{"$f":"IF(V22=\"\",\"\",VLOOKUP(V22,power_company[],2,FALSE))","v":""},null,null,null,{"$f":"IF(Z22=\"\",\"\",VLOOKUP(Z22,side[],2,FALSE))","v":""},null,null,null,{"$f":"IF(AD22=\"\",\"\",VLOOKUP(AD22,Install_reason[],2,FALSE))","v":""},null,{"$f":"IF(AF22=\"\",\"\",VLOOKUP(AF22,status[],2,FALSE))","v":""},null,null,{"$f":"IF(AI22=\"\",\"\",VLOOKUP(AI22,asset_owner[],2,FALSE))","v":""},null,null,null,null,{"$f":"IF(AN22=\"\",\"\",VLOOKUP(AN22,gps_method[],2,FALSE))","v":""},null,{"$f":"IF(AP22=\"\",\"\",VLOOKUP(AP22,risk_likelihood[],2,FALSE))","v":""},null,{"$f":"IF(AR22=\"\",\"\",VLOOKUP(AR22,risk_consequence[],2,FALSE))","v":""},null,{"$f":"IF(AT22=\"\",\"\",VLOOKUP(AT22,risk[],2,FALSE))","v":""},null,{"$f":"IF(AV22=\"\",\"\",VLOOKUP(AV22,rul_reset[],2,FALSE))","v":""},null,{"$f":"IF(AX22=\"\",\"\",VLOOKUP(AX22,use_default_rc[],2,FALSE))","v":""},null,{"$f":"IF(AZ22=\"\",\"\",VLOOKUP(AZ22,condition[],2,FALSE))","v":""},null,null,{"$f":"IF(BC22=\"\",\"\",VLOOKUP(BC22,Organisation[],2,FALSE))","v":""}]
["null",null,null,null,{"$f":"IF(D23=\"\",\"\",VLOOKUP(D23,Material[],2,FALSE))","v":""},null,{"$f":"IF(F23=\"\",\"\",VLOOKUP(F23,shape[],2,FALSE))","v":""},null,{"$f":"IF(H23=\"\",\"\",VLOOKUP(H23,make[],2,FALSE))","v":""},null,{"$f":"IF(J23=\"\",\"\",VLOOKUP(J23,mounting_type[],2,FALSE))","v":""},null,{"$f":"IF(L23=\"\",\"\",VLOOKUP(L23,attachment[],2,FALSE))","v":""},null,{"$f":"IF(N23=\"\",\"\",VLOOKUP(N23,purpose[],2,FALSE))","v":""},null,{"$f":"IF(P23=\"\",\"\",VLOOKUP(P23,coating[],2,FALSE))","v":""},null,{"$f":"IF(R23=\"\",\"\",VLOOKUP(R23,pole_in_use[],2,FALSE))","v":""},null,{"$f":"IF(T23=\"\",\"\",VLOOKUP(T23,pole_control[],2,FALSE))","v":""},null,{"$f":"IF(V23=\"\",\"\",VLOOKUP(V23,power_company[],2,FALSE))","v":""},null,null,null,{"$f":"IF(Z23=\"\",\"\",VLOOKUP(Z23,side[],2,FALSE))","v":""},null,null,null,{"$f":"IF(AD23=\"\",\"\",VLOOKUP(AD23,Install_reason[],2,FALSE))","v":""},null,{"$f":"IF(AF23=\"\",\"\",VLOOKUP(AF23,status[],2,FALSE))","v":""},null,null,{"$f":"IF(AI23=\"\",\"\",VLOOKUP(AI23,asset_owner[],2,FALSE))","v":""},null,null,null,null,{"$f":"IF(AN23=\"\",\"\",VLOOKUP(AN23,gps_method[],2,FALSE))","v":""},null,{"$f":"IF(AP23=\"\",\"\",VLOOKUP(AP23,risk_likelihood[],2,FALSE))","v":""},null,{"$f":"IF(AR23=\"\",\"\",VLOOKUP(AR23,risk_consequence[],2,FALSE))","v":""},null,{"$f":"IF(AT23=\"\",\"\",VLOOKUP(AT23,risk[],2,FALSE))","v":""},null,{"$f":"IF(AV23=\"\",\"\",VLOOKUP(AV23,rul_reset[],2,FALSE))","v":""},null,{"$f":"IF(AX23=\"\",\"\",VLOOKUP(AX23,use_default_rc[],2,FALSE))","v":""},null,{"$f":"IF(AZ23=\"\",\"\",VLOOKUP(AZ23,condition[],2,FALSE))","v":""},null,null,{"$f":"IF(BC23=\"\",\"\",VLOOKUP(BC23,Organisation[],2,FALSE))","v":""}]
["null",null,null,null,{"$f":"IF(D24=\"\",\"\",VLOOKUP(D24,Material[],2,FALSE))","v":""},null,{"$f":"IF(F24=\"\",\"\",VLOOKUP(F24,shape[],2,FALSE))","v":""},null,{"$f":"IF(H24=\"\",\"\",VLOOKUP(H24,make[],2,FALSE))","v":""},null,{"$f":"IF(J24=\"\",\"\",VLOOKUP(J24,mounting_type[],2,FALSE))","v":""},null,{"$f":"IF(L24=\"\",\"\",VLOOKUP(L24,attachment[],2,FALSE))","v":""},null,{"$f":"IF(N24=\"\",\"\",VLOOKUP(N24,purpose[],2,FALSE))","v":""},null,{"$f":"IF(P24=\"\",\"\",VLOOKUP(P24,coating[],2,FALSE))","v":""},null,{"$f":"IF(R24=\"\",\"\",VLOOKUP(R24,pole_in_use[],2,FALSE))","v":""},null,{"$f":"IF(T24=\"\",\"\",VLOOKUP(T24,pole_control[],2,FALSE))","v":""},null,{"$f":"IF(V24=\"\",\"\",VLOOKUP(V24,power_company[],2,FALSE))","v":""},null,null,null,{"$f":"IF(Z24=\"\",\"\",VLOOKUP(Z24,side[],2,FALSE))","v":""},null,null,null,{"$f":"IF(AD24=\"\",\"\",VLOOKUP(AD24,Install_reason[],2,FALSE))","v":""},null,{"$f":"IF(AF24=\"\",\"\",VLOOKUP(AF24,status[],2,FALSE))","v":""},null,null,{"$f":"IF(AI24=\"\",\"\",VLOOKUP(AI24,asset_owner[],2,FALSE))","v":""},null,null,null,null,{"$f":"IF(AN24=\"\",\"\",VLOOKUP(AN24,gps_method[],2,FALSE))","v":""},null,{"$f":"IF(AP24=\"\",\"\",VLOOKUP(AP24,risk_likelihood[],2,FALSE))","v":""},null,{"$f":"IF(AR24=\"\",\"\",VLOOKUP(AR24,risk_consequence[],2,FALSE))","v":""},null,{"$f":"IF(AT24=\"\",\"\",VLOOKUP(AT24,risk[],2,FALSE))","v":""},null,{"$f":"IF(AV24=\"\",\"\",VLOOKUP(AV24,rul_reset[],2,FALSE))","v":""},null,{"$f":"IF(AX24=\"\",\"\",VLOOKUP(AX24,use_default_rc[],2,FALSE))","v":""},null,{"$f":"IF(AZ24=\"\",\"\",VLOOKUP(AZ24,condition[],2,FALSE))","v":""},null,null,{"$f":"IF(BC24=\"\",\"\",VLOOKUP(BC24,Organisation[],2,FALSE))","v":""}]
["null",null,null,null,{"$f":"IF(D25=\"\",\"\",VLOOKUP(D25,Material[],2,FALSE))","v":""},null,{"$f":"IF(F25=\"\",\"\",VLOOKUP(F25,shape[],2,FALSE))","v":""},null,{"$f":"IF(H25=\"\",\"\",VLOOKUP(H25,make[],2,FALSE))","v":""},null,{"$f":"IF(J25=\"\",\"\",VLOOKUP(J25,mounting_type[],2,FALSE))","v":""},null,{"$f":"IF(L25=\"\",\"\",VLOOKUP(L25,attachment[],2,FALSE))","v":""},null,{"$f":"IF(N25=\"\",\"\",VLOOKUP(N25,purpose[],2,FALSE))","v":""},null,{"$f":"IF(P25=\"\",\"\",VLOOKUP(P25,coating[],2,FALSE))","v":""},null,{"$f":"IF(R25=\"\",\"\",VLOOKUP(R25,pole_in_use[],2,FALSE))","v":""},null,{"$f":"IF(T25=\"\",\"\",VLOOKUP(T25,pole_control[],2,FALSE))","v":""},null,{"$f":"IF(V25=\"\",\"\",VLOOKUP(V25,power_company[],2,FALSE))","v":""},null,null,null,{"$f":"IF(Z25=\"\",\"\",VLOOKUP(Z25,side[],2,FALSE))","v":""},null,null,null,{"$f":"IF(AD25=\"\",\"\",VLOOKUP(AD25,Install_reason[],2,FALSE))","v":""},null,{"$f":"IF(AF25=\"\",\"\",VLOOKUP(AF25,status[],2,FALSE))","v":""},null,null,{"$f":"IF(AI25=\"\",\"\",VLOOKUP(AI25,asset_owner[],2,FALSE))","v":""},null,null,null,null,{"$f":"IF(AN25=\"\",\"\",VLOOKUP(AN25,gps_method[],2,FALSE))","v":""},null,{"$f":"IF(AP25=\"\",\"\",VLOOKUP(AP25,risk_likelihood[],2,FALSE))","v":""},null,{"$f":"IF(AR25=\"\",\"\",VLOOKUP(AR25,risk_consequence[],2,FALSE))","v":""},null,{"$f":"IF(AT25=\"\",\"\",VLOOKUP(AT25,risk[],2,FALSE))","v":""},null,{"$f":"IF(AV25=\"\",\"\",VLOOKUP(AV25,rul_reset[],2,FALSE))","v":""},null,{"$f":"IF(AX25=\"\",\"\",VLOOKUP(AX25,use_default_rc[],2,FALSE))","v":""},null,{"$f":"IF(AZ25=\"\",\"\",VLOOKUP(AZ25,condition[],2,FALSE))","v":""},null,null,{"$f":"IF(BC25=\"\",\"\",VLOOKUP(BC25,Organisation[],2,FALSE))","v":""}]
["null",null,null,null,{"$f":"IF(D26=\"\",\"\",VLOOKUP(D26,Material[],2,FALSE))","v":""},null,{"$f":"IF(F26=\"\",\"\",VLOOKUP(F26,shape[],2,FALSE))","v":""},null,{"$f":"IF(H26=\"\",\"\",VLOOKUP(H26,make[],2,FALSE))","v":""},null,{"$f":"IF(J26=\"\",\"\",VLOOKUP(J26,mounting_type[],2,FALSE))","v":""},null,{"$f":"IF(L26=\"\",\"\",VLOOKUP(L26,attachment[],2,FALSE))","v":""},null,{"$f":"IF(N26=\"\",\"\",VLOOKUP(N26,purpose[],2,FALSE))","v":""},null,{"$f":"IF(P26=\"\",\"\",VLOOKUP(P26,coating[],2,FALSE))","v":""},null,{"$f":"IF(R26=\"\",\"\",VLOOKUP(R26,pole_in_use[],2,FALSE))","v":""},null,{"$f":"IF(T26=\"\",\"\",VLOOKUP(T26,pole_control[],2,FALSE))","v":""},null,{"$f":"IF(V26=\"\",\"\",VLOOKUP(V26,power_company[],2,FALSE))","v":""},null,null,null,{"$f":"IF(Z26=\"\",\"\",VLOOKUP(Z26,side[],2,FALSE))","v":""},null,null,null,{"$f":"IF(AD26=\"\",\"\",VLOOKUP(AD26,Install_reason[],2,FALSE))","v":""},null,{"$f":"IF(AF26=\"\",\"\",VLOOKUP(AF26,status[],2,FALSE))","v":""},null,null,{"$f":"IF(AI26=\"\",\"\",VLOOKUP(AI26,asset_owner[],2,FALSE))","v":""},null,null,null,null,{"$f":"IF(AN26=\"\",\"\",VLOOKUP(AN26,gps_method[],2,FALSE))","v":""},null,{"$f":"IF(AP26=\"\",\"\",VLOOKUP(AP26,risk_likelihood[],2,FALSE))","v":""},null,{"$f":"IF(AR26=\"\",\"\",VLOOKUP(AR26,risk_consequence[],2,FALSE))","v":""},null,{"$f":"IF(AT26=\"\",\"\",VLOOKUP(AT26,risk[],2,FALSE))","v":""},null,{"$f":"IF(AV26=\"\",\"\",VLOOKUP(AV26,rul_reset[],2,FALSE))","v":""},null,{"$f":"IF(AX26=\"\",\"\",VLOOKUP(AX26,use_default_rc[],2,FALSE))","v":""},null,{"$f":"IF(AZ26=\"\",\"\",VLOOKUP(AZ26,condition[],2,FALSE))","v":""},null,null,{"$f":"IF(BC26=\"\",\"\",VLOOKUP(BC26,Organisation[],2,FALSE))","v":""}]
["null",null,null,null,{"$f":"IF(D27=\"\",\"\",VLOOKUP(D27,Material[],2,FALSE))","v":""},null,{"$f":"IF(F27=\"\",\"\",VLOOKUP(F27,shape[],2,FALSE))","v":""},null,{"$f":"IF(H27=\"\",\"\",VLOOKUP(H27,make[],2,FALSE))","v":""},null,{"$f":"IF(J27=\"\",\"\",VLOOKUP(J27,mounting_type[],2,FALSE))","v":""},null,{"$f":"IF(L27=\"\",\"\",VLOOKUP(L27,attachment[],2,FALSE))","v":""},null,{"$f":"IF(N27=\"\",\"\",VLOOKUP(N27,purpose[],2,FALSE))","v":""},null,{"$f":"IF(P27=\"\",\"\",VLOOKUP(P27,coating[],2,FALSE))","v":""},null,{"$f":"IF(R27=\"\",\"\",VLOOKUP(R27,pole_in_use[],2,FALSE))","v":""},null,{"$f":"IF(T27=\"\",\"\",VLOOKUP(T27,pole_control[],2,FALSE))","v":""},null,{"$f":"IF(V27=\"\",\"\",VLOOKUP(V27,power_company[],2,FALSE))","v":""},null,null,null,{"$f":"IF(Z27=\"\",\"\",VLOOKUP(Z27,side[],2,FALSE))","v":""},null,null,null,{"$f":"IF(AD27=\"\",\"\",VLOOKUP(AD27,Install_reason[],2,FALSE))","v":""},null,{"$f":"IF(AF27=\"\",\"\",VLOOKUP(AF27,status[],2,FALSE))","v":""},null,null,{"$f":"IF(AI27=\"\",\"\",VLOOKUP(AI27,asset_owner[],2,FALSE))","v":""},null,null,null,null,{"$f":"IF(AN27=\"\",\"\",VLOOKUP(AN27,gps_method[],2,FALSE))","v":""},null,{"$f":"IF(AP27=\"\",\"\",VLOOKUP(AP27,risk_likelihood[],2,FALSE))","v":""},null,{"$f":"IF(AR27=\"\",\"\",VLOOKUP(AR27,risk_consequence[],2,FALSE))","v":""},null,{"$f":"IF(AT27=\"\",\"\",VLOOKUP(AT27,risk[],2,FALSE))","v":""},null,{"$f":"IF(AV27=\"\",\"\",VLOOKUP(AV27,rul_reset[],2,FALSE))","v":""},null,{"$f":"IF(AX27=\"\",\"\",VLOOKUP(AX27,use_default_rc[],2,FALSE))","v":""},null,{"$f":"IF(AZ27=\"\",\"\",VLOOKUP(AZ27,condition[],2,FALSE))","v":""},null,null,{"$f":"IF(BC27=\"\",\"\",VLOOKUP(BC27,Organisation[],2,FALSE))","v":""}]
["null",null,null,null,{"$f":"IF(D28=\"\",\"\",VLOOKUP(D28,Material[],2,FALSE))","v":""},null,{"$f":"IF(F28=\"\",\"\",VLOOKUP(F28,shape[],2,FALSE))","v":""},null,{"$f":"IF(H28=\"\",\"\",VLOOKUP(H28,make[],2,FALSE))","v":""},null,{"$f":"IF(J28=\"\",\"\",VLOOKUP(J28,mounting_type[],2,FALSE))","v":""},null,{"$f":"IF(L28=\"\",\"\",VLOOKUP(L28,attachment[],2,FALSE))","v":""},null,{"$f":"IF(N28=\"\",\"\",VLOOKUP(N28,purpose[],2,FALSE))","v":""},null,{"$f":"IF(P28=\"\",\"\",VLOOKUP(P28,coating[],2,FALSE))","v":""},null,{"$f":"IF(R28=\"\",\"\",VLOOKUP(R28,pole_in_use[],2,FALSE))","v":""},null,{"$f":"IF(T28=\"\",\"\",VLOOKUP(T28,pole_control[],2,FALSE))","v":""},null,{"$f":"IF(V28=\"\",\"\",VLOOKUP(V28,power_company[],2,FALSE))","v":""},null,null,null,{"$f":"IF(Z28=\"\",\"\",VLOOKUP(Z28,side[],2,FALSE))","v":""},null,null,null,{"$f":"IF(AD28=\"\",\"\",VLOOKUP(AD28,Install_reason[],2,FALSE))","v":""},null,{"$f":"IF(AF28=\"\",\"\",VLOOKUP(AF28,status[],2,FALSE))","v":""},null,null,{"$f":"IF(AI28=\"\",\"\",VLOOKUP(AI28,asset_owner[],2,FALSE))","v":""},null,null,null,null,{"$f":"IF(AN28=\"\",\"\",VLOOKUP(AN28,gps_method[],2,FALSE))","v":""},null,{"$f":"IF(AP28=\"\",\"\",VLOOKUP(AP28,risk_likelihood[],2,FALSE))","v":""},null,{"$f":"IF(AR28=\"\",\"\",VLOOKUP(AR28,risk_consequence[],2,FALSE))","v":""},null,{"$f":"IF(AT28=\"\",\"\",VLOOKUP(AT28,risk[],2,FALSE))","v":""},null,{"$f":"IF(AV28=\"\",\"\",VLOOKUP(AV28,rul_reset[],2,FALSE))","v":""},null,{"$f":"IF(AX28=\"\",\"\",VLOOKUP(AX28,use_default_rc[],2,FALSE))","v":""},null,{"$f":"IF(AZ28=\"\",\"\",VLOOKUP(AZ28,condition[],2,FALSE))","v":""},null,null,{"$f":"IF(BC28=\"\",\"\",VLOOKUP(BC28,Organisation[],2,FALSE))","v":""}]
["null",null,null,null,{"$f":"IF(D29=\"\",\"\",VLOOKUP(D29,Material[],2,FALSE))","v":""},null,{"$f":"IF(F29=\"\",\"\",VLOOKUP(F29,shape[],2,FALSE))","v":""},null,{"$f":"IF(H29=\"\",\"\",VLOOKUP(H29,make[],2,FALSE))","v":""},null,{"$f":"IF(J29=\"\",\"\",VLOOKUP(J29,mounting_type[],2,FALSE))","v":""},null,{"$f":"IF(L29=\"\",\"\",VLOOKUP(L29,attachment[],2,FALSE))","v":""},null,{"$f":"IF(N29=\"\",\"\",VLOOKUP(N29,purpose[],2,FALSE))","v":""},null,{"$f":"IF(P29=\"\",\"\",VLOOKUP(P29,coating[],2,FALSE))","v":""},null,{"$f":"IF(R29=\"\",\"\",VLOOKUP(R29,pole_in_use[],2,FALSE))","v":""},null,{"$f":"IF(T29=\"\",\"\",VLOOKUP(T29,pole_control[],2,FALSE))","v":""},null,{"$f":"IF(V29=\"\",\"\",VLOOKUP(V29,power_company[],2,FALSE))","v":""},null,null,null,{"$f":"IF(Z29=\"\",\"\",VLOOKUP(Z29,side[],2,FALSE))","v":""},null,null,null,{"$f":"IF(AD29=\"\",\"\",VLOOKUP(AD29,Install_reason[],2,FALSE))","v":""},null,{"$f":"IF(AF29=\"\",\"\",VLOOKUP(AF29,status[],2,FALSE))","v":""},null,null,{"$f":"IF(AI29=\"\",\"\",VLOOKUP(AI29,asset_owner[],2,FALSE))","v":""},null,null,null,null,{"$f":"IF(AN29=\"\",\"\",VLOOKUP(AN29,gps_method[],2,FALSE))","v":""},null,{"$f":"IF(AP29=\"\",\"\",VLOOKUP(AP29,risk_likelihood[],2,FALSE))","v":""},null,{"$f":"IF(AR29=\"\",\"\",VLOOKUP(AR29,risk_consequence[],2,FALSE))","v":""},null,{"$f":"IF(AT29=\"\",\"\",VLOOKUP(AT29,risk[],2,FALSE))","v":""},null,{"$f":"IF(AV29=\"\",\"\",VLOOKUP(AV29,rul_reset[],2,FALSE))","v":""},null,{"$f":"IF(AX29=\"\",\"\",VLOOKUP(AX29,use_default_rc[],2,FALSE))","v":""},null,{"$f":"IF(AZ29=\"\",\"\",VLOOKUP(AZ29,condition[],2,FALSE))","v":""},null,null,{"$f":"IF(BC29=\"\",\"\",VLOOKUP(BC29,Organisation[],2,FALSE))","v":""}]
["null",null,null,null,{"$f":"IF(D30=\"\",\"\",VLOOKUP(D30,Material[],2,FALSE))","v":""},null,{"$f":"IF(F30=\"\",\"\",VLOOKUP(F30,shape[],2,FALSE))","v":""},null,{"$f":"IF(H30=\"\",\"\",VLOOKUP(H30,make[],2,FALSE))","v":""},null,{"$f":"IF(J30=\"\",\"\",VLOOKUP(J30,mounting_type[],2,FALSE))","v":""},null,{"$f":"IF(L30=\"\",\"\",VLOOKUP(L30,attachment[],2,FALSE))","v":""},null,{"$f":"IF(N30=\"\",\"\",VLOOKUP(N30,purpose[],2,FALSE))","v":""},null,{"$f":"IF(P30=\"\",\"\",VLOOKUP(P30,coating[],2,FALSE))","v":""},null,{"$f":"IF(R30=\"\",\"\",VLOOKUP(R30,pole_in_use[],2,FALSE))","v":""},null,{"$f":"IF(T30=\"\",\"\",VLOOKUP(T30,pole_control[],2,FALSE))","v":""},null,{"$f":"IF(V30=\"\",\"\",VLOOKUP(V30,power_company[],2,FALSE))","v":""},null,null,null,{"$f":"IF(Z30=\"\",\"\",VLOOKUP(Z30,side[],2,FALSE))","v":""},null,null,null,{"$f":"IF(AD30=\"\",\"\",VLOOKUP(AD30,Install_reason[],2,FALSE))","v":""},null,{"$f":"IF(AF30=\"\",\"\",VLOOKUP(AF30,status[],2,FALSE))","v":""},null,null,{"$f":"IF(AI30=\"\",\"\",VLOOKUP(AI30,asset_owner[],2,FALSE))","v":""},null,null,null,null,{"$f":"IF(AN30=\"\",\"\",VLOOKUP(AN30,gps_method[],2,FALSE))","v":""},null,{"$f":"IF(AP30=\"\",\"\",VLOOKUP(AP30,risk_likelihood[],2,FALSE))","v":""},null,{"$f":"IF(AR30=\"\",\"\",VLOOKUP(AR30,risk_consequence[],2,FALSE))","v":""},null,{"$f":"IF(AT30=\"\",\"\",VLOOKUP(AT30,risk[],2,FALSE))","v":""},null,{"$f":"IF(AV30=\"\",\"\",VLOOKUP(AV30,rul_reset[],2,FALSE))","v":""},null,{"$f":"IF(AX30=\"\",\"\",VLOOKUP(AX30,use_default_rc[],2,FALSE))","v":""},null,{"$f":"IF(AZ30=\"\",\"\",VLOOKUP(AZ30,condition[],2,FALSE))","v":""},null,null,{"$f":"IF(BC30=\"\",\"\",VLOOKUP(BC30,Organisation[],2,FALSE))","v":""}]
["null",null,null,null,{"$f":"IF(D31=\"\",\"\",VLOOKUP(D31,Material[],2,FALSE))","v":""},null,{"$f":"IF(F31=\"\",\"\",VLOOKUP(F31,shape[],2,FALSE))","v":""},null,{"$f":"IF(H31=\"\",\"\",VLOOKUP(H31,make[],2,FALSE))","v":""},null,{"$f":"IF(J31=\"\",\"\",VLOOKUP(J31,mounting_type[],2,FALSE))","v":""},null,{"$f":"IF(L31=\"\",\"\",VLOOKUP(L31,attachment[],2,FALSE))","v":""},null,{"$f":"IF(N31=\"\",\"\",VLOOKUP(N31,purpose[],2,FALSE))","v":""},null,{"$f":"IF(P31=\"\",\"\",VLOOKUP(P31,coating[],2,FALSE))","v":""},null,{"$f":"IF(R31=\"\",\"\",VLOOKUP(R31,pole_in_use[],2,FALSE))","v":""},null,{"$f":"IF(T31=\"\",\"\",VLOOKUP(T31,pole_control[],2,FALSE))","v":""},null,{"$f":"IF(V31=\"\",\"\",VLOOKUP(V31,power_company[],2,FALSE))","v":""},null,null,null,{"$f":"IF(Z31=\"\",\"\",VLOOKUP(Z31,side[],2,FALSE))","v":""},null,null,null,{"$f":"IF(AD31=\"\",\"\",VLOOKUP(AD31,Install_reason[],2,FALSE))","v":""},null,{"$f":"IF(AF31=\"\",\"\",VLOOKUP(AF31,status[],2,FALSE))","v":""},null,null,{"$f":"IF(AI31=\"\",\"\",VLOOKUP(AI31,asset_owner[],2,FALSE))","v":""},null,null,null,null,{"$f":"IF(AN31=\"\",\"\",VLOOKUP(AN31,gps_method[],2,FALSE))","v":""},null,{"$f":"IF(AP31=\"\",\"\",VLOOKUP(AP31,risk_likelihood[],2,FALSE))","v":""},null,{"$f":"IF(AR31=\"\",\"\",VLOOKUP(AR31,risk_consequence[],2,FALSE))","v":""},null,{"$f":"IF(AT31=\"\",\"\",VLOOKUP(AT31,risk[],2,FALSE))","v":""},null,{"$f":"IF(AV31=\"\",\"\",VLOOKUP(AV31,rul_reset[],2,FALSE))","v":""},null,{"$f":"IF(AX31=\"\",\"\",VLOOKUP(AX31,use_default_rc[],2,FALSE))","v":""},null,{"$f":"IF(AZ31=\"\",\"\",VLOOKUP(AZ31,condition[],2,FALSE))","v":""},null,null,{"$f":"IF(BC31=\"\",\"\",VLOOKUP(BC31,Organisation[],2,FALSE))","v":""}]
["null",null,null,null,{"$f":"IF(D32=\"\",\"\",VLOOKUP(D32,Material[],2,FALSE))","v":""},null,{"$f":"IF(F32=\"\",\"\",VLOOKUP(F32,shape[],2,FALSE))","v":""},null,{"$f":"IF(H32=\"\",\"\",VLOOKUP(H32,make[],2,FALSE))","v":""},null,{"$f":"IF(J32=\"\",\"\",VLOOKUP(J32,mounting_type[],2,FALSE))","v":""},null,{"$f":"IF(L32=\"\",\"\",VLOOKUP(L32,attachment[],2,FALSE))","v":""},null,{"$f":"IF(N32=\"\",\"\",VLOOKUP(N32,purpose[],2,FALSE))","v":""},null,{"$f":"IF(P32=\"\",\"\",VLOOKUP(P32,coating[],2,FALSE))","v":""},null,{"$f":"IF(R32=\"\",\"\",VLOOKUP(R32,pole_in_use[],2,FALSE))","v":""},null,{"$f":"IF(T32=\"\",\"\",VLOOKUP(T32,pole_control[],2,FALSE))","v":""},null,{"$f":"IF(V32=\"\",\"\",VLOOKUP(V32,power_company[],2,FALSE))","v":""},null,null,null,{"$f":"IF(Z32=\"\",\"\",VLOOKUP(Z32,side[],2,FALSE))","v":""},null,null,null,{"$f":"IF(AD32=\"\",\"\",VLOOKUP(AD32,Install_reason[],2,FALSE))","v":""},null,{"$f":"IF(AF32=\"\",\"\",VLOOKUP(AF32,status[],2,FALSE))","v":""},null,null,{"$f":"IF(AI32=\"\",\"\",VLOOKUP(AI32,asset_owner[],2,FALSE))","v":""},null,null,null,null,{"$f":"IF(AN32=\"\",\"\",VLOOKUP(AN32,gps_method[],2,FALSE))","v":""},null,{"$f":"IF(AP32=\"\",\"\",VLOOKUP(AP32,risk_likelihood[],2,FALSE))","v":""},null,{"$f":"IF(AR32=\"\",\"\",VLOOKUP(AR32,risk_consequence[],2,FALSE))","v":""},null,{"$f":"IF(AT32=\"\",\"\",VLOOKUP(AT32,risk[],2,FALSE))","v":""},null,{"$f":"IF(AV32=\"\",\"\",VLOOKUP(AV32,rul_reset[],2,FALSE))","v":""},null,{"$f":"IF(AX32=\"\",\"\",VLOOKUP(AX32,use_default_rc[],2,FALSE))","v":""},null,{"$f":"IF(AZ32=\"\",\"\",VLOOKUP(AZ32,condition[],2,FALSE))","v":""},null,null,{"$f":"IF(BC32=\"\",\"\",VLOOKUP(BC32,Organisation[],2,FALSE))","v":""}]
["null",null,null,null,{"$f":"IF(D33=\"\",\"\",VLOOKUP(D33,Material[],2,FALSE))","v":""},null,{"$f":"IF(F33=\"\",\"\",VLOOKUP(F33,shape[],2,FALSE))","v":""},null,{"$f":"IF(H33=\"\",\"\",VLOOKUP(H33,make[],2,FALSE))","v":""},null,{"$f":"IF(J33=\"\",\"\",VLOOKUP(J33,mounting_type[],2,FALSE))","v":""},null,{"$f":"IF(L33=\"\",\"\",VLOOKUP(L33,attachment[],2,FALSE))","v":""},null,{"$f":"IF(N33=\"\",\"\",VLOOKUP(N33,purpose[],2,FALSE))","v":""},null,{"$f":"IF(P33=\"\",\"\",VLOOKUP(P33,coating[],2,FALSE))","v":""},null,{"$f":"IF(R33=\"\",\"\",VLOOKUP(R33,pole_in_use[],2,FALSE))","v":""},null,{"$f":"IF(T33=\"\",\"\",VLOOKUP(T33,pole_control[],2,FALSE))","v":""},null,{"$f":"IF(V33=\"\",\"\",VLOOKUP(V33,power_company[],2,FALSE))","v":""},null,null,null,{"$f":"IF(Z33=\"\",\"\",VLOOKUP(Z33,side[],2,FALSE))","v":""},null,null,null,{"$f":"IF(AD33=\"\",\"\",VLOOKUP(AD33,Install_reason[],2,FALSE))","v":""},null,{"$f":"IF(AF33=\"\",\"\",VLOOKUP(AF33,status[],2,FALSE))","v":""},null,null,{"$f":"IF(AI33=\"\",\"\",VLOOKUP(AI33,asset_owner[],2,FALSE))","v":""},null,null,null,null,{"$f":"IF(AN33=\"\",\"\",VLOOKUP(AN33,gps_method[],2,FALSE))","v":""},null,{"$f":"IF(AP33=\"\",\"\",VLOOKUP(AP33,risk_likelihood[],2,FALSE))","v":""},null,{"$f":"IF(AR33=\"\",\"\",VLOOKUP(AR33,risk_consequence[],2,FALSE))","v":""},null,{"$f":"IF(AT33=\"\",\"\",VLOOKUP(AT33,risk[],2,FALSE))","v":""},null,{"$f":"IF(AV33=\"\",\"\",VLOOKUP(AV33,rul_reset[],2,FALSE))","v":""},null,{"$f":"IF(AX33=\"\",\"\",VLOOKUP(AX33,use_default_rc[],2,FALSE))","v":""},null,{"$f":"IF(AZ33=\"\",\"\",VLOOKUP(AZ33,condition[],2,FALSE))","v":""},null,null,{"$f":"IF(BC33=\"\",\"\",VLOOKUP(BC33,Organisation[],2,FALSE))","v":""}]
["null",null,null,null,{"$f":"IF(D34=\"\",\"\",VLOOKUP(D34,Material[],2,FALSE))","v":""},null,{"$f":"IF(F34=\"\",\"\",VLOOKUP(F34,shape[],2,FALSE))","v":""},null,{"$f":"IF(H34=\"\",\"\",VLOOKUP(H34,make[],2,FALSE))","v":""},null,{"$f":"IF(J34=\"\",\"\",VLOOKUP(J34,mounting_type[],2,FALSE))","v":""},null,{"$f":"IF(L34=\"\",\"\",VLOOKUP(L34,attachment[],2,FALSE))","v":""},null,{"$f":"IF(N34=\"\",\"\",VLOOKUP(N34,purpose[],2,FALSE))","v":""},null,{"$f":"IF(P34=\"\",\"\",VLOOKUP(P34,coating[],2,FALSE))","v":""},null,{"$f":"IF(R34=\"\",\"\",VLOOKUP(R34,pole_in_use[],2,FALSE))","v":""},null,{"$f":"IF(T34=\"\",\"\",VLOOKUP(T34,pole_control[],2,FALSE))","v":""},null,{"$f":"IF(V34=\"\",\"\",VLOOKUP(V34,power_company[],2,FALSE))","v":""},null,null,null,{"$f":"IF(Z34=\"\",\"\",VLOOKUP(Z34,side[],2,FALSE))","v":""},null,null,null,{"$f":"IF(AD34=\"\",\"\",VLOOKUP(AD34,Install_reason[],2,FALSE))","v":""},null,{"$f":"IF(AF34=\"\",\"\",VLOOKUP(AF34,status[],2,FALSE))","v":""},null,null,{"$f":"IF(AI34=\"\",\"\",VLOOKUP(AI34,asset_owner[],2,FALSE))","v":""},null,null,null,null,{"$f":"IF(AN34=\"\",\"\",VLOOKUP(AN34,gps_method[],2,FALSE))","v":""},null,{"$f":"IF(AP34=\"\",\"\",VLOOKUP(AP34,risk_likelihood[],2,FALSE))","v":""},null,{"$f":"IF(AR34=\"\",\"\",VLOOKUP(AR34,risk_consequence[],2,FALSE))","v":""},null,{"$f":"IF(AT34=\"\",\"\",VLOOKUP(AT34,risk[],2,FALSE))","v":""},null,{"$f":"IF(AV34=\"\",\"\",VLOOKUP(AV34,rul_reset[],2,FALSE))","v":""},null,{"$f":"IF(AX34=\"\",\"\",VLOOKUP(AX34,use_default_rc[],2,FALSE))","v":""},null,{"$f":"IF(AZ34=\"\",\"\",VLOOKUP(AZ34,condition[],2,FALSE))","v":""},null,null,{"$f":"IF(BC34=\"\",\"\",VLOOKUP(BC34,Organisation[],2,FALSE))","v":""}]
["null",null,null,null,{"$f":"IF(D35=\"\",\"\",VLOOKUP(D35,Material[],2,FALSE))","v":""},null,{"$f":"IF(F35=\"\",\"\",VLOOKUP(F35,shape[],2,FALSE))","v":""},null,{"$f":"IF(H35=\"\",\"\",VLOOKUP(H35,make[],2,FALSE))","v":""},null,{"$f":"IF(J35=\"\",\"\",VLOOKUP(J35,mounting_type[],2,FALSE))","v":""},null,{"$f":"IF(L35=\"\",\"\",VLOOKUP(L35,attachment[],2,FALSE))","v":""},null,{"$f":"IF(N35=\"\",\"\",VLOOKUP(N35,purpose[],2,FALSE))","v":""},null,{"$f":"IF(P35=\"\",\"\",VLOOKUP(P35,coating[],2,FALSE))","v":""},null,{"$f":"IF(R35=\"\",\"\",VLOOKUP(R35,pole_in_use[],2,FALSE))","v":""},null,{"$f":"IF(T35=\"\",\"\",VLOOKUP(T35,pole_control[],2,FALSE))","v":""},null,{"$f":"IF(V35=\"\",\"\",VLOOKUP(V35,power_company[],2,FALSE))","v":""},null,null,null,{"$f":"IF(Z35=\"\",\"\",VLOOKUP(Z35,side[],2,FALSE))","v":""},null,null,null,{"$f":"IF(AD35=\"\",\"\",VLOOKUP(AD35,Install_reason[],2,FALSE))","v":""},null,{"$f":"IF(AF35=\"\",\"\",VLOOKUP(AF35,status[],2,FALSE))","v":""},null,null,{"$f":"IF(AI35=\"\",\"\",VLOOKUP(AI35,asset_owner[],2,FALSE))","v":""},null,null,null,null,{"$f":"IF(AN35=\"\",\"\",VLOOKUP(AN35,gps_method[],2,FALSE))","v":""},null,{"$f":"IF(AP35=\"\",\"\",VLOOKUP(AP35,risk_likelihood[],2,FALSE))","v":""},null,{"$f":"IF(AR35=\"\",\"\",VLOOKUP(AR35,risk_consequence[],2,FALSE))","v":""},null,{"$f":"IF(AT35=\"\",\"\",VLOOKUP(AT35,risk[],2,FALSE))","v":""},null,{"$f":"IF(AV35=\"\",\"\",VLOOKUP(AV35,rul_reset[],2,FALSE))","v":""},null,{"$f":"IF(AX35=\"\",\"\",VLOOKUP(AX35,use_default_rc[],2,FALSE))","v":""},null,{"$f":"IF(AZ35=\"\",\"\",VLOOKUP(AZ35,condition[],2,FALSE))","v":""},null,null,{"$f":"IF(BC35=\"\",\"\",VLOOKUP(BC35,Organisation[],2,FALSE))","v":""}]
["null",null,null,null,{"$f":"IF(D36=\"\",\"\",VLOOKUP(D36,Material[],2,FALSE))","v":""},null,{"$f":"IF(F36=\"\",\"\",VLOOKUP(F36,shape[],2,FALSE))","v":""},null,{"$f":"IF(H36=\"\",\"\",VLOOKUP(H36,make[],2,FALSE))","v":""},null,{"$f":"IF(J36=\"\",\"\",VLOOKUP(J36,mounting_type[],2,FALSE))","v":""},null,{"$f":"IF(L36=\"\",\"\",VLOOKUP(L36,attachment[],2,FALSE))","v":""},null,{"$f":"IF(N36=\"\",\"\",VLOOKUP(N36,purpose[],2,FALSE))","v":""},null,{"$f":"IF(P36=\"\",\"\",VLOOKUP(P36,coating[],2,FALSE))","v":""},null,{"$f":"IF(R36=\"\",\"\",VLOOKUP(R36,pole_in_use[],2,FALSE))","v":""},null,{"$f":"IF(T36=\"\",\"\",VLOOKUP(T36,pole_control[],2,FALSE))","v":""},null,{"$f":"IF(V36=\"\",\"\",VLOOKUP(V36,power_company[],2,FALSE))","v":""},null,null,null,{"$f":"IF(Z36=\"\",\"\",VLOOKUP(Z36,side[],2,FALSE))","v":""},null,null,null,{"$f":"IF(AD36=\"\",\"\",VLOOKUP(AD36,Install_reason[],2,FALSE))","v":""},null,{"$f":"IF(AF36=\"\",\"\",VLOOKUP(AF36,status[],2,FALSE))","v":""},null,null,{"$f":"IF(AI36=\"\",\"\",VLOOKUP(AI36,asset_owner[],2,FALSE))","v":""},null,null,null,null,{"$f":"IF(AN36=\"\",\"\",VLOOKUP(AN36,gps_method[],2,FALSE))","v":""},null,{"$f":"IF(AP36=\"\",\"\",VLOOKUP(AP36,risk_likelihood[],2,FALSE))","v":""},null,{"$f":"IF(AR36=\"\",\"\",VLOOKUP(AR36,risk_consequence[],2,FALSE))","v":""},null,{"$f":"IF(AT36=\"\",\"\",VLOOKUP(AT36,risk[],2,FALSE))","v":""},null,{"$f":"IF(AV36=\"\",\"\",VLOOKUP(AV36,rul_reset[],2,FALSE))","v":""},null,{"$f":"IF(AX36=\"\",\"\",VLOOKUP(AX36,use_default_rc[],2,FALSE))","v":""},null,{"$f":"IF(AZ36=\"\",\"\",VLOOKUP(AZ36,condition[],2,FALSE))","v":""},null,null,{"$f":"IF(BC36=\"\",\"\",VLOOKUP(BC36,Organisation[],2,FALSE))","v":""}]
["null",null,null,null,{"$f":"IF(D37=\"\",\"\",VLOOKUP(D37,Material[],2,FALSE))","v":""},null,{"$f":"IF(F37=\"\",\"\",VLOOKUP(F37,shape[],2,FALSE))","v":""},null,{"$f":"IF(H37=\"\",\"\",VLOOKUP(H37,make[],2,FALSE))","v":""},null,{"$f":"IF(J37=\"\",\"\",VLOOKUP(J37,mounting_type[],2,FALSE))","v":""},null,{"$f":"IF(L37=\"\",\"\",VLOOKUP(L37,attachment[],2,FALSE))","v":""},null,{"$f":"IF(N37=\"\",\"\",VLOOKUP(N37,purpose[],2,FALSE))","v":""},null,{"$f":"IF(P37=\"\",\"\",VLOOKUP(P37,coating[],2,FALSE))","v":""},null,{"$f":"IF(R37=\"\",\"\",VLOOKUP(R37,pole_in_use[],2,FALSE))","v":""},null,{"$f":"IF(T37=\"\",\"\",VLOOKUP(T37,pole_control[],2,FALSE))","v":""},null,{"$f":"IF(V37=\"\",\"\",VLOOKUP(V37,power_company[],2,FALSE))","v":""},null,null,null,{"$f":"IF(Z37=\"\",\"\",VLOOKUP(Z37,side[],2,FALSE))","v":""},null,null,null,{"$f":"IF(AD37=\"\",\"\",VLOOKUP(AD37,Install_reason[],2,FALSE))","v":""},null,{"$f":"IF(AF37=\"\",\"\",VLOOKUP(AF37,status[],2,FALSE))","v":""},null,null,{"$f":"IF(AI37=\"\",\"\",VLOOKUP(AI37,asset_owner[],2,FALSE))","v":""},null,null,null,null,{"$f":"IF(AN37=\"\",\"\",VLOOKUP(AN37,gps_method[],2,FALSE))","v":""},null,{"$f":"IF(AP37=\"\",\"\",VLOOKUP(AP37,risk_likelihood[],2,FALSE))","v":""},null,{"$f":"IF(AR37=\"\",\"\",VLOOKUP(AR37,risk_consequence[],2,FALSE))","v":""},null,{"$f":"IF(AT37=\"\",\"\",VLOOKUP(AT37,risk[],2,FALSE))","v":""},null,{"$f":"IF(AV37=\"\",\"\",VLOOKUP(AV37,rul_reset[],2,FALSE))","v":""},null,{"$f":"IF(AX37=\"\",\"\",VLOOKUP(AX37,use_default_rc[],2,FALSE))","v":""},null,{"$f":"IF(AZ37=\"\",\"\",VLOOKUP(AZ37,condition[],2,FALSE))","v":""},null,null,{"$f":"IF(BC37=\"\",\"\",VLOOKUP(BC37,Organisation[],2,FALSE))","v":""}]
["null",null,null,null,{"$f":"IF(D38=\"\",\"\",VLOOKUP(D38,Material[],2,FALSE))","v":""},null,{"$f":"IF(F38=\"\",\"\",VLOOKUP(F38,shape[],2,FALSE))","v":""},null,{"$f":"IF(H38=\"\",\"\",VLOOKUP(H38,make[],2,FALSE))","v":""},null,{"$f":"IF(J38=\"\",\"\",VLOOKUP(J38,mounting_type[],2,FALSE))","v":""},null,{"$f":"IF(L38=\"\",\"\",VLOOKUP(L38,attachment[],2,FALSE))","v":""},null,{"$f":"IF(N38=\"\",\"\",VLOOKUP(N38,purpose[],2,FALSE))","v":""},null,{"$f":"IF(P38=\"\",\"\",VLOOKUP(P38,coating[],2,FALSE))","v":""},null,{"$f":"IF(R38=\"\",\"\",VLOOKUP(R38,pole_in_use[],2,FALSE))","v":""},null,{"$f":"IF(T38=\"\",\"\",VLOOKUP(T38,pole_control[],2,FALSE))","v":""},null,{"$f":"IF(V38=\"\",\"\",VLOOKUP(V38,power_company[],2,FALSE))","v":""},null,null,null,{"$f":"IF(Z38=\"\",\"\",VLOOKUP(Z38,side[],2,FALSE))","v":""},null,null,null,{"$f":"IF(AD38=\"\",\"\",VLOOKUP(AD38,Install_reason[],2,FALSE))","v":""},null,{"$f":"IF(AF38=\"\",\"\",VLOOKUP(AF38,status[],2,FALSE))","v":""},null,null,{"$f":"IF(AI38=\"\",\"\",VLOOKUP(AI38,asset_owner[],2,FALSE))","v":""},null,null,null,null,{"$f":"IF(AN38=\"\",\"\",VLOOKUP(AN38,gps_method[],2,FALSE))","v":""},null,{"$f":"IF(AP38=\"\",\"\",VLOOKUP(AP38,risk_likelihood[],2,FALSE))","v":""},null,{"$f":"IF(AR38=\"\",\"\",VLOOKUP(AR38,risk_consequence[],2,FALSE))","v":""},null,{"$f":"IF(AT38=\"\",\"\",VLOOKUP(AT38,risk[],2,FALSE))","v":""},null,{"$f":"IF(AV38=\"\",\"\",VLOOKUP(AV38,rul_reset[],2,FALSE))","v":""},null,{"$f":"IF(AX38=\"\",\"\",VLOOKUP(AX38,use_default_rc[],2,FALSE))","v":""},null,{"$f":"IF(AZ38=\"\",\"\",VLOOKUP(AZ38,condition[],2,FALSE))","v":""},null,null,{"$f":"IF(BC38=\"\",\"\",VLOOKUP(BC38,Organisation[],2,FALSE))","v":""}]
["null",null,null,null,{"$f":"IF(D39=\"\",\"\",VLOOKUP(D39,Material[],2,FALSE))","v":""},null,{"$f":"IF(F39=\"\",\"\",VLOOKUP(F39,shape[],2,FALSE))","v":""},null,{"$f":"IF(H39=\"\",\"\",VLOOKUP(H39,make[],2,FALSE))","v":""},null,{"$f":"IF(J39=\"\",\"\",VLOOKUP(J39,mounting_type[],2,FALSE))","v":""},null,{"$f":"IF(L39=\"\",\"\",VLOOKUP(L39,attachment[],2,FALSE))","v":""},null,{"$f":"IF(N39=\"\",\"\",VLOOKUP(N39,purpose[],2,FALSE))","v":""},null,{"$f":"IF(P39=\"\",\"\",VLOOKUP(P39,coating[],2,FALSE))","v":""},null,{"$f":"IF(R39=\"\",\"\",VLOOKUP(R39,pole_in_use[],2,FALSE))","v":""},null,{"$f":"IF(T39=\"\",\"\",VLOOKUP(T39,pole_control[],2,FALSE))","v":""},null,{"$f":"IF(V39=\"\",\"\",VLOOKUP(V39,power_company[],2,FALSE))","v":""},null,null,null,{"$f":"IF(Z39=\"\",\"\",VLOOKUP(Z39,side[],2,FALSE))","v":""},null,null,null,{"$f":"IF(AD39=\"\",\"\",VLOOKUP(AD39,Install_reason[],2,FALSE))","v":""},null,{"$f":"IF(AF39=\"\",\"\",VLOOKUP(AF39,status[],2,FALSE))","v":""},null,null,{"$f":"IF(AI39=\"\",\"\",VLOOKUP(AI39,asset_owner[],2,FALSE))","v":""},null,null,null,null,{"$f":"IF(AN39=\"\",\"\",VLOOKUP(AN39,gps_method[],2,FALSE))","v":""},null,{"$f":"IF(AP39=\"\",\"\",VLOOKUP(AP39,risk_likelihood[],2,FALSE))","v":""},null,{"$f":"IF(AR39=\"\",\"\",VLOOKUP(AR39,risk_consequence[],2,FALSE))","v":""},null,{"$f":"IF(AT39=\"\",\"\",VLOOKUP(AT39,risk[],2,FALSE))","v":""},null,{"$f":"IF(AV39=\"\",\"\",VLOOKUP(AV39,rul_reset[],2,FALSE))","v":""},null,{"$f":"IF(AX39=\"\",\"\",VLOOKUP(AX39,use_default_rc[],2,FALSE))","v":""},null,{"$f":"IF(AZ39=\"\",\"\",VLOOKUP(AZ39,condition[],2,FALSE))","v":""},null,null,{"$f":"IF(BC39=\"\",\"\",VLOOKUP(BC39,Organisation[],2,FALSE))","v":""}]
["null",null,null,null,{"$f":"IF(D40=\"\",\"\",VLOOKUP(D40,Material[],2,FALSE))","v":""},null,{"$f":"IF(F40=\"\",\"\",VLOOKUP(F40,shape[],2,FALSE))","v":""},null,{"$f":"IF(H40=\"\",\"\",VLOOKUP(H40,make[],2,FALSE))","v":""},null,{"$f":"IF(J40=\"\",\"\",VLOOKUP(J40,mounting_type[],2,FALSE))","v":""},null,{"$f":"IF(L40=\"\",\"\",VLOOKUP(L40,attachment[],2,FALSE))","v":""},null,{"$f":"IF(N40=\"\",\"\",VLOOKUP(N40,purpose[],2,FALSE))","v":""},null,{"$f":"IF(P40=\"\",\"\",VLOOKUP(P40,coating[],2,FALSE))","v":""},null,{"$f":"IF(R40=\"\",\"\",VLOOKUP(R40,pole_in_use[],2,FALSE))","v":""},null,{"$f":"IF(T40=\"\",\"\",VLOOKUP(T40,pole_control[],2,FALSE))","v":""},null,{"$f":"IF(V40=\"\",\"\",VLOOKUP(V40,power_company[],2,FALSE))","v":""},null,null,null,{"$f":"IF(Z40=\"\",\"\",VLOOKUP(Z40,side[],2,FALSE))","v":""},null,null,null,{"$f":"IF(AD40=\"\",\"\",VLOOKUP(AD40,Install_reason[],2,FALSE))","v":""},null,{"$f":"IF(AF40=\"\",\"\",VLOOKUP(AF40,status[],2,FALSE))","v":""},null,null,{"$f":"IF(AI40=\"\",\"\",VLOOKUP(AI40,asset_owner[],2,FALSE))","v":""},null,null,null,null,{"$f":"IF(AN40=\"\",\"\",VLOOKUP(AN40,gps_method[],2,FALSE))","v":""},null,{"$f":"IF(AP40=\"\",\"\",VLOOKUP(AP40,risk_likelihood[],2,FALSE))","v":""},null,{"$f":"IF(AR40=\"\",\"\",VLOOKUP(AR40,risk_consequence[],2,FALSE))","v":""},null,{"$f":"IF(AT40=\"\",\"\",VLOOKUP(AT40,risk[],2,FALSE))","v":""},null,{"$f":"IF(AV40=\"\",\"\",VLOOKUP(AV40,rul_reset[],2,FALSE))","v":""},null,{"$f":"IF(AX40=\"\",\"\",VLOOKUP(AX40,use_default_rc[],2,FALSE))","v":""},null,{"$f":"IF(AZ40=\"\",\"\",VLOOKUP(AZ40,condition[],2,FALSE))","v":""},null,null,{"$f":"IF(BC40=\"\",\"\",VLOOKUP(BC40,Organisation[],2,FALSE))","v":""}]
["null",null,null,null,{"$f":"IF(D41=\"\",\"\",VLOOKUP(D41,Material[],2,FALSE))","v":""},null,{"$f":"IF(F41=\"\",\"\",VLOOKUP(F41,shape[],2,FALSE))","v":""},null,{"$f":"IF(H41=\"\",\"\",VLOOKUP(H41,make[],2,FALSE))","v":""},null,{"$f":"IF(J41=\"\",\"\",VLOOKUP(J41,mounting_type[],2,FALSE))","v":""},null,{"$f":"IF(L41=\"\",\"\",VLOOKUP(L41,attachment[],2,FALSE))","v":""},null,{"$f":"IF(N41=\"\",\"\",VLOOKUP(N41,purpose[],2,FALSE))","v":""},null,{"$f":"IF(P41=\"\",\"\",VLOOKUP(P41,coating[],2,FALSE))","v":""},null,{"$f":"IF(R41=\"\",\"\",VLOOKUP(R41,pole_in_use[],2,FALSE))","v":""},null,{"$f":"IF(T41=\"\",\"\",VLOOKUP(T41,pole_control[],2,FALSE))","v":""},null,{"$f":"IF(V41=\"\",\"\",VLOOKUP(V41,power_company[],2,FALSE))","v":""},null,null,null,{"$f":"IF(Z41=\"\",\"\",VLOOKUP(Z41,side[],2,FALSE))","v":""},null,null,null,{"$f":"IF(AD41=\"\",\"\",VLOOKUP(AD41,Install_reason[],2,FALSE))","v":""},null,{"$f":"IF(AF41=\"\",\"\",VLOOKUP(AF41,status[],2,FALSE))","v":""},null,null,{"$f":"IF(AI41=\"\",\"\",VLOOKUP(AI41,asset_owner[],2,FALSE))","v":""},null,null,null,null,{"$f":"IF(AN41=\"\",\"\",VLOOKUP(AN41,gps_method[],2,FALSE))","v":""},null,{"$f":"IF(AP41=\"\",\"\",VLOOKUP(AP41,risk_likelihood[],2,FALSE))","v":""},null,{"$f":"IF(AR41=\"\",\"\",VLOOKUP(AR41,risk_consequence[],2,FALSE))","v":""},null,{"$f":"IF(AT41=\"\",\"\",VLOOKUP(AT41,risk[],2,FALSE))","v":""},null,{"$f":"IF(AV41=\"\",\"\",VLOOKUP(AV41,rul_reset[],2,FALSE))","v":""},null,{"$f":"IF(AX41=\"\",\"\",VLOOKUP(AX41,use_default_rc[],2,FALSE))","v":""},null,{"$f":"IF(AZ41=\"\",\"\",VLOOKUP(AZ41,condition[],2,FALSE))","v":""},null,null,{"$f":"IF(BC41=\"\",\"\",VLOOKUP(BC41,Organisation[],2,FALSE))","v":""}]
["null",null,null,null,{"$f":"IF(D42=\"\",\"\",VLOOKUP(D42,Material[],2,FALSE))","v":""},null,{"$f":"IF(F42=\"\",\"\",VLOOKUP(F42,shape[],2,FALSE))","v":""},null,{"$f":"IF(H42=\"\",\"\",VLOOKUP(H42,make[],2,FALSE))","v":""},null,{"$f":"IF(J42=\"\",\"\",VLOOKUP(J42,mounting_type[],2,FALSE))","v":""},null,{"$f":"IF(L42=\"\",\"\",VLOOKUP(L42,attachment[],2,FALSE))","v":""},null,{"$f":"IF(N42=\"\",\"\",VLOOKUP(N42,purpose[],2,FALSE))","v":""},null,{"$f":"IF(P42=\"\",\"\",VLOOKUP(P42,coating[],2,FALSE))","v":""},null,{"$f":"IF(R42=\"\",\"\",VLOOKUP(R42,pole_in_use[],2,FALSE))","v":""},null,{"$f":"IF(T42=\"\",\"\",VLOOKUP(T42,pole_control[],2,FALSE))","v":""},null,{"$f":"IF(V42=\"\",\"\",VLOOKUP(V42,power_company[],2,FALSE))","v":""},null,null,null,{"$f":"IF(Z42=\"\",\"\",VLOOKUP(Z42,side[],2,FALSE))","v":""},null,null,null,{"$f":"IF(AD42=\"\",\"\",VLOOKUP(AD42,Install_reason[],2,FALSE))","v":""},null,{"$f":"IF(AF42=\"\",\"\",VLOOKUP(AF42,status[],2,FALSE))","v":""},null,null,{"$f":"IF(AI42=\"\",\"\",VLOOKUP(AI42,asset_owner[],2,FALSE))","v":""},null,null,null,null,{"$f":"IF(AN42=\"\",\"\",VLOOKUP(AN42,gps_method[],2,FALSE))","v":""},null,{"$f":"IF(AP42=\"\",\"\",VLOOKUP(AP42,risk_likelihood[],2,FALSE))","v":""},null,{"$f":"IF(AR42=\"\",\"\",VLOOKUP(AR42,risk_consequence[],2,FALSE))","v":""},null,{"$f":"IF(AT42=\"\",\"\",VLOOKUP(AT42,risk[],2,FALSE))","v":""},null,{"$f":"IF(AV42=\"\",\"\",VLOOKUP(AV42,rul_reset[],2,FALSE))","v":""},null,{"$f":"IF(AX42=\"\",\"\",VLOOKUP(AX42,use_default_rc[],2,FALSE))","v":""},null,{"$f":"IF(AZ42=\"\",\"\",VLOOKUP(AZ42,condition[],2,FALSE))","v":""},null,null,{"$f":"IF(BC42=\"\",\"\",VLOOKUP(BC42,Organisation[],2,FALSE))","v":""}]
["null",null,null,null,{"$f":"IF(D43=\"\",\"\",VLOOKUP(D43,Material[],2,FALSE))","v":""},null,{"$f":"IF(F43=\"\",\"\",VLOOKUP(F43,shape[],2,FALSE))","v":""},null,{"$f":"IF(H43=\"\",\"\",VLOOKUP(H43,make[],2,FALSE))","v":""},null,{"$f":"IF(J43=\"\",\"\",VLOOKUP(J43,mounting_type[],2,FALSE))","v":""},null,{"$f":"IF(L43=\"\",\"\",VLOOKUP(L43,attachment[],2,FALSE))","v":""},null,{"$f":"IF(N43=\"\",\"\",VLOOKUP(N43,purpose[],2,FALSE))","v":""},null,{"$f":"IF(P43=\"\",\"\",VLOOKUP(P43,coating[],2,FALSE))","v":""},null,{"$f":"IF(R43=\"\",\"\",VLOOKUP(R43,pole_in_use[],2,FALSE))","v":""},null,{"$f":"IF(T43=\"\",\"\",VLOOKUP(T43,pole_control[],2,FALSE))","v":""},null,{"$f":"IF(V43=\"\",\"\",VLOOKUP(V43,power_company[],2,FALSE))","v":""},null,null,null,{"$f":"IF(Z43=\"\",\"\",VLOOKUP(Z43,side[],2,FALSE))","v":""},null,null,null,{"$f":"IF(AD43=\"\",\"\",VLOOKUP(AD43,Install_reason[],2,FALSE))","v":""},null,{"$f":"IF(AF43=\"\",\"\",VLOOKUP(AF43,status[],2,FALSE))","v":""},null,null,{"$f":"IF(AI43=\"\",\"\",VLOOKUP(AI43,asset_owner[],2,FALSE))","v":""},null,null,null,null,{"$f":"IF(AN43=\"\",\"\",VLOOKUP(AN43,gps_method[],2,FALSE))","v":""},null,{"$f":"IF(AP43=\"\",\"\",VLOOKUP(AP43,risk_likelihood[],2,FALSE))","v":""},null,{"$f":"IF(AR43=\"\",\"\",VLOOKUP(AR43,risk_consequence[],2,FALSE))","v":""},null,{"$f":"IF(AT43=\"\",\"\",VLOOKUP(AT43,risk[],2,FALSE))","v":""},null,{"$f":"IF(AV43=\"\",\"\",VLOOKUP(AV43,rul_reset[],2,FALSE))","v":""},null,{"$f":"IF(AX43=\"\",\"\",VLOOKUP(AX43,use_default_rc[],2,FALSE))","v":""},null,{"$f":"IF(AZ43=\"\",\"\",VLOOKUP(AZ43,condition[],2,FALSE))","v":""},null,null,{"$f":"IF(BC43=\"\",\"\",VLOOKUP(BC43,Organisation[],2,FALSE))","v":""}]
["null",null,null,null,{"$f":"IF(D44=\"\",\"\",VLOOKUP(D44,Material[],2,FALSE))","v":""},null,{"$f":"IF(F44=\"\",\"\",VLOOKUP(F44,shape[],2,FALSE))","v":""},null,{"$f":"IF(H44=\"\",\"\",VLOOKUP(H44,make[],2,FALSE))","v":""},null,{"$f":"IF(J44=\"\",\"\",VLOOKUP(J44,mounting_type[],2,FALSE))","v":""},null,{"$f":"IF(L44=\"\",\"\",VLOOKUP(L44,attachment[],2,FALSE))","v":""},null,{"$f":"IF(N44=\"\",\"\",VLOOKUP(N44,purpose[],2,FALSE))","v":""},null,{"$f":"IF(P44=\"\",\"\",VLOOKUP(P44,coating[],2,FALSE))","v":""},null,{"$f":"IF(R44=\"\",\"\",VLOOKUP(R44,pole_in_use[],2,FALSE))","v":""},null,{"$f":"IF(T44=\"\",\"\",VLOOKUP(T44,pole_control[],2,FALSE))","v":""},null,{"$f":"IF(V44=\"\",\"\",VLOOKUP(V44,power_company[],2,FALSE))","v":""},null,null,null,{"$f":"IF(Z44=\"\",\"\",VLOOKUP(Z44,side[],2,FALSE))","v":""},null,null,null,{"$f":"IF(AD44=\"\",\"\",VLOOKUP(AD44,Install_reason[],2,FALSE))","v":""},null,{"$f":"IF(AF44=\"\",\"\",VLOOKUP(AF44,status[],2,FALSE))","v":""},null,null,{"$f":"IF(AI44=\"\",\"\",VLOOKUP(AI44,asset_owner[],2,FALSE))","v":""},null,null,null,null,{"$f":"IF(AN44=\"\",\"\",VLOOKUP(AN44,gps_method[],2,FALSE))","v":""},null,{"$f":"IF(AP44=\"\",\"\",VLOOKUP(AP44,risk_likelihood[],2,FALSE))","v":""},null,{"$f":"IF(AR44=\"\",\"\",VLOOKUP(AR44,risk_consequence[],2,FALSE))","v":""},null,{"$f":"IF(AT44=\"\",\"\",VLOOKUP(AT44,risk[],2,FALSE))","v":""},null,{"$f":"IF(AV44=\"\",\"\",VLOOKUP(AV44,rul_reset[],2,FALSE))","v":""},null,{"$f":"IF(AX44=\"\",\"\",VLOOKUP(AX44,use_default_rc[],2,FALSE))","v":""},null,{"$f":"IF(AZ44=\"\",\"\",VLOOKUP(AZ44,condition[],2,FALSE))","v":""},null,null,{"$f":"IF(BC44=\"\",\"\",VLOOKUP(BC44,Organisation[],2,FALSE))","v":""}]
["null",null,null,null,{"$f":"IF(D45=\"\",\"\",VLOOKUP(D45,Material[],2,FALSE))","v":""},null,{"$f":"IF(F45=\"\",\"\",VLOOKUP(F45,shape[],2,FALSE))","v":""},null,{"$f":"IF(H45=\"\",\"\",VLOOKUP(H45,make[],2,FALSE))","v":""},null,{"$f":"IF(J45=\"\",\"\",VLOOKUP(J45,mounting_type[],2,FALSE))","v":""},null,{"$f":"IF(L45=\"\",\"\",VLOOKUP(L45,attachment[],2,FALSE))","v":""},null,{"$f":"IF(N45=\"\",\"\",VLOOKUP(N45,purpose[],2,FALSE))","v":""},null,{"$f":"IF(P45=\"\",\"\",VLOOKUP(P45,coating[],2,FALSE))","v":""},null,{"$f":"IF(R45=\"\",\"\",VLOOKUP(R45,pole_in_use[],2,FALSE))","v":""},null,{"$f":"IF(T45=\"\",\"\",VLOOKUP(T45,pole_control[],2,FALSE))","v":""},null,{"$f":"IF(V45=\"\",\"\",VLOOKUP(V45,power_company[],2,FALSE))","v":""},null,null,null,{"$f":"IF(Z45=\"\",\"\",VLOOKUP(Z45,side[],2,FALSE))","v":""},null,null,null,{"$f":"IF(AD45=\"\",\"\",VLOOKUP(AD45,Install_reason[],2,FALSE))","v":""},null,{"$f":"IF(AF45=\"\",\"\",VLOOKUP(AF45,status[],2,FALSE))","v":""},null,null,{"$f":"IF(AI45=\"\",\"\",VLOOKUP(AI45,asset_owner[],2,FALSE))","v":""},null,null,null,null,{"$f":"IF(AN45=\"\",\"\",VLOOKUP(AN45,gps_method[],2,FALSE))","v":""},null,{"$f":"IF(AP45=\"\",\"\",VLOOKUP(AP45,risk_likelihood[],2,FALSE))","v":""},null,{"$f":"IF(AR45=\"\",\"\",VLOOKUP(AR45,risk_consequence[],2,FALSE))","v":""},null,{"$f":"IF(AT45=\"\",\"\",VLOOKUP(AT45,risk[],2,FALSE))","v":""},null,{"$f":"IF(AV45=\"\",\"\",VLOOKUP(AV45,rul_reset[],2,FALSE))","v":""},null,{"$f":"IF(AX45=\"\",\"\",VLOOKUP(AX45,use_default_rc[],2,FALSE))","v":""},null,{"$f":"IF(AZ45=\"\",\"\",VLOOKUP(AZ45,condition[],2,FALSE))","v":""},null,null,{"$f":"IF(BC45=\"\",\"\",VLOOKUP(BC45,Organisation[],2,FALSE))","v":""}]
["null",null,null,null,{"$f":"IF(D46=\"\",\"\",VLOOKUP(D46,Material[],2,FALSE))","v":""},null,{"$f":"IF(F46=\"\",\"\",VLOOKUP(F46,shape[],2,FALSE))","v":""},null,{"$f":"IF(H46=\"\",\"\",VLOOKUP(H46,make[],2,FALSE))","v":""},null,{"$f":"IF(J46=\"\",\"\",VLOOKUP(J46,mounting_type[],2,FALSE))","v":""},null,{"$f":"IF(L46=\"\",\"\",VLOOKUP(L46,attachment[],2,FALSE))","v":""},null,{"$f":"IF(N46=\"\",\"\",VLOOKUP(N46,purpose[],2,FALSE))","v":""},null,{"$f":"IF(P46=\"\",\"\",VLOOKUP(P46,coating[],2,FALSE))","v":""},null,{"$f":"IF(R46=\"\",\"\",VLOOKUP(R46,pole_in_use[],2,FALSE))","v":""},null,{"$f":"IF(T46=\"\",\"\",VLOOKUP(T46,pole_control[],2,FALSE))","v":""},null,{"$f":"IF(V46=\"\",\"\",VLOOKUP(V46,power_company[],2,FALSE))","v":""},null,null,null,{"$f":"IF(Z46=\"\",\"\",VLOOKUP(Z46,side[],2,FALSE))","v":""},null,null,null,{"$f":"IF(AD46=\"\",\"\",VLOOKUP(AD46,Install_reason[],2,FALSE))","v":""},null,{"$f":"IF(AF46=\"\",\"\",VLOOKUP(AF46,status[],2,FALSE))","v":""},null,null,{"$f":"IF(AI46=\"\",\"\",VLOOKUP(AI46,asset_owner[],2,FALSE))","v":""},null,null,null,null,{"$f":"IF(AN46=\"\",\"\",VLOOKUP(AN46,gps_method[],2,FALSE))","v":""},null,{"$f":"IF(AP46=\"\",\"\",VLOOKUP(AP46,risk_likelihood[],2,FALSE))","v":""},null,{"$f":"IF(AR46=\"\",\"\",VLOOKUP(AR46,risk_consequence[],2,FALSE))","v":""},null,{"$f":"IF(AT46=\"\",\"\",VLOOKUP(AT46,risk[],2,FALSE))","v":""},null,{"$f":"IF(AV46=\"\",\"\",VLOOKUP(AV46,rul_reset[],2,FALSE))","v":""},null,{"$f":"IF(AX46=\"\",\"\",VLOOKUP(AX46,use_default_rc[],2,FALSE))","v":""},null,{"$f":"IF(AZ46=\"\",\"\",VLOOKUP(AZ46,condition[],2,FALSE))","v":""},null,null,{"$f":"IF(BC46=\"\",\"\",VLOOKUP(BC46,Organisation[],2,FALSE))","v":""}]
["null",null,null,null,{"$f":"IF(D47=\"\",\"\",VLOOKUP(D47,Material[],2,FALSE))","v":""},null,{"$f":"IF(F47=\"\",\"\",VLOOKUP(F47,shape[],2,FALSE))","v":""},null,{"$f":"IF(H47=\"\",\"\",VLOOKUP(H47,make[],2,FALSE))","v":""},null,{"$f":"IF(J47=\"\",\"\",VLOOKUP(J47,mounting_type[],2,FALSE))","v":""},null,{"$f":"IF(L47=\"\",\"\",VLOOKUP(L47,attachment[],2,FALSE))","v":""},null,{"$f":"IF(N47=\"\",\"\",VLOOKUP(N47,purpose[],2,FALSE))","v":""},null,{"$f":"IF(P47=\"\",\"\",VLOOKUP(P47,coating[],2,FALSE))","v":""},null,{"$f":"IF(R47=\"\",\"\",VLOOKUP(R47,pole_in_use[],2,FALSE))","v":""},null,{"$f":"IF(T47=\"\",\"\",VLOOKUP(T47,pole_control[],2,FALSE))","v":""},null,{"$f":"IF(V47=\"\",\"\",VLOOKUP(V47,power_company[],2,FALSE))","v":""},null,null,null,{"$f":"IF(Z47=\"\",\"\",VLOOKUP(Z47,side[],2,FALSE))","v":""},null,null,null,{"$f":"IF(AD47=\"\",\"\",VLOOKUP(AD47,Install_reason[],2,FALSE))","v":""},null,{"$f":"IF(AF47=\"\",\"\",VLOOKUP(AF47,status[],2,FALSE))","v":""},null,null,{"$f":"IF(AI47=\"\",\"\",VLOOKUP(AI47,asset_owner[],2,FALSE))","v":""},null,null,null,null,{"$f":"IF(AN47=\"\",\"\",VLOOKUP(AN47,gps_method[],2,FALSE))","v":""},null,{"$f":"IF(AP47=\"\",\"\",VLOOKUP(AP47,risk_likelihood[],2,FALSE))","v":""},null,{"$f":"IF(AR47=\"\",\"\",VLOOKUP(AR47,risk_consequence[],2,FALSE))","v":""},null,{"$f":"IF(AT47=\"\",\"\",VLOOKUP(AT47,risk[],2,FALSE))","v":""},null,{"$f":"IF(AV47=\"\",\"\",VLOOKUP(AV47,rul_reset[],2,FALSE))","v":""},null,{"$f":"IF(AX47=\"\",\"\",VLOOKUP(AX47,use_default_rc[],2,FALSE))","v":""},null,{"$f":"IF(AZ47=\"\",\"\",VLOOKUP(AZ47,condition[],2,FALSE))","v":""},null,null,{"$f":"IF(BC47=\"\",\"\",VLOOKUP(BC47,Organisation[],2,FALSE))","v":""}]
["null",null,null,null,{"$f":"IF(D48=\"\",\"\",VLOOKUP(D48,Material[],2,FALSE))","v":""},null,{"$f":"IF(F48=\"\",\"\",VLOOKUP(F48,shape[],2,FALSE))","v":""},null,{"$f":"IF(H48=\"\",\"\",VLOOKUP(H48,make[],2,FALSE))","v":""},null,{"$f":"IF(J48=\"\",\"\",VLOOKUP(J48,mounting_type[],2,FALSE))","v":""},null,{"$f":"IF(L48=\"\",\"\",VLOOKUP(L48,attachment[],2,FALSE))","v":""},null,{"$f":"IF(N48=\"\",\"\",VLOOKUP(N48,purpose[],2,FALSE))","v":""},null,{"$f":"IF(P48=\"\",\"\",VLOOKUP(P48,coating[],2,FALSE))","v":""},null,{"$f":"IF(R48=\"\",\"\",VLOOKUP(R48,pole_in_use[],2,FALSE))","v":""},null,{"$f":"IF(T48=\"\",\"\",VLOOKUP(T48,pole_control[],2,FALSE))","v":""},null,{"$f":"IF(V48=\"\",\"\",VLOOKUP(V48,power_company[],2,FALSE))","v":""},null,null,null,{"$f":"IF(Z48=\"\",\"\",VLOOKUP(Z48,side[],2,FALSE))","v":""},null,null,null,{"$f":"IF(AD48=\"\",\"\",VLOOKUP(AD48,Install_reason[],2,FALSE))","v":""},null,{"$f":"IF(AF48=\"\",\"\",VLOOKUP(AF48,status[],2,FALSE))","v":""},null,null,{"$f":"IF(AI48=\"\",\"\",VLOOKUP(AI48,asset_owner[],2,FALSE))","v":""},null,null,null,null,{"$f":"IF(AN48=\"\",\"\",VLOOKUP(AN48,gps_method[],2,FALSE))","v":""},null,{"$f":"IF(AP48=\"\",\"\",VLOOKUP(AP48,risk_likelihood[],2,FALSE))","v":""},null,{"$f":"IF(AR48=\"\",\"\",VLOOKUP(AR48,risk_consequence[],2,FALSE))","v":""},null,{"$f":"IF(AT48=\"\",\"\",VLOOKUP(AT48,risk[],2,FALSE))","v":""},null,{"$f":"IF(AV48=\"\",\"\",VLOOKUP(AV48,rul_reset[],2,FALSE))","v":""},null,{"$f":"IF(AX48=\"\",\"\",VLOOKUP(AX48,use_default_rc[],2,FALSE))","v":""},null,{"$f":"IF(AZ48=\"\",\"\",VLOOKUP(AZ48,condition[],2,FALSE))","v":""},null,null,{"$f":"IF(BC48=\"\",\"\",VLOOKUP(BC48,Organisation[],2,FALSE))","v":""}]
["null",null,null,null,{"$f":"IF(D49=\"\",\"\",VLOOKUP(D49,Material[],2,FALSE))","v":""},null,{"$f":"IF(F49=\"\",\"\",VLOOKUP(F49,shape[],2,FALSE))","v":""},null,{"$f":"IF(H49=\"\",\"\",VLOOKUP(H49,make[],2,FALSE))","v":""},null,{"$f":"IF(J49=\"\",\"\",VLOOKUP(J49,mounting_type[],2,FALSE))","v":""},null,{"$f":"IF(L49=\"\",\"\",VLOOKUP(L49,attachment[],2,FALSE))","v":""},null,{"$f":"IF(N49=\"\",\"\",VLOOKUP(N49,purpose[],2,FALSE))","v":""},null,{"$f":"IF(P49=\"\",\"\",VLOOKUP(P49,coating[],2,FALSE))","v":""},null,{"$f":"IF(R49=\"\",\"\",VLOOKUP(R49,pole_in_use[],2,FALSE))","v":""},null,{"$f":"IF(T49=\"\",\"\",VLOOKUP(T49,pole_control[],2,FALSE))","v":""},null,{"$f":"IF(V49=\"\",\"\",VLOOKUP(V49,power_company[],2,FALSE))","v":""},null,null,null,{"$f":"IF(Z49=\"\",\"\",VLOOKUP(Z49,side[],2,FALSE))","v":""},null,null,null,{"$f":"IF(AD49=\"\",\"\",VLOOKUP(AD49,Install_reason[],2,FALSE))","v":""},null,{"$f":"IF(AF49=\"\",\"\",VLOOKUP(AF49,status[],2,FALSE))","v":""},null,null,{"$f":"IF(AI49=\"\",\"\",VLOOKUP(AI49,asset_owner[],2,FALSE))","v":""},null,null,null,null,{"$f":"IF(AN49=\"\",\"\",VLOOKUP(AN49,gps_method[],2,FALSE))","v":""},null,{"$f":"IF(AP49=\"\",\"\",VLOOKUP(AP49,risk_likelihood[],2,FALSE))","v":""},null,{"$f":"IF(AR49=\"\",\"\",VLOOKUP(AR49,risk_consequence[],2,FALSE))","v":""},null,{"$f":"IF(AT49=\"\",\"\",VLOOKUP(AT49,risk[],2,FALSE))","v":""},null,{"$f":"IF(AV49=\"\",\"\",VLOOKUP(AV49,rul_reset[],2,FALSE))","v":""},null,{"$f":"IF(AX49=\"\",\"\",VLOOKUP(AX49,use_default_rc[],2,FALSE))","v":""},null,{"$f":"IF(AZ49=\"\",\"\",VLOOKUP(AZ49,condition[],2,FALSE))","v":""},null,null,{"$f":"IF(BC49=\"\",\"\",VLOOKUP(BC49,Organisation[],2,FALSE))","v":""}]
["null",null,null,null,{"$f":"IF(D50=\"\",\"\",VLOOKUP(D50,Material[],2,FALSE))","v":""},null,{"$f":"IF(F50=\"\",\"\",VLOOKUP(F50,shape[],2,FALSE))","v":""},null,{"$f":"IF(H50=\"\",\"\",VLOOKUP(H50,make[],2,FALSE))","v":""},null,{"$f":"IF(J50=\"\",\"\",VLOOKUP(J50,mounting_type[],2,FALSE))","v":""},null,{"$f":"IF(L50=\"\",\"\",VLOOKUP(L50,attachment[],2,FALSE))","v":""},null,{"$f":"IF(N50=\"\",\"\",VLOOKUP(N50,purpose[],2,FALSE))","v":""},null,{"$f":"IF(P50=\"\",\"\",VLOOKUP(P50,coating[],2,FALSE))","v":""},null,{"$f":"IF(R50=\"\",\"\",VLOOKUP(R50,pole_in_use[],2,FALSE))","v":""},null,{"$f":"IF(T50=\"\",\"\",VLOOKUP(T50,pole_control[],2,FALSE))","v":""},null,{"$f":"IF(V50=\"\",\"\",VLOOKUP(V50,power_company[],2,FALSE))","v":""},null,null,null,{"$f":"IF(Z50=\"\",\"\",VLOOKUP(Z50,side[],2,FALSE))","v":""},null,null,null,{"$f":"IF(AD50=\"\",\"\",VLOOKUP(AD50,Install_reason[],2,FALSE))","v":""},null,{"$f":"IF(AF50=\"\",\"\",VLOOKUP(AF50,status[],2,FALSE))","v":""},null,null,{"$f":"IF(AI50=\"\",\"\",VLOOKUP(AI50,asset_owner[],2,FALSE))","v":""},null,null,null,null,{"$f":"IF(AN50=\"\",\"\",VLOOKUP(AN50,gps_method[],2,FALSE))","v":""},null,{"$f":"IF(AP50=\"\",\"\",VLOOKUP(AP50,risk_likelihood[],2,FALSE))","v":""},null,{"$f":"IF(AR50=\"\",\"\",VLOOKUP(AR50,risk_consequence[],2,FALSE))","v":""},null,{"$f":"IF(AT50=\"\",\"\",VLOOKUP(AT50,risk[],2,FALSE))","v":""},null,{"$f":"IF(AV50=\"\",\"\",VLOOKUP(AV50,rul_reset[],2,FALSE))","v":""},null,{"$f":"IF(AX50=\"\",\"\",VLOOKUP(AX50,use_default_rc[],2,FALSE))","v":""},null,{"$f":"IF(AZ50=\"\",\"\",VLOOKUP(AZ50,condition[],2,FALSE))","v":""},null,null,{"$f":"IF(BC50=\"\",\"\",VLOOKUP(BC50,Organisation[],2,FALSE))","v":""}]
["null",null,null,null,{"$f":"IF(D51=\"\",\"\",VLOOKUP(D51,Material[],2,FALSE))","v":""},null,{"$f":"IF(F51=\"\",\"\",VLOOKUP(F51,shape[],2,FALSE))","v":""},null,{"$f":"IF(H51=\"\",\"\",VLOOKUP(H51,make[],2,FALSE))","v":""},null,{"$f":"IF(J51=\"\",\"\",VLOOKUP(J51,mounting_type[],2,FALSE))","v":""},null,{"$f":"IF(L51=\"\",\"\",VLOOKUP(L51,attachment[],2,FALSE))","v":""},null,{"$f":"IF(N51=\"\",\"\",VLOOKUP(N51,purpose[],2,FALSE))","v":""},null,{"$f":"IF(P51=\"\",\"\",VLOOKUP(P51,coating[],2,FALSE))","v":""},null,{"$f":"IF(R51=\"\",\"\",VLOOKUP(R51,pole_in_use[],2,FALSE))","v":""},null,{"$f":"IF(T51=\"\",\"\",VLOOKUP(T51,pole_control[],2,FALSE))","v":""},null,{"$f":"IF(V51=\"\",\"\",VLOOKUP(V51,power_company[],2,FALSE))","v":""},null,null,null,{"$f":"IF(Z51=\"\",\"\",VLOOKUP(Z51,side[],2,FALSE))","v":""},null,null,null,{"$f":"IF(AD51=\"\",\"\",VLOOKUP(AD51,Install_reason[],2,FALSE))","v":""},null,{"$f":"IF(AF51=\"\",\"\",VLOOKUP(AF51,status[],2,FALSE))","v":""},null,null,{"$f":"IF(AI51=\"\",\"\",VLOOKUP(AI51,asset_owner[],2,FALSE))","v":""},null,null,null,null,{"$f":"IF(AN51=\"\",\"\",VLOOKUP(AN51,gps_method[],2,FALSE))","v":""},null,{"$f":"IF(AP51=\"\",\"\",VLOOKUP(AP51,risk_likelihood[],2,FALSE))","v":""},null,{"$f":"IF(AR51=\"\",\"\",VLOOKUP(AR51,risk_consequence[],2,FALSE))","v":""},null,{"$f":"IF(AT51=\"\",\"\",VLOOKUP(AT51,risk[],2,FALSE))","v":""},null,{"$f":"IF(AV51=\"\",\"\",VLOOKUP(AV51,rul_reset[],2,FALSE))","v":""},null,{"$f":"IF(AX51=\"\",\"\",VLOOKUP(AX51,use_default_rc[],2,FALSE))","v":""},null,{"$f":"IF(AZ51=\"\",\"\",VLOOKUP(AZ51,condition[],2,FALSE))","v":""},null,null,{"$f":"IF(BC51=\"\",\"\",VLOOKUP(BC51,Organisation[],2,FALSE))","v":""}]
["null",null,null,null,{"$f":"IF(D52=\"\",\"\",VLOOKUP(D52,Material[],2,FALSE))","v":""},null,{"$f":"IF(F52=\"\",\"\",VLOOKUP(F52,shape[],2,FALSE))","v":""},null,{"$f":"IF(H52=\"\",\"\",VLOOKUP(H52,make[],2,FALSE))","v":""},null,{"$f":"IF(J52=\"\",\"\",VLOOKUP(J52,mounting_type[],2,FALSE))","v":""},null,{"$f":"IF(L52=\"\",\"\",VLOOKUP(L52,attachment[],2,FALSE))","v":""},null,{"$f":"IF(N52=\"\",\"\",VLOOKUP(N52,purpose[],2,FALSE))","v":""},null,{"$f":"IF(P52=\"\",\"\",VLOOKUP(P52,coating[],2,FALSE))","v":""},null,{"$f":"IF(R52=\"\",\"\",VLOOKUP(R52,pole_in_use[],2,FALSE))","v":""},null,{"$f":"IF(T52=\"\",\"\",VLOOKUP(T52,pole_control[],2,FALSE))","v":""},null,{"$f":"IF(V52=\"\",\"\",VLOOKUP(V52,power_company[],2,FALSE))","v":""},null,null,null,{"$f":"IF(Z52=\"\",\"\",VLOOKUP(Z52,side[],2,FALSE))","v":""},null,null,null,{"$f":"IF(AD52=\"\",\"\",VLOOKUP(AD52,Install_reason[],2,FALSE))","v":""},null,{"$f":"IF(AF52=\"\",\"\",VLOOKUP(AF52,status[],2,FALSE))","v":""},null,null,{"$f":"IF(AI52=\"\",\"\",VLOOKUP(AI52,asset_owner[],2,FALSE))","v":""},null,null,null,null,{"$f":"IF(AN52=\"\",\"\",VLOOKUP(AN52,gps_method[],2,FALSE))","v":""},null,{"$f":"IF(AP52=\"\",\"\",VLOOKUP(AP52,risk_likelihood[],2,FALSE))","v":""},null,{"$f":"IF(AR52=\"\",\"\",VLOOKUP(AR52,risk_consequence[],2,FALSE))","v":""},null,{"$f":"IF(AT52=\"\",\"\",VLOOKUP(AT52,risk[],2,FALSE))","v":""},null,{"$f":"IF(AV52=\"\",\"\",VLOOKUP(AV52,rul_reset[],2,FALSE))","v":""},null,{"$f":"IF(AX52=\"\",\"\",VLOOKUP(AX52,use_default_rc[],2,FALSE))","v":""},null,{"$f":"IF(AZ52=\"\",\"\",VLOOKUP(AZ52,condition[],2,FALSE))","v":""},null,null,{"$f":"IF(BC52=\"\",\"\",VLOOKUP(BC52,Organisation[],2,FALSE))","v":""}]
["null",null,null,null,{"$f":"IF(D53=\"\",\"\",VLOOKUP(D53,Material[],2,FALSE))","v":""},null,{"$f":"IF(F53=\"\",\"\",VLOOKUP(F53,shape[],2,FALSE))","v":""},null,{"$f":"IF(H53=\"\",\"\",VLOOKUP(H53,make[],2,FALSE))","v":""},null,{"$f":"IF(J53=\"\",\"\",VLOOKUP(J53,mounting_type[],2,FALSE))","v":""},null,{"$f":"IF(L53=\"\",\"\",VLOOKUP(L53,attachment[],2,FALSE))","v":""},null,{"$f":"IF(N53=\"\",\"\",VLOOKUP(N53,purpose[],2,FALSE))","v":""},null,{"$f":"IF(P53=\"\",\"\",VLOOKUP(P53,coating[],2,FALSE))","v":""},null,{"$f":"IF(R53=\"\",\"\",VLOOKUP(R53,pole_in_use[],2,FALSE))","v":""},null,{"$f":"IF(T53=\"\",\"\",VLOOKUP(T53,pole_control[],2,FALSE))","v":""},null,{"$f":"IF(V53=\"\",\"\",VLOOKUP(V53,power_company[],2,FALSE))","v":""},null,null,null,{"$f":"IF(Z53=\"\",\"\",VLOOKUP(Z53,side[],2,FALSE))","v":""},null,null,null,{"$f":"IF(AD53=\"\",\"\",VLOOKUP(AD53,Install_reason[],2,FALSE))","v":""},null,{"$f":"IF(AF53=\"\",\"\",VLOOKUP(AF53,status[],2,FALSE))","v":""},null,null,{"$f":"IF(AI53=\"\",\"\",VLOOKUP(AI53,asset_owner[],2,FALSE))","v":""},null,null,null,null,{"$f":"IF(AN53=\"\",\"\",VLOOKUP(AN53,gps_method[],2,FALSE))","v":""},null,{"$f":"IF(AP53=\"\",\"\",VLOOKUP(AP53,risk_likelihood[],2,FALSE))","v":""},null,{"$f":"IF(AR53=\"\",\"\",VLOOKUP(AR53,risk_consequence[],2,FALSE))","v":""},null,{"$f":"IF(AT53=\"\",\"\",VLOOKUP(AT53,risk[],2,FALSE))","v":""},null,{"$f":"IF(AV53=\"\",\"\",VLOOKUP(AV53,rul_reset[],2,FALSE))","v":""},null,{"$f":"IF(AX53=\"\",\"\",VLOOKUP(AX53,use_default_rc[],2,FALSE))","v":""},null,{"$f":"IF(AZ53=\"\",\"\",VLOOKUP(AZ53,condition[],2,FALSE))","v":""},null,null,{"$f":"IF(BC53=\"\",\"\",VLOOKUP(BC53,Organisation[],2,FALSE))","v":""}]
["null",null,null,null,{"$f":"IF(D54=\"\",\"\",VLOOKUP(D54,Material[],2,FALSE))","v":""},null,{"$f":"IF(F54=\"\",\"\",VLOOKUP(F54,shape[],2,FALSE))","v":""},null,{"$f":"IF(H54=\"\",\"\",VLOOKUP(H54,make[],2,FALSE))","v":""},null,{"$f":"IF(J54=\"\",\"\",VLOOKUP(J54,mounting_type[],2,FALSE))","v":""},null,{"$f":"IF(L54=\"\",\"\",VLOOKUP(L54,attachment[],2,FALSE))","v":""},null,{"$f":"IF(N54=\"\",\"\",VLOOKUP(N54,purpose[],2,FALSE))","v":""},null,{"$f":"IF(P54=\"\",\"\",VLOOKUP(P54,coating[],2,FALSE))","v":""},null,{"$f":"IF(R54=\"\",\"\",VLOOKUP(R54,pole_in_use[],2,FALSE))","v":""},null,{"$f":"IF(T54=\"\",\"\",VLOOKUP(T54,pole_control[],2,FALSE))","v":""},null,{"$f":"IF(V54=\"\",\"\",VLOOKUP(V54,power_company[],2,FALSE))","v":""},null,null,null,{"$f":"IF(Z54=\"\",\"\",VLOOKUP(Z54,side[],2,FALSE))","v":""},null,null,null,{"$f":"IF(AD54=\"\",\"\",VLOOKUP(AD54,Install_reason[],2,FALSE))","v":""},null,{"$f":"IF(AF54=\"\",\"\",VLOOKUP(AF54,status[],2,FALSE))","v":""},null,null,{"$f":"IF(AI54=\"\",\"\",VLOOKUP(AI54,asset_owner[],2,FALSE))","v":""},null,null,null,null,{"$f":"IF(AN54=\"\",\"\",VLOOKUP(AN54,gps_method[],2,FALSE))","v":""},null,{"$f":"IF(AP54=\"\",\"\",VLOOKUP(AP54,risk_likelihood[],2,FALSE))","v":""},null,{"$f":"IF(AR54=\"\",\"\",VLOOKUP(AR54,risk_consequence[],2,FALSE))","v":""},null,{"$f":"IF(AT54=\"\",\"\",VLOOKUP(AT54,risk[],2,FALSE))","v":""},null,{"$f":"IF(AV54=\"\",\"\",VLOOKUP(AV54,rul_reset[],2,FALSE))","v":""},null,{"$f":"IF(AX54=\"\",\"\",VLOOKUP(AX54,use_default_rc[],2,FALSE))","v":""},null,{"$f":"IF(AZ54=\"\",\"\",VLOOKUP(AZ54,condition[],2,FALSE))","v":""},null,null,{"$f":"IF(BC54=\"\",\"\",VLOOKUP(BC54,Organisation[],2,FALSE))","v":""}]
["null",null,null,null,{"$f":"IF(D55=\"\",\"\",VLOOKUP(D55,Material[],2,FALSE))","v":""},null,{"$f":"IF(F55=\"\",\"\",VLOOKUP(F55,shape[],2,FALSE))","v":""},null,{"$f":"IF(H55=\"\",\"\",VLOOKUP(H55,make[],2,FALSE))","v":""},null,{"$f":"IF(J55=\"\",\"\",VLOOKUP(J55,mounting_type[],2,FALSE))","v":""},null,{"$f":"IF(L55=\"\",\"\",VLOOKUP(L55,attachment[],2,FALSE))","v":""},null,{"$f":"IF(N55=\"\",\"\",VLOOKUP(N55,purpose[],2,FALSE))","v":""},null,{"$f":"IF(P55=\"\",\"\",VLOOKUP(P55,coating[],2,FALSE))","v":""},null,{"$f":"IF(R55=\"\",\"\",VLOOKUP(R55,pole_in_use[],2,FALSE))","v":""},null,{"$f":"IF(T55=\"\",\"\",VLOOKUP(T55,pole_control[],2,FALSE))","v":""},null,{"$f":"IF(V55=\"\",\"\",VLOOKUP(V55,power_company[],2,FALSE))","v":""},null,null,null,{"$f":"IF(Z55=\"\",\"\",VLOOKUP(Z55,side[],2,FALSE))","v":""},null,null,null,{"$f":"IF(AD55=\"\",\"\",VLOOKUP(AD55,Install_reason[],2,FALSE))","v":""},null,{"$f":"IF(AF55=\"\",\"\",VLOOKUP(AF55,status[],2,FALSE))","v":""},null,null,{"$f":"IF(AI55=\"\",\"\",VLOOKUP(AI55,asset_owner[],2,FALSE))","v":""},null,null,null,null,{"$f":"IF(AN55=\"\",\"\",VLOOKUP(AN55,gps_method[],2,FALSE))","v":""},null,{"$f":"IF(AP55=\"\",\"\",VLOOKUP(AP55,risk_likelihood[],2,FALSE))","v":""},null,{"$f":"IF(AR55=\"\",\"\",VLOOKUP(AR55,risk_consequence[],2,FALSE))","v":""},null,{"$f":"IF(AT55=\"\",\"\",VLOOKUP(AT55,risk[],2,FALSE))","v":""},null,{"$f":"IF(AV55=\"\",\"\",VLOOKUP(AV55,rul_reset[],2,FALSE))","v":""},null,{"$f":"IF(AX55=\"\",\"\",VLOOKUP(AX55,use_default_rc[],2,FALSE))","v":""},null,{"$f":"IF(AZ55=\"\",\"\",VLOOKUP(AZ55,condition[],2,FALSE))","v":""},null,null,{"$f":"IF(BC55=\"\",\"\",VLOOKUP(BC55,Organisation[],2,FALSE))","v":""}]
["null",null,null,null,{"$f":"IF(D56=\"\",\"\",VLOOKUP(D56,Material[],2,FALSE))","v":""},null,{"$f":"IF(F56=\"\",\"\",VLOOKUP(F56,shape[],2,FALSE))","v":""},null,{"$f":"IF(H56=\"\",\"\",VLOOKUP(H56,make[],2,FALSE))","v":""},null,{"$f":"IF(J56=\"\",\"\",VLOOKUP(J56,mounting_type[],2,FALSE))","v":""},null,{"$f":"IF(L56=\"\",\"\",VLOOKUP(L56,attachment[],2,FALSE))","v":""},null,{"$f":"IF(N56=\"\",\"\",VLOOKUP(N56,purpose[],2,FALSE))","v":""},null,{"$f":"IF(P56=\"\",\"\",VLOOKUP(P56,coating[],2,FALSE))","v":""},null,{"$f":"IF(R56=\"\",\"\",VLOOKUP(R56,pole_in_use[],2,FALSE))","v":""},null,{"$f":"IF(T56=\"\",\"\",VLOOKUP(T56,pole_control[],2,FALSE))","v":""},null,{"$f":"IF(V56=\"\",\"\",VLOOKUP(V56,power_company[],2,FALSE))","v":""},null,null,null,{"$f":"IF(Z56=\"\",\"\",VLOOKUP(Z56,side[],2,FALSE))","v":""},null,null,null,{"$f":"IF(AD56=\"\",\"\",VLOOKUP(AD56,Install_reason[],2,FALSE))","v":""},null,{"$f":"IF(AF56=\"\",\"\",VLOOKUP(AF56,status[],2,FALSE))","v":""},null,null,{"$f":"IF(AI56=\"\",\"\",VLOOKUP(AI56,asset_owner[],2,FALSE))","v":""},null,null,null,null,{"$f":"IF(AN56=\"\",\"\",VLOOKUP(AN56,gps_method[],2,FALSE))","v":""},null,{"$f":"IF(AP56=\"\",\"\",VLOOKUP(AP56,risk_likelihood[],2,FALSE))","v":""},null,{"$f":"IF(AR56=\"\",\"\",VLOOKUP(AR56,risk_consequence[],2,FALSE))","v":""},null,{"$f":"IF(AT56=\"\",\"\",VLOOKUP(AT56,risk[],2,FALSE))","v":""},null,{"$f":"IF(AV56=\"\",\"\",VLOOKUP(AV56,rul_reset[],2,FALSE))","v":""},null,{"$f":"IF(AX56=\"\",\"\",VLOOKUP(AX56,use_default_rc[],2,FALSE))","v":""},null,{"$f":"IF(AZ56=\"\",\"\",VLOOKUP(AZ56,condition[],2,FALSE))","v":""},null,null,{"$f":"IF(BC56=\"\",\"\",VLOOKUP(BC56,Organisation[],2,FALSE))","v":""}]
["null",null,null,null,{"$f":"IF(D57=\"\",\"\",VLOOKUP(D57,Material[],2,FALSE))","v":""},null,{"$f":"IF(F57=\"\",\"\",VLOOKUP(F57,shape[],2,FALSE))","v":""},null,{"$f":"IF(H57=\"\",\"\",VLOOKUP(H57,make[],2,FALSE))","v":""},null,{"$f":"IF(J57=\"\",\"\",VLOOKUP(J57,mounting_type[],2,FALSE))","v":""},null,{"$f":"IF(L57=\"\",\"\",VLOOKUP(L57,attachment[],2,FALSE))","v":""},null,{"$f":"IF(N57=\"\",\"\",VLOOKUP(N57,purpose[],2,FALSE))","v":""},null,{"$f":"IF(P57=\"\",\"\",VLOOKUP(P57,coating[],2,FALSE))","v":""},null,{"$f":"IF(R57=\"\",\"\",VLOOKUP(R57,pole_in_use[],2,FALSE))","v":""},null,{"$f":"IF(T57=\"\",\"\",VLOOKUP(T57,pole_control[],2,FALSE))","v":""},null,{"$f":"IF(V57=\"\",\"\",VLOOKUP(V57,power_company[],2,FALSE))","v":""},null,null,null,{"$f":"IF(Z57=\"\",\"\",VLOOKUP(Z57,side[],2,FALSE))","v":""},null,null,null,{"$f":"IF(AD57=\"\",\"\",VLOOKUP(AD57,Install_reason[],2,FALSE))","v":""},null,{"$f":"IF(AF57=\"\",\"\",VLOOKUP(AF57,status[],2,FALSE))","v":""},null,null,{"$f":"IF(AI57=\"\",\"\",VLOOKUP(AI57,asset_owner[],2,FALSE))","v":""},null,null,null,null,{"$f":"IF(AN57=\"\",\"\",VLOOKUP(AN57,gps_method[],2,FALSE))","v":""},null,{"$f":"IF(AP57=\"\",\"\",VLOOKUP(AP57,risk_likelihood[],2,FALSE))","v":""},null,{"$f":"IF(AR57=\"\",\"\",VLOOKUP(AR57,risk_consequence[],2,FALSE))","v":""},null,{"$f":"IF(AT57=\"\",\"\",VLOOKUP(AT57,risk[],2,FALSE))","v":""},null,{"$f":"IF(AV57=\"\",\"\",VLOOKUP(AV57,rul_reset[],2,FALSE))","v":""},null,{"$f":"IF(AX57=\"\",\"\",VLOOKUP(AX57,use_default_rc[],2,FALSE))","v":""},null,{"$f":"IF(AZ57=\"\",\"\",VLOOKUP(AZ57,condition[],2,FALSE))","v":""},null,null,{"$f":"IF(BC57=\"\",\"\",VLOOKUP(BC57,Organisation[],2,FALSE))","v":""}]
["null",null,null,null,{"$f":"IF(D58=\"\",\"\",VLOOKUP(D58,Material[],2,FALSE))","v":""},null,{"$f":"IF(F58=\"\",\"\",VLOOKUP(F58,shape[],2,FALSE))","v":""},null,{"$f":"IF(H58=\"\",\"\",VLOOKUP(H58,make[],2,FALSE))","v":""},null,{"$f":"IF(J58=\"\",\"\",VLOOKUP(J58,mounting_type[],2,FALSE))","v":""},null,{"$f":"IF(L58=\"\",\"\",VLOOKUP(L58,attachment[],2,FALSE))","v":""},null,{"$f":"IF(N58=\"\",\"\",VLOOKUP(N58,purpose[],2,FALSE))","v":""},null,{"$f":"IF(P58=\"\",\"\",VLOOKUP(P58,coating[],2,FALSE))","v":""},null,{"$f":"IF(R58=\"\",\"\",VLOOKUP(R58,pole_in_use[],2,FALSE))","v":""},null,{"$f":"IF(T58=\"\",\"\",VLOOKUP(T58,pole_control[],2,FALSE))","v":""},null,{"$f":"IF(V58=\"\",\"\",VLOOKUP(V58,power_company[],2,FALSE))","v":""},null,null,null,{"$f":"IF(Z58=\"\",\"\",VLOOKUP(Z58,side[],2,FALSE))","v":""},null,null,null,{"$f":"IF(AD58=\"\",\"\",VLOOKUP(AD58,Install_reason[],2,FALSE))","v":""},null,{"$f":"IF(AF58=\"\",\"\",VLOOKUP(AF58,status[],2,FALSE))","v":""},null,null,{"$f":"IF(AI58=\"\",\"\",VLOOKUP(AI58,asset_owner[],2,FALSE))","v":""},null,null,null,null,{"$f":"IF(AN58=\"\",\"\",VLOOKUP(AN58,gps_method[],2,FALSE))","v":""},null,{"$f":"IF(AP58=\"\",\"\",VLOOKUP(AP58,risk_likelihood[],2,FALSE))","v":""},null,{"$f":"IF(AR58=\"\",\"\",VLOOKUP(AR58,risk_consequence[],2,FALSE))","v":""},null,{"$f":"IF(AT58=\"\",\"\",VLOOKUP(AT58,risk[],2,FALSE))","v":""},null,{"$f":"IF(AV58=\"\",\"\",VLOOKUP(AV58,rul_reset[],2,FALSE))","v":""},null,{"$f":"IF(AX58=\"\",\"\",VLOOKUP(AX58,use_default_rc[],2,FALSE))","v":""},null,{"$f":"IF(AZ58=\"\",\"\",VLOOKUP(AZ58,condition[],2,FALSE))","v":""},null,null,{"$f":"IF(BC58=\"\",\"\",VLOOKUP(BC58,Organisation[],2,FALSE))","v":""}]
["null",null,null,null,{"$f":"IF(D59=\"\",\"\",VLOOKUP(D59,Material[],2,FALSE))","v":""},null,{"$f":"IF(F59=\"\",\"\",VLOOKUP(F59,shape[],2,FALSE))","v":""},null,{"$f":"IF(H59=\"\",\"\",VLOOKUP(H59,make[],2,FALSE))","v":""},null,{"$f":"IF(J59=\"\",\"\",VLOOKUP(J59,mounting_type[],2,FALSE))","v":""},null,{"$f":"IF(L59=\"\",\"\",VLOOKUP(L59,attachment[],2,FALSE))","v":""},null,{"$f":"IF(N59=\"\",\"\",VLOOKUP(N59,purpose[],2,FALSE))","v":""},null,{"$f":"IF(P59=\"\",\"\",VLOOKUP(P59,coating[],2,FALSE))","v":""},null,{"$f":"IF(R59=\"\",\"\",VLOOKUP(R59,pole_in_use[],2,FALSE))","v":""},null,{"$f":"IF(T59=\"\",\"\",VLOOKUP(T59,pole_control[],2,FALSE))","v":""},null,{"$f":"IF(V59=\"\",\"\",VLOOKUP(V59,power_company[],2,FALSE))","v":""},null,null,null,{"$f":"IF(Z59=\"\",\"\",VLOOKUP(Z59,side[],2,FALSE))","v":""},null,null,null,{"$f":"IF(AD59=\"\",\"\",VLOOKUP(AD59,Install_reason[],2,FALSE))","v":""},null,{"$f":"IF(AF59=\"\",\"\",VLOOKUP(AF59,status[],2,FALSE))","v":""},null,null,{"$f":"IF(AI59=\"\",\"\",VLOOKUP(AI59,asset_owner[],2,FALSE))","v":""},null,null,null,null,{"$f":"IF(AN59=\"\",\"\",VLOOKUP(AN59,gps_method[],2,FALSE))","v":""},null,{"$f":"IF(AP59=\"\",\"\",VLOOKUP(AP59,risk_likelihood[],2,FALSE))","v":""},null,{"$f":"IF(AR59=\"\",\"\",VLOOKUP(AR59,risk_consequence[],2,FALSE))","v":""},null,{"$f":"IF(AT59=\"\",\"\",VLOOKUP(AT59,risk[],2,FALSE))","v":""},null,{"$f":"IF(AV59=\"\",\"\",VLOOKUP(AV59,rul_reset[],2,FALSE))","v":""},null,{"$f":"IF(AX59=\"\",\"\",VLOOKUP(AX59,use_default_rc[],2,FALSE))","v":""},null,{"$f":"IF(AZ59=\"\",\"\",VLOOKUP(AZ59,condition[],2,FALSE))","v":""},null,null,{"$f":"IF(BC59=\"\",\"\",VLOOKUP(BC59,Organisation[],2,FALSE))","v":""}]
["null",null,null,null,{"$f":"IF(D60=\"\",\"\",VLOOKUP(D60,Material[],2,FALSE))","v":""},null,{"$f":"IF(F60=\"\",\"\",VLOOKUP(F60,shape[],2,FALSE))","v":""},null,{"$f":"IF(H60=\"\",\"\",VLOOKUP(H60,make[],2,FALSE))","v":""},null,{"$f":"IF(J60=\"\",\"\",VLOOKUP(J60,mounting_type[],2,FALSE))","v":""},null,{"$f":"IF(L60=\"\",\"\",VLOOKUP(L60,attachment[],2,FALSE))","v":""},null,{"$f":"IF(N60=\"\",\"\",VLOOKUP(N60,purpose[],2,FALSE))","v":""},null,{"$f":"IF(P60=\"\",\"\",VLOOKUP(P60,coating[],2,FALSE))","v":""},null,{"$f":"IF(R60=\"\",\"\",VLOOKUP(R60,pole_in_use[],2,FALSE))","v":""},null,{"$f":"IF(T60=\"\",\"\",VLOOKUP(T60,pole_control[],2,FALSE))","v":""},null,{"$f":"IF(V60=\"\",\"\",VLOOKUP(V60,power_company[],2,FALSE))","v":""},null,null,null,{"$f":"IF(Z60=\"\",\"\",VLOOKUP(Z60,side[],2,FALSE))","v":""},null,null,null,{"$f":"IF(AD60=\"\",\"\",VLOOKUP(AD60,Install_reason[],2,FALSE))","v":""},null,{"$f":"IF(AF60=\"\",\"\",VLOOKUP(AF60,status[],2,FALSE))","v":""},null,null,{"$f":"IF(AI60=\"\",\"\",VLOOKUP(AI60,asset_owner[],2,FALSE))","v":""},null,null,null,null,{"$f":"IF(AN60=\"\",\"\",VLOOKUP(AN60,gps_method[],2,FALSE))","v":""},null,{"$f":"IF(AP60=\"\",\"\",VLOOKUP(AP60,risk_likelihood[],2,FALSE))","v":""},null,{"$f":"IF(AR60=\"\",\"\",VLOOKUP(AR60,risk_consequence[],2,FALSE))","v":""},null,{"$f":"IF(AT60=\"\",\"\",VLOOKUP(AT60,risk[],2,FALSE))","v":""},null,{"$f":"IF(AV60=\"\",\"\",VLOOKUP(AV60,rul_reset[],2,FALSE))","v":""},null,{"$f":"IF(AX60=\"\",\"\",VLOOKUP(AX60,use_default_rc[],2,FALSE))","v":""},null,{"$f":"IF(AZ60=\"\",\"\",VLOOKUP(AZ60,condition[],2,FALSE))","v":""},null,null,{"$f":"IF(BC60=\"\",\"\",VLOOKUP(BC60,Organisation[],2,FALSE))","v":""}]
["null",null,null,null,{"$f":"IF(D61=\"\",\"\",VLOOKUP(D61,Material[],2,FALSE))","v":""},null,{"$f":"IF(F61=\"\",\"\",VLOOKUP(F61,shape[],2,FALSE))","v":""},null,{"$f":"IF(H61=\"\",\"\",VLOOKUP(H61,make[],2,FALSE))","v":""},null,{"$f":"IF(J61=\"\",\"\",VLOOKUP(J61,mounting_type[],2,FALSE))","v":""},null,{"$f":"IF(L61=\"\",\"\",VLOOKUP(L61,attachment[],2,FALSE))","v":""},null,{"$f":"IF(N61=\"\",\"\",VLOOKUP(N61,purpose[],2,FALSE))","v":""},null,{"$f":"IF(P61=\"\",\"\",VLOOKUP(P61,coating[],2,FALSE))","v":""},null,{"$f":"IF(R61=\"\",\"\",VLOOKUP(R61,pole_in_use[],2,FALSE))","v":""},null,{"$f":"IF(T61=\"\",\"\",VLOOKUP(T61,pole_control[],2,FALSE))","v":""},null,{"$f":"IF(V61=\"\",\"\",VLOOKUP(V61,power_company[],2,FALSE))","v":""},null,null,null,{"$f":"IF(Z61=\"\",\"\",VLOOKUP(Z61,side[],2,FALSE))","v":""},null,null,null,{"$f":"IF(AD61=\"\",\"\",VLOOKUP(AD61,Install_reason[],2,FALSE))","v":""},null,{"$f":"IF(AF61=\"\",\"\",VLOOKUP(AF61,status[],2,FALSE))","v":""},null,null,{"$f":"IF(AI61=\"\",\"\",VLOOKUP(AI61,asset_owner[],2,FALSE))","v":""},null,null,null,null,{"$f":"IF(AN61=\"\",\"\",VLOOKUP(AN61,gps_method[],2,FALSE))","v":""},null,{"$f":"IF(AP61=\"\",\"\",VLOOKUP(AP61,risk_likelihood[],2,FALSE))","v":""},null,{"$f":"IF(AR61=\"\",\"\",VLOOKUP(AR61,risk_consequence[],2,FALSE))","v":""},null,{"$f":"IF(AT61=\"\",\"\",VLOOKUP(AT61,risk[],2,FALSE))","v":""},null,{"$f":"IF(AV61=\"\",\"\",VLOOKUP(AV61,rul_reset[],2,FALSE))","v":""},null,{"$f":"IF(AX61=\"\",\"\",VLOOKUP(AX61,use_default_rc[],2,FALSE))","v":""},null,{"$f":"IF(AZ61=\"\",\"\",VLOOKUP(AZ61,condition[],2,FALSE))","v":""},null,null,{"$f":"IF(BC61=\"\",\"\",VLOOKUP(BC61,Organisation[],2,FALSE))","v":""}]
["null",null,null,null,{"$f":"IF(D62=\"\",\"\",VLOOKUP(D62,Material[],2,FALSE))","v":""},null,{"$f":"IF(F62=\"\",\"\",VLOOKUP(F62,shape[],2,FALSE))","v":""},null,{"$f":"IF(H62=\"\",\"\",VLOOKUP(H62,make[],2,FALSE))","v":""},null,{"$f":"IF(J62=\"\",\"\",VLOOKUP(J62,mounting_type[],2,FALSE))","v":""},null,{"$f":"IF(L62=\"\",\"\",VLOOKUP(L62,attachment[],2,FALSE))","v":""},null,{"$f":"IF(N62=\"\",\"\",VLOOKUP(N62,purpose[],2,FALSE))","v":""},null,{"$f":"IF(P62=\"\",\"\",VLOOKUP(P62,coating[],2,FALSE))","v":""},null,{"$f":"IF(R62=\"\",\"\",VLOOKUP(R62,pole_in_use[],2,FALSE))","v":""},null,{"$f":"IF(T62=\"\",\"\",VLOOKUP(T62,pole_control[],2,FALSE))","v":""},null,{"$f":"IF(V62=\"\",\"\",VLOOKUP(V62,power_company[],2,FALSE))","v":""},null,null,null,{"$f":"IF(Z62=\"\",\"\",VLOOKUP(Z62,side[],2,FALSE))","v":""},null,null,null,{"$f":"IF(AD62=\"\",\"\",VLOOKUP(AD62,Install_reason[],2,FALSE))","v":""},null,{"$f":"IF(AF62=\"\",\"\",VLOOKUP(AF62,status[],2,FALSE))","v":""},null,null,{"$f":"IF(AI62=\"\",\"\",VLOOKUP(AI62,asset_owner[],2,FALSE))","v":""},null,null,null,null,{"$f":"IF(AN62=\"\",\"\",VLOOKUP(AN62,gps_method[],2,FALSE))","v":""},null,{"$f":"IF(AP62=\"\",\"\",VLOOKUP(AP62,risk_likelihood[],2,FALSE))","v":""},null,{"$f":"IF(AR62=\"\",\"\",VLOOKUP(AR62,risk_consequence[],2,FALSE))","v":""},null,{"$f":"IF(AT62=\"\",\"\",VLOOKUP(AT62,risk[],2,FALSE))","v":""},null,{"$f":"IF(AV62=\"\",\"\",VLOOKUP(AV62,rul_reset[],2,FALSE))","v":""},null,{"$f":"IF(AX62=\"\",\"\",VLOOKUP(AX62,use_default_rc[],2,FALSE))","v":""},null,{"$f":"IF(AZ62=\"\",\"\",VLOOKUP(AZ62,condition[],2,FALSE))","v":""},null,null,{"$f":"IF(BC62=\"\",\"\",VLOOKUP(BC62,Organisation[],2,FALSE))","v":""}]
["null",null,null,null,{"$f":"IF(D63=\"\",\"\",VLOOKUP(D63,Material[],2,FALSE))","v":""},null,{"$f":"IF(F63=\"\",\"\",VLOOKUP(F63,shape[],2,FALSE))","v":""},null,{"$f":"IF(H63=\"\",\"\",VLOOKUP(H63,make[],2,FALSE))","v":""},null,{"$f":"IF(J63=\"\",\"\",VLOOKUP(J63,mounting_type[],2,FALSE))","v":""},null,{"$f":"IF(L63=\"\",\"\",VLOOKUP(L63,attachment[],2,FALSE))","v":""},null,{"$f":"IF(N63=\"\",\"\",VLOOKUP(N63,purpose[],2,FALSE))","v":""},null,{"$f":"IF(P63=\"\",\"\",VLOOKUP(P63,coating[],2,FALSE))","v":""},null,{"$f":"IF(R63=\"\",\"\",VLOOKUP(R63,pole_in_use[],2,FALSE))","v":""},null,{"$f":"IF(T63=\"\",\"\",VLOOKUP(T63,pole_control[],2,FALSE))","v":""},null,{"$f":"IF(V63=\"\",\"\",VLOOKUP(V63,power_company[],2,FALSE))","v":""},null,null,null,{"$f":"IF(Z63=\"\",\"\",VLOOKUP(Z63,side[],2,FALSE))","v":""},null,null,null,{"$f":"IF(AD63=\"\",\"\",VLOOKUP(AD63,Install_reason[],2,FALSE))","v":""},null,{"$f":"IF(AF63=\"\",\"\",VLOOKUP(AF63,status[],2,FALSE))","v":""},null,null,{"$f":"IF(AI63=\"\",\"\",VLOOKUP(AI63,asset_owner[],2,FALSE))","v":""},null,null,null,null,{"$f":"IF(AN63=\"\",\"\",VLOOKUP(AN63,gps_method[],2,FALSE))","v":""},null,{"$f":"IF(AP63=\"\",\"\",VLOOKUP(AP63,risk_likelihood[],2,FALSE))","v":""},null,{"$f":"IF(AR63=\"\",\"\",VLOOKUP(AR63,risk_consequence[],2,FALSE))","v":""},null,{"$f":"IF(AT63=\"\",\"\",VLOOKUP(AT63,risk[],2,FALSE))","v":""},null,{"$f":"IF(AV63=\"\",\"\",VLOOKUP(AV63,rul_reset[],2,FALSE))","v":""},null,{"$f":"IF(AX63=\"\",\"\",VLOOKUP(AX63,use_default_rc[],2,FALSE))","v":""},null,{"$f":"IF(AZ63=\"\",\"\",VLOOKUP(AZ63,condition[],2,FALSE))","v":""},null,null,{"$f":"IF(BC63=\"\",\"\",VLOOKUP(BC63,Organisation[],2,FALSE))","v":""}]
["null",null,null,null,{"$f":"IF(D64=\"\",\"\",VLOOKUP(D64,Material[],2,FALSE))","v":""},null,{"$f":"IF(F64=\"\",\"\",VLOOKUP(F64,shape[],2,FALSE))","v":""},null,{"$f":"IF(H64=\"\",\"\",VLOOKUP(H64,make[],2,FALSE))","v":""},null,{"$f":"IF(J64=\"\",\"\",VLOOKUP(J64,mounting_type[],2,FALSE))","v":""},null,{"$f":"IF(L64=\"\",\"\",VLOOKUP(L64,attachment[],2,FALSE))","v":""},null,{"$f":"IF(N64=\"\",\"\",VLOOKUP(N64,purpose[],2,FALSE))","v":""},null,{"$f":"IF(P64=\"\",\"\",VLOOKUP(P64,coating[],2,FALSE))","v":""},null,{"$f":"IF(R64=\"\",\"\",VLOOKUP(R64,pole_in_use[],2,FALSE))","v":""},null,{"$f":"IF(T64=\"\",\"\",VLOOKUP(T64,pole_control[],2,FALSE))","v":""},null,{"$f":"IF(V64=\"\",\"\",VLOOKUP(V64,power_company[],2,FALSE))","v":""},null,null,null,{"$f":"IF(Z64=\"\",\"\",VLOOKUP(Z64,side[],2,FALSE))","v":""},null,null,null,{"$f":"IF(AD64=\"\",\"\",VLOOKUP(AD64,Install_reason[],2,FALSE))","v":""},null,{"$f":"IF(AF64=\"\",\"\",VLOOKUP(AF64,status[],2,FALSE))","v":""},null,null,{"$f":"IF(AI64=\"\",\"\",VLOOKUP(AI64,asset_owner[],2,FALSE))","v":""},null,null,null,null,{"$f":"IF(AN64=\"\",\"\",VLOOKUP(AN64,gps_method[],2,FALSE))","v":""},null,{"$f":"IF(AP64=\"\",\"\",VLOOKUP(AP64,risk_likelihood[],2,FALSE))","v":""},null,{"$f":"IF(AR64=\"\",\"\",VLOOKUP(AR64,risk_consequence[],2,FALSE))","v":""},null,{"$f":"IF(AT64=\"\",\"\",VLOOKUP(AT64,risk[],2,FALSE))","v":""},null,{"$f":"IF(AV64=\"\",\"\",VLOOKUP(AV64,rul_reset[],2,FALSE))","v":""},null,{"$f":"IF(AX64=\"\",\"\",VLOOKUP(AX64,use_default_rc[],2,FALSE))","v":""},null,{"$f":"IF(AZ64=\"\",\"\",VLOOKUP(AZ64,condition[],2,FALSE))","v":""},null,null,{"$f":"IF(BC64=\"\",\"\",VLOOKUP(BC64,Organisation[],2,FALSE))","v":""}]
["null",null,null,null,{"$f":"IF(D65=\"\",\"\",VLOOKUP(D65,Material[],2,FALSE))","v":""},null,{"$f":"IF(F65=\"\",\"\",VLOOKUP(F65,shape[],2,FALSE))","v":""},null,{"$f":"IF(H65=\"\",\"\",VLOOKUP(H65,make[],2,FALSE))","v":""},null,{"$f":"IF(J65=\"\",\"\",VLOOKUP(J65,mounting_type[],2,FALSE))","v":""},null,{"$f":"IF(L65=\"\",\"\",VLOOKUP(L65,attachment[],2,FALSE))","v":""},null,{"$f":"IF(N65=\"\",\"\",VLOOKUP(N65,purpose[],2,FALSE))","v":""},null,{"$f":"IF(P65=\"\",\"\",VLOOKUP(P65,coating[],2,FALSE))","v":""},null,{"$f":"IF(R65=\"\",\"\",VLOOKUP(R65,pole_in_use[],2,FALSE))","v":""},null,{"$f":"IF(T65=\"\",\"\",VLOOKUP(T65,pole_control[],2,FALSE))","v":""},null,{"$f":"IF(V65=\"\",\"\",VLOOKUP(V65,power_company[],2,FALSE))","v":""},null,null,null,{"$f":"IF(Z65=\"\",\"\",VLOOKUP(Z65,side[],2,FALSE))","v":""},null,null,null,{"$f":"IF(AD65=\"\",\"\",VLOOKUP(AD65,Install_reason[],2,FALSE))","v":""},null,{"$f":"IF(AF65=\"\",\"\",VLOOKUP(AF65,status[],2,FALSE))","v":""},null,null,{"$f":"IF(AI65=\"\",\"\",VLOOKUP(AI65,asset_owner[],2,FALSE))","v":""},null,null,null,null,{"$f":"IF(AN65=\"\",\"\",VLOOKUP(AN65,gps_method[],2,FALSE))","v":""},null,{"$f":"IF(AP65=\"\",\"\",VLOOKUP(AP65,risk_likelihood[],2,FALSE))","v":""},null,{"$f":"IF(AR65=\"\",\"\",VLOOKUP(AR65,risk_consequence[],2,FALSE))","v":""},null,{"$f":"IF(AT65=\"\",\"\",VLOOKUP(AT65,risk[],2,FALSE))","v":""},null,{"$f":"IF(AV65=\"\",\"\",VLOOKUP(AV65,rul_reset[],2,FALSE))","v":""},null,{"$f":"IF(AX65=\"\",\"\",VLOOKUP(AX65,use_default_rc[],2,FALSE))","v":""},null,{"$f":"IF(AZ65=\"\",\"\",VLOOKUP(AZ65,condition[],2,FALSE))","v":""},null,null,{"$f":"IF(BC65=\"\",\"\",VLOOKUP(BC65,Organisation[],2,FALSE))","v":""}]
["null",null,null,null,{"$f":"IF(D66=\"\",\"\",VLOOKUP(D66,Material[],2,FALSE))","v":""},null,{"$f":"IF(F66=\"\",\"\",VLOOKUP(F66,shape[],2,FALSE))","v":""},null,{"$f":"IF(H66=\"\",\"\",VLOOKUP(H66,make[],2,FALSE))","v":""},null,{"$f":"IF(J66=\"\",\"\",VLOOKUP(J66,mounting_type[],2,FALSE))","v":""},null,{"$f":"IF(L66=\"\",\"\",VLOOKUP(L66,attachment[],2,FALSE))","v":""},null,{"$f":"IF(N66=\"\",\"\",VLOOKUP(N66,purpose[],2,FALSE))","v":""},null,{"$f":"IF(P66=\"\",\"\",VLOOKUP(P66,coating[],2,FALSE))","v":""},null,{"$f":"IF(R66=\"\",\"\",VLOOKUP(R66,pole_in_use[],2,FALSE))","v":""},null,{"$f":"IF(T66=\"\",\"\",VLOOKUP(T66,pole_control[],2,FALSE))","v":""},null,{"$f":"IF(V66=\"\",\"\",VLOOKUP(V66,power_company[],2,FALSE))","v":""},null,null,null,{"$f":"IF(Z66=\"\",\"\",VLOOKUP(Z66,side[],2,FALSE))","v":""},null,null,null,{"$f":"IF(AD66=\"\",\"\",VLOOKUP(AD66,Install_reason[],2,FALSE))","v":""},null,{"$f":"IF(AF66=\"\",\"\",VLOOKUP(AF66,status[],2,FALSE))","v":""},null,null,{"$f":"IF(AI66=\"\",\"\",VLOOKUP(AI66,asset_owner[],2,FALSE))","v":""},null,null,null,null,{"$f":"IF(AN66=\"\",\"\",VLOOKUP(AN66,gps_method[],2,FALSE))","v":""},null,{"$f":"IF(AP66=\"\",\"\",VLOOKUP(AP66,risk_likelihood[],2,FALSE))","v":""},null,{"$f":"IF(AR66=\"\",\"\",VLOOKUP(AR66,risk_consequence[],2,FALSE))","v":""},null,{"$f":"IF(AT66=\"\",\"\",VLOOKUP(AT66,risk[],2,FALSE))","v":""},null,{"$f":"IF(AV66=\"\",\"\",VLOOKUP(AV66,rul_reset[],2,FALSE))","v":""},null,{"$f":"IF(AX66=\"\",\"\",VLOOKUP(AX66,use_default_rc[],2,FALSE))","v":""},null,{"$f":"IF(AZ66=\"\",\"\",VLOOKUP(AZ66,condition[],2,FALSE))","v":""},null,null,{"$f":"IF(BC66=\"\",\"\",VLOOKUP(BC66,Organisation[],2,FALSE))","v":""}]
["null",null,null,null,{"$f":"IF(D67=\"\",\"\",VLOOKUP(D67,Material[],2,FALSE))","v":""},null,{"$f":"IF(F67=\"\",\"\",VLOOKUP(F67,shape[],2,FALSE))","v":""},null,{"$f":"IF(H67=\"\",\"\",VLOOKUP(H67,make[],2,FALSE))","v":""},null,{"$f":"IF(J67=\"\",\"\",VLOOKUP(J67,mounting_type[],2,FALSE))","v":""},null,{"$f":"IF(L67=\"\",\"\",VLOOKUP(L67,attachment[],2,FALSE))","v":""},null,{"$f":"IF(N67=\"\",\"\",VLOOKUP(N67,purpose[],2,FALSE))","v":""},null,{"$f":"IF(P67=\"\",\"\",VLOOKUP(P67,coating[],2,FALSE))","v":""},null,{"$f":"IF(R67=\"\",\"\",VLOOKUP(R67,pole_in_use[],2,FALSE))","v":""},null,{"$f":"IF(T67=\"\",\"\",VLOOKUP(T67,pole_control[],2,FALSE))","v":""},null,{"$f":"IF(V67=\"\",\"\",VLOOKUP(V67,power_company[],2,FALSE))","v":""},null,null,null,{"$f":"IF(Z67=\"\",\"\",VLOOKUP(Z67,side[],2,FALSE))","v":""},null,null,null,{"$f":"IF(AD67=\"\",\"\",VLOOKUP(AD67,Install_reason[],2,FALSE))","v":""},null,{"$f":"IF(AF67=\"\",\"\",VLOOKUP(AF67,status[],2,FALSE))","v":""},null,null,{"$f":"IF(AI67=\"\",\"\",VLOOKUP(AI67,asset_owner[],2,FALSE))","v":""},null,null,null,null,{"$f":"IF(AN67=\"\",\"\",VLOOKUP(AN67,gps_method[],2,FALSE))","v":""},null,{"$f":"IF(AP67=\"\",\"\",VLOOKUP(AP67,risk_likelihood[],2,FALSE))","v":""},null,{"$f":"IF(AR67=\"\",\"\",VLOOKUP(AR67,risk_consequence[],2,FALSE))","v":""},null,{"$f":"IF(AT67=\"\",\"\",VLOOKUP(AT67,risk[],2,FALSE))","v":""},null,{"$f":"IF(AV67=\"\",\"\",VLOOKUP(AV67,rul_reset[],2,FALSE))","v":""},null,{"$f":"IF(AX67=\"\",\"\",VLOOKUP(AX67,use_default_rc[],2,FALSE))","v":""},null,{"$f":"IF(AZ67=\"\",\"\",VLOOKUP(AZ67,condition[],2,FALSE))","v":""},null,null,{"$f":"IF(BC67=\"\",\"\",VLOOKUP(BC67,Organisation[],2,FALSE))","v":""}]
["null",null,null,null,{"$f":"IF(D68=\"\",\"\",VLOOKUP(D68,Material[],2,FALSE))","v":""},null,{"$f":"IF(F68=\"\",\"\",VLOOKUP(F68,shape[],2,FALSE))","v":""},null,{"$f":"IF(H68=\"\",\"\",VLOOKUP(H68,make[],2,FALSE))","v":""},null,{"$f":"IF(J68=\"\",\"\",VLOOKUP(J68,mounting_type[],2,FALSE))","v":""},null,{"$f":"IF(L68=\"\",\"\",VLOOKUP(L68,attachment[],2,FALSE))","v":""},null,{"$f":"IF(N68=\"\",\"\",VLOOKUP(N68,purpose[],2,FALSE))","v":""},null,{"$f":"IF(P68=\"\",\"\",VLOOKUP(P68,coating[],2,FALSE))","v":""},null,{"$f":"IF(R68=\"\",\"\",VLOOKUP(R68,pole_in_use[],2,FALSE))","v":""},null,{"$f":"IF(T68=\"\",\"\",VLOOKUP(T68,pole_control[],2,FALSE))","v":""},null,{"$f":"IF(V68=\"\",\"\",VLOOKUP(V68,power_company[],2,FALSE))","v":""},null,null,null,{"$f":"IF(Z68=\"\",\"\",VLOOKUP(Z68,side[],2,FALSE))","v":""},null,null,null,{"$f":"IF(AD68=\"\",\"\",VLOOKUP(AD68,Install_reason[],2,FALSE))","v":""},null,{"$f":"IF(AF68=\"\",\"\",VLOOKUP(AF68,status[],2,FALSE))","v":""},null,null,{"$f":"IF(AI68=\"\",\"\",VLOOKUP(AI68,asset_owner[],2,FALSE))","v":""},null,null,null,null,{"$f":"IF(AN68=\"\",\"\",VLOOKUP(AN68,gps_method[],2,FALSE))","v":""},null,{"$f":"IF(AP68=\"\",\"\",VLOOKUP(AP68,risk_likelihood[],2,FALSE))","v":""},null,{"$f":"IF(AR68=\"\",\"\",VLOOKUP(AR68,risk_consequence[],2,FALSE))","v":""},null,{"$f":"IF(AT68=\"\",\"\",VLOOKUP(AT68,risk[],2,FALSE))","v":""},null,{"$f":"IF(AV68=\"\",\"\",VLOOKUP(AV68,rul_reset[],2,FALSE))","v":""},null,{"$f":"IF(AX68=\"\",\"\",VLOOKUP(AX68,use_default_rc[],2,FALSE))","v":""},null,{"$f":"IF(AZ68=\"\",\"\",VLOOKUP(AZ68,condition[],2,FALSE))","v":""},null,null,{"$f":"IF(BC68=\"\",\"\",VLOOKUP(BC68,Organisation[],2,FALSE))","v":""}]
[{"$f":"_xlfn.FILTERXML(_xlfn.WEBSERVICE(\"https://nds-beta.mobileroad.org/xy_sh?rp=\"&B69&\"/\"&C69&\"&xml=true\"),\"/lrms/id_road\")","v":"null"},null,null,null,{"$f":"IF(D69=\"\",\"\",VLOOKUP(D69,Material[],2,FALSE))","v":""},null,{"$f":"IF(F69=\"\",\"\",VLOOKUP(F69,shape[],2,FALSE))","v":""},null,{"$f":"IF(H69=\"\",\"\",VLOOKUP(H69,make[],2,FALSE))","v":""},null,{"$f":"IF(J69=\"\",\"\",VLOOKUP(J69,mounting_type[],2,FALSE))","v":""},null,{"$f":"IF(L69=\"\",\"\",VLOOKUP(L69,attachment[],2,FALSE))","v":""},null,{"$f":"IF(N69=\"\",\"\",VLOOKUP(N69,purpose[],2,FALSE))","v":""},null,{"$f":"IF(P69=\"\",\"\",VLOOKUP(P69,coating[],2,FALSE))","v":""},null,{"$f":"IF(R69=\"\",\"\",VLOOKUP(R69,pole_in_use[],2,FALSE))","v":""},null,{"$f":"IF(T69=\"\",\"\",VLOOKUP(T69,pole_control[],2,FALSE))","v":""},null,{"$f":"IF(V69=\"\",\"\",VLOOKUP(V69,power_company[],2,FALSE))","v":""},null,null,null,{"$f":"IF(Z69=\"\",\"\",VLOOKUP(Z69,side[],2,FALSE))","v":""},null,null,null,{"$f":"IF(AD69=\"\",\"\",VLOOKUP(AD69,Install_reason[],2,FALSE))","v":""},null,{"$f":"IF(AF69=\"\",\"\",VLOOKUP(AF69,status[],2,FALSE))","v":""},null,null,{"$f":"IF(AI69=\"\",\"\",VLOOKUP(AI69,asset_owner[],2,FALSE))","v":""},null,null,null,null,{"$f":"IF(AN69=\"\",\"\",VLOOKUP(AN69,gps_method[],2,FALSE))","v":""},null,{"$f":"IF(AP69=\"\",\"\",VLOOKUP(AP69,risk_likelihood[],2,FALSE))","v":""},null,{"$f":"IF(AR69=\"\",\"\",VLOOKUP(AR69,risk_consequence[],2,FALSE))","v":""},null,{"$f":"IF(AT69=\"\",\"\",VLOOKUP(AT69,risk[],2,FALSE))","v":""},null,{"$f":"IF(AV69=\"\",\"\",VLOOKUP(AV69,rul_reset[],2,FALSE))","v":""},null,{"$f":"IF(AX69=\"\",\"\",VLOOKUP(AX69,use_default_rc[],2,FALSE))","v":""},null,{"$f":"IF(AZ69=\"\",\"\",VLOOKUP(AZ69,condition[],2,FALSE))","v":""},null,null,{"$f":"IF(BC69=\"\",\"\",VLOOKUP(BC69,Organisation[],2,FALSE))","v":""}]
["null",null,null,null,{"$f":"IF(D70=\"\",\"\",VLOOKUP(D70,Material[],2,FALSE))","v":""},null,{"$f":"IF(F70=\"\",\"\",VLOOKUP(F70,shape[],2,FALSE))","v":""},null,{"$f":"IF(H70=\"\",\"\",VLOOKUP(H70,make[],2,FALSE))","v":""},null,{"$f":"IF(J70=\"\",\"\",VLOOKUP(J70,mounting_type[],2,FALSE))","v":""},null,{"$f":"IF(L70=\"\",\"\",VLOOKUP(L70,attachment[],2,FALSE))","v":""},null,{"$f":"IF(N70=\"\",\"\",VLOOKUP(N70,purpose[],2,FALSE))","v":""},null,{"$f":"IF(P70=\"\",\"\",VLOOKUP(P70,coating[],2,FALSE))","v":""},null,{"$f":"IF(R70=\"\",\"\",VLOOKUP(R70,pole_in_use[],2,FALSE))","v":""},null,{"$f":"IF(T70=\"\",\"\",VLOOKUP(T70,pole_control[],2,FALSE))","v":""},null,{"$f":"IF(V70=\"\",\"\",VLOOKUP(V70,power_company[],2,FALSE))","v":""},null,null,null,{"$f":"IF(Z70=\"\",\"\",VLOOKUP(Z70,side[],2,FALSE))","v":""},null,null,null,{"$f":"IF(AD70=\"\",\"\",VLOOKUP(AD70,Install_reason[],2,FALSE))","v":""},null,{"$f":"IF(AF70=\"\",\"\",VLOOKUP(AF70,status[],2,FALSE))","v":""},null,null,{"$f":"IF(AI70=\"\",\"\",VLOOKUP(AI70,asset_owner[],2,FALSE))","v":""},null,null,null,null,{"$f":"IF(AN70=\"\",\"\",VLOOKUP(AN70,gps_method[],2,FALSE))","v":""},null,{"$f":"IF(AP70=\"\",\"\",VLOOKUP(AP70,risk_likelihood[],2,FALSE))","v":""},null,{"$f":"IF(AR70=\"\",\"\",VLOOKUP(AR70,risk_consequence[],2,FALSE))","v":""},null,{"$f":"IF(AT70=\"\",\"\",VLOOKUP(AT70,risk[],2,FALSE))","v":""},null,{"$f":"IF(AV70=\"\",\"\",VLOOKUP(AV70,rul_reset[],2,FALSE))","v":""},null,{"$f":"IF(AX70=\"\",\"\",VLOOKUP(AX70,use_default_rc[],2,FALSE))","v":""},null,{"$f":"IF(AZ70=\"\",\"\",VLOOKUP(AZ70,condition[],2,FALSE))","v":""},null,null,{"$f":"IF(BC70=\"\",\"\",VLOOKUP(BC70,Organisation[],2,FALSE))","v":""}]
["null",null,null,null,{"$f":"IF(D71=\"\",\"\",VLOOKUP(D71,Material[],2,FALSE))","v":""},null,{"$f":"IF(F71=\"\",\"\",VLOOKUP(F71,shape[],2,FALSE))","v":""},null,{"$f":"IF(H71=\"\",\"\",VLOOKUP(H71,make[],2,FALSE))","v":""},null,{"$f":"IF(J71=\"\",\"\",VLOOKUP(J71,mounting_type[],2,FALSE))","v":""},null,{"$f":"IF(L71=\"\",\"\",VLOOKUP(L71,attachment[],2,FALSE))","v":""},null,{"$f":"IF(N71=\"\",\"\",VLOOKUP(N71,purpose[],2,FALSE))","v":""},null,{"$f":"IF(P71=\"\",\"\",VLOOKUP(P71,coating[],2,FALSE))","v":""},null,{"$f":"IF(R71=\"\",\"\",VLOOKUP(R71,pole_in_use[],2,FALSE))","v":""},null,{"$f":"IF(T71=\"\",\"\",VLOOKUP(T71,pole_control[],2,FALSE))","v":""},null,{"$f":"IF(V71=\"\",\"\",VLOOKUP(V71,power_company[],2,FALSE))","v":""},null,null,null,{"$f":"IF(Z71=\"\",\"\",VLOOKUP(Z71,side[],2,FALSE))","v":""},null,null,null,{"$f":"IF(AD71=\"\",\"\",VLOOKUP(AD71,Install_reason[],2,FALSE))","v":""},null,{"$f":"IF(AF71=\"\",\"\",VLOOKUP(AF71,status[],2,FALSE))","v":""},null,null,{"$f":"IF(AI71=\"\",\"\",VLOOKUP(AI71,asset_owner[],2,FALSE))","v":""},null,null,null,null,{"$f":"IF(AN71=\"\",\"\",VLOOKUP(AN71,gps_method[],2,FALSE))","v":""},null,{"$f":"IF(AP71=\"\",\"\",VLOOKUP(AP71,risk_likelihood[],2,FALSE))","v":""},null,{"$f":"IF(AR71=\"\",\"\",VLOOKUP(AR71,risk_consequence[],2,FALSE))","v":""},null,{"$f":"IF(AT71=\"\",\"\",VLOOKUP(AT71,risk[],2,FALSE))","v":""},null,{"$f":"IF(AV71=\"\",\"\",VLOOKUP(AV71,rul_reset[],2,FALSE))","v":""},null,{"$f":"IF(AX71=\"\",\"\",VLOOKUP(AX71,use_default_rc[],2,FALSE))","v":""},null,{"$f":"IF(AZ71=\"\",\"\",VLOOKUP(AZ71,condition[],2,FALSE))","v":""},null,null,{"$f":"IF(BC71=\"\",\"\",VLOOKUP(BC71,Organisation[],2,FALSE))","v":""}]
["null",null,null,null,{"$f":"IF(D72=\"\",\"\",VLOOKUP(D72,Material[],2,FALSE))","v":""},null,{"$f":"IF(F72=\"\",\"\",VLOOKUP(F72,shape[],2,FALSE))","v":""},null,{"$f":"IF(H72=\"\",\"\",VLOOKUP(H72,make[],2,FALSE))","v":""},null,{"$f":"IF(J72=\"\",\"\",VLOOKUP(J72,mounting_type[],2,FALSE))","v":""},null,{"$f":"IF(L72=\"\",\"\",VLOOKUP(L72,attachment[],2,FALSE))","v":""},null,{"$f":"IF(N72=\"\",\"\",VLOOKUP(N72,purpose[],2,FALSE))","v":""},null,{"$f":"IF(P72=\"\",\"\",VLOOKUP(P72,coating[],2,FALSE))","v":""},null,{"$f":"IF(R72=\"\",\"\",VLOOKUP(R72,pole_in_use[],2,FALSE))","v":""},null,{"$f":"IF(T72=\"\",\"\",VLOOKUP(T72,pole_control[],2,FALSE))","v":""},null,{"$f":"IF(V72=\"\",\"\",VLOOKUP(V72,power_company[],2,FALSE))","v":""},null,null,null,{"$f":"IF(Z72=\"\",\"\",VLOOKUP(Z72,side[],2,FALSE))","v":""},null,null,null,{"$f":"IF(AD72=\"\",\"\",VLOOKUP(AD72,Install_reason[],2,FALSE))","v":""},null,{"$f":"IF(AF72=\"\",\"\",VLOOKUP(AF72,status[],2,FALSE))","v":""},null,null,{"$f":"IF(AI72=\"\",\"\",VLOOKUP(AI72,asset_owner[],2,FALSE))","v":""},null,null,null,null,{"$f":"IF(AN72=\"\",\"\",VLOOKUP(AN72,gps_method[],2,FALSE))","v":""},null,{"$f":"IF(AP72=\"\",\"\",VLOOKUP(AP72,risk_likelihood[],2,FALSE))","v":""},null,{"$f":"IF(AR72=\"\",\"\",VLOOKUP(AR72,risk_consequence[],2,FALSE))","v":""},null,{"$f":"IF(AT72=\"\",\"\",VLOOKUP(AT72,risk[],2,FALSE))","v":""},null,{"$f":"IF(AV72=\"\",\"\",VLOOKUP(AV72,rul_reset[],2,FALSE))","v":""},null,{"$f":"IF(AX72=\"\",\"\",VLOOKUP(AX72,use_default_rc[],2,FALSE))","v":""},null,{"$f":"IF(AZ72=\"\",\"\",VLOOKUP(AZ72,condition[],2,FALSE))","v":""},null,null,{"$f":"IF(BC72=\"\",\"\",VLOOKUP(BC72,Organisation[],2,FALSE))","v":""}]
["null",null,null,null,{"$f":"IF(D73=\"\",\"\",VLOOKUP(D73,Material[],2,FALSE))","v":""},null,{"$f":"IF(F73=\"\",\"\",VLOOKUP(F73,shape[],2,FALSE))","v":""},null,{"$f":"IF(H73=\"\",\"\",VLOOKUP(H73,make[],2,FALSE))","v":""},null,{"$f":"IF(J73=\"\",\"\",VLOOKUP(J73,mounting_type[],2,FALSE))","v":""},null,{"$f":"IF(L73=\"\",\"\",VLOOKUP(L73,attachment[],2,FALSE))","v":""},null,{"$f":"IF(N73=\"\",\"\",VLOOKUP(N73,purpose[],2,FALSE))","v":""},null,{"$f":"IF(P73=\"\",\"\",VLOOKUP(P73,coating[],2,FALSE))","v":""},null,{"$f":"IF(R73=\"\",\"\",VLOOKUP(R73,pole_in_use[],2,FALSE))","v":""},null,{"$f":"IF(T73=\"\",\"\",VLOOKUP(T73,pole_control[],2,FALSE))","v":""},null,{"$f":"IF(V73=\"\",\"\",VLOOKUP(V73,power_company[],2,FALSE))","v":""},null,null,null,{"$f":"IF(Z73=\"\",\"\",VLOOKUP(Z73,side[],2,FALSE))","v":""},null,null,null,{"$f":"IF(AD73=\"\",\"\",VLOOKUP(AD73,Install_reason[],2,FALSE))","v":""},null,{"$f":"IF(AF73=\"\",\"\",VLOOKUP(AF73,status[],2,FALSE))","v":""},null,null,{"$f":"IF(AI73=\"\",\"\",VLOOKUP(AI73,asset_owner[],2,FALSE))","v":""},null,null,null,null,{"$f":"IF(AN73=\"\",\"\",VLOOKUP(AN73,gps_method[],2,FALSE))","v":""},null,{"$f":"IF(AP73=\"\",\"\",VLOOKUP(AP73,risk_likelihood[],2,FALSE))","v":""},null,{"$f":"IF(AR73=\"\",\"\",VLOOKUP(AR73,risk_consequence[],2,FALSE))","v":""},null,{"$f":"IF(AT73=\"\",\"\",VLOOKUP(AT73,risk[],2,FALSE))","v":""},null,{"$f":"IF(AV73=\"\",\"\",VLOOKUP(AV73,rul_reset[],2,FALSE))","v":""},null,{"$f":"IF(AX73=\"\",\"\",VLOOKUP(AX73,use_default_rc[],2,FALSE))","v":""},null,{"$f":"IF(AZ73=\"\",\"\",VLOOKUP(AZ73,condition[],2,FALSE))","v":""},null,null,{"$f":"IF(BC73=\"\",\"\",VLOOKUP(BC73,Organisation[],2,FALSE))","v":""}]
["null",null,null,null,{"$f":"IF(D74=\"\",\"\",VLOOKUP(D74,Material[],2,FALSE))","v":""},null,{"$f":"IF(F74=\"\",\"\",VLOOKUP(F74,shape[],2,FALSE))","v":""},null,{"$f":"IF(H74=\"\",\"\",VLOOKUP(H74,make[],2,FALSE))","v":""},null,{"$f":"IF(J74=\"\",\"\",VLOOKUP(J74,mounting_type[],2,FALSE))","v":""},null,{"$f":"IF(L74=\"\",\"\",VLOOKUP(L74,attachment[],2,FALSE))","v":""},null,{"$f":"IF(N74=\"\",\"\",VLOOKUP(N74,purpose[],2,FALSE))","v":""},null,{"$f":"IF(P74=\"\",\"\",VLOOKUP(P74,coating[],2,FALSE))","v":""},null,{"$f":"IF(R74=\"\",\"\",VLOOKUP(R74,pole_in_use[],2,FALSE))","v":""},null,{"$f":"IF(T74=\"\",\"\",VLOOKUP(T74,pole_control[],2,FALSE))","v":""},null,{"$f":"IF(V74=\"\",\"\",VLOOKUP(V74,power_company[],2,FALSE))","v":""},null,null,null,{"$f":"IF(Z74=\"\",\"\",VLOOKUP(Z74,side[],2,FALSE))","v":""},null,null,null,{"$f":"IF(AD74=\"\",\"\",VLOOKUP(AD74,Install_reason[],2,FALSE))","v":""},null,{"$f":"IF(AF74=\"\",\"\",VLOOKUP(AF74,status[],2,FALSE))","v":""},null,null,{"$f":"IF(AI74=\"\",\"\",VLOOKUP(AI74,asset_owner[],2,FALSE))","v":""},null,null,null,null,{"$f":"IF(AN74=\"\",\"\",VLOOKUP(AN74,gps_method[],2,FALSE))","v":""},null,{"$f":"IF(AP74=\"\",\"\",VLOOKUP(AP74,risk_likelihood[],2,FALSE))","v":""},null,{"$f":"IF(AR74=\"\",\"\",VLOOKUP(AR74,risk_consequence[],2,FALSE))","v":""},null,{"$f":"IF(AT74=\"\",\"\",VLOOKUP(AT74,risk[],2,FALSE))","v":""},null,{"$f":"IF(AV74=\"\",\"\",VLOOKUP(AV74,rul_reset[],2,FALSE))","v":""},null,{"$f":"IF(AX74=\"\",\"\",VLOOKUP(AX74,use_default_rc[],2,FALSE))","v":""},null,{"$f":"IF(AZ74=\"\",\"\",VLOOKUP(AZ74,condition[],2,FALSE))","v":""},null,null,{"$f":"IF(BC74=\"\",\"\",VLOOKUP(BC74,Organisation[],2,FALSE))","v":""}]
["null",null,null,null,{"$f":"IF(D75=\"\",\"\",VLOOKUP(D75,Material[],2,FALSE))","v":""},null,{"$f":"IF(F75=\"\",\"\",VLOOKUP(F75,shape[],2,FALSE))","v":""},null,{"$f":"IF(H75=\"\",\"\",VLOOKUP(H75,make[],2,FALSE))","v":""},null,{"$f":"IF(J75=\"\",\"\",VLOOKUP(J75,mounting_type[],2,FALSE))","v":""},null,{"$f":"IF(L75=\"\",\"\",VLOOKUP(L75,attachment[],2,FALSE))","v":""},null,{"$f":"IF(N75=\"\",\"\",VLOOKUP(N75,purpose[],2,FALSE))","v":""},null,{"$f":"IF(P75=\"\",\"\",VLOOKUP(P75,coating[],2,FALSE))","v":""},null,{"$f":"IF(R75=\"\",\"\",VLOOKUP(R75,pole_in_use[],2,FALSE))","v":""},null,{"$f":"IF(T75=\"\",\"\",VLOOKUP(T75,pole_control[],2,FALSE))","v":""},null,{"$f":"IF(V75=\"\",\"\",VLOOKUP(V75,power_company[],2,FALSE))","v":""},null,null,null,{"$f":"IF(Z75=\"\",\"\",VLOOKUP(Z75,side[],2,FALSE))","v":""},null,null,null,{"$f":"IF(AD75=\"\",\"\",VLOOKUP(AD75,Install_reason[],2,FALSE))","v":""},null,{"$f":"IF(AF75=\"\",\"\",VLOOKUP(AF75,status[],2,FALSE))","v":""},null,null,{"$f":"IF(AI75=\"\",\"\",VLOOKUP(AI75,asset_owner[],2,FALSE))","v":""},null,null,null,null,{"$f":"IF(AN75=\"\",\"\",VLOOKUP(AN75,gps_method[],2,FALSE))","v":""},null,{"$f":"IF(AP75=\"\",\"\",VLOOKUP(AP75,risk_likelihood[],2,FALSE))","v":""},null,{"$f":"IF(AR75=\"\",\"\",VLOOKUP(AR75,risk_consequence[],2,FALSE))","v":""},null,{"$f":"IF(AT75=\"\",\"\",VLOOKUP(AT75,risk[],2,FALSE))","v":""},null,{"$f":"IF(AV75=\"\",\"\",VLOOKUP(AV75,rul_reset[],2,FALSE))","v":""},null,{"$f":"IF(AX75=\"\",\"\",VLOOKUP(AX75,use_default_rc[],2,FALSE))","v":""},null,{"$f":"IF(AZ75=\"\",\"\",VLOOKUP(AZ75,condition[],2,FALSE))","v":""},null,null,{"$f":"IF(BC75=\"\",\"\",VLOOKUP(BC75,Organisation[],2,FALSE))","v":""}]
["null",null,null,null,{"$f":"IF(D76=\"\",\"\",VLOOKUP(D76,Material[],2,FALSE))","v":""},null,{"$f":"IF(F76=\"\",\"\",VLOOKUP(F76,shape[],2,FALSE))","v":""},null,{"$f":"IF(H76=\"\",\"\",VLOOKUP(H76,make[],2,FALSE))","v":""},null,{"$f":"IF(J76=\"\",\"\",VLOOKUP(J76,mounting_type[],2,FALSE))","v":""},null,{"$f":"IF(L76=\"\",\"\",VLOOKUP(L76,attachment[],2,FALSE))","v":""},null,{"$f":"IF(N76=\"\",\"\",VLOOKUP(N76,purpose[],2,FALSE))","v":""},null,{"$f":"IF(P76=\"\",\"\",VLOOKUP(P76,coating[],2,FALSE))","v":""},null,{"$f":"IF(R76=\"\",\"\",VLOOKUP(R76,pole_in_use[],2,FALSE))","v":""},null,{"$f":"IF(T76=\"\",\"\",VLOOKUP(T76,pole_control[],2,FALSE))","v":""},null,{"$f":"IF(V76=\"\",\"\",VLOOKUP(V76,power_company[],2,FALSE))","v":""},null,null,null,{"$f":"IF(Z76=\"\",\"\",VLOOKUP(Z76,side[],2,FALSE))","v":""},null,null,null,{"$f":"IF(AD76=\"\",\"\",VLOOKUP(AD76,Install_reason[],2,FALSE))","v":""},null,{"$f":"IF(AF76=\"\",\"\",VLOOKUP(AF76,status[],2,FALSE))","v":""},null,null,{"$f":"IF(AI76=\"\",\"\",VLOOKUP(AI76,asset_owner[],2,FALSE))","v":""},null,null,null,null,{"$f":"IF(AN76=\"\",\"\",VLOOKUP(AN76,gps_method[],2,FALSE))","v":""},null,{"$f":"IF(AP76=\"\",\"\",VLOOKUP(AP76,risk_likelihood[],2,FALSE))","v":""},null,{"$f":"IF(AR76=\"\",\"\",VLOOKUP(AR76,risk_consequence[],2,FALSE))","v":""},null,{"$f":"IF(AT76=\"\",\"\",VLOOKUP(AT76,risk[],2,FALSE))","v":""},null,{"$f":"IF(AV76=\"\",\"\",VLOOKUP(AV76,rul_reset[],2,FALSE))","v":""},null,{"$f":"IF(AX76=\"\",\"\",VLOOKUP(AX76,use_default_rc[],2,FALSE))","v":""},null,{"$f":"IF(AZ76=\"\",\"\",VLOOKUP(AZ76,condition[],2,FALSE))","v":""},null,null,{"$f":"IF(BC76=\"\",\"\",VLOOKUP(BC76,Organisation[],2,FALSE))","v":""}]
["null",null,null,null,{"$f":"IF(D77=\"\",\"\",VLOOKUP(D77,Material[],2,FALSE))","v":""},null,{"$f":"IF(F77=\"\",\"\",VLOOKUP(F77,shape[],2,FALSE))","v":""},null,{"$f":"IF(H77=\"\",\"\",VLOOKUP(H77,make[],2,FALSE))","v":""},null,{"$f":"IF(J77=\"\",\"\",VLOOKUP(J77,mounting_type[],2,FALSE))","v":""},null,{"$f":"IF(L77=\"\",\"\",VLOOKUP(L77,attachment[],2,FALSE))","v":""},null,{"$f":"IF(N77=\"\",\"\",VLOOKUP(N77,purpose[],2,FALSE))","v":""},null,{"$f":"IF(P77=\"\",\"\",VLOOKUP(P77,coating[],2,FALSE))","v":""},null,{"$f":"IF(R77=\"\",\"\",VLOOKUP(R77,pole_in_use[],2,FALSE))","v":""},null,{"$f":"IF(T77=\"\",\"\",VLOOKUP(T77,pole_control[],2,FALSE))","v":""},null,{"$f":"IF(V77=\"\",\"\",VLOOKUP(V77,power_company[],2,FALSE))","v":""},null,null,null,{"$f":"IF(Z77=\"\",\"\",VLOOKUP(Z77,side[],2,FALSE))","v":""},null,null,null,{"$f":"IF(AD77=\"\",\"\",VLOOKUP(AD77,Install_reason[],2,FALSE))","v":""},null,{"$f":"IF(AF77=\"\",\"\",VLOOKUP(AF77,status[],2,FALSE))","v":""},null,null,{"$f":"IF(AI77=\"\",\"\",VLOOKUP(AI77,asset_owner[],2,FALSE))","v":""},null,null,null,null,{"$f":"IF(AN77=\"\",\"\",VLOOKUP(AN77,gps_method[],2,FALSE))","v":""},null,{"$f":"IF(AP77=\"\",\"\",VLOOKUP(AP77,risk_likelihood[],2,FALSE))","v":""},null,{"$f":"IF(AR77=\"\",\"\",VLOOKUP(AR77,risk_consequence[],2,FALSE))","v":""},null,{"$f":"IF(AT77=\"\",\"\",VLOOKUP(AT77,risk[],2,FALSE))","v":""},null,{"$f":"IF(AV77=\"\",\"\",VLOOKUP(AV77,rul_reset[],2,FALSE))","v":""},null,{"$f":"IF(AX77=\"\",\"\",VLOOKUP(AX77,use_default_rc[],2,FALSE))","v":""},null,{"$f":"IF(AZ77=\"\",\"\",VLOOKUP(AZ77,condition[],2,FALSE))","v":""},null,null,{"$f":"IF(BC77=\"\",\"\",VLOOKUP(BC77,Organisation[],2,FALSE))","v":""}]
["null",null,null,null,{"$f":"IF(D78=\"\",\"\",VLOOKUP(D78,Material[],2,FALSE))","v":""},null,{"$f":"IF(F78=\"\",\"\",VLOOKUP(F78,shape[],2,FALSE))","v":""},null,{"$f":"IF(H78=\"\",\"\",VLOOKUP(H78,make[],2,FALSE))","v":""},null,{"$f":"IF(J78=\"\",\"\",VLOOKUP(J78,mounting_type[],2,FALSE))","v":""},null,{"$f":"IF(L78=\"\",\"\",VLOOKUP(L78,attachment[],2,FALSE))","v":""},null,{"$f":"IF(N78=\"\",\"\",VLOOKUP(N78,purpose[],2,FALSE))","v":""},null,{"$f":"IF(P78=\"\",\"\",VLOOKUP(P78,coating[],2,FALSE))","v":""},null,{"$f":"IF(R78=\"\",\"\",VLOOKUP(R78,pole_in_use[],2,FALSE))","v":""},null,{"$f":"IF(T78=\"\",\"\",VLOOKUP(T78,pole_control[],2,FALSE))","v":""},null,{"$f":"IF(V78=\"\",\"\",VLOOKUP(V78,power_company[],2,FALSE))","v":""},null,null,null,{"$f":"IF(Z78=\"\",\"\",VLOOKUP(Z78,side[],2,FALSE))","v":""},null,null,null,{"$f":"IF(AD78=\"\",\"\",VLOOKUP(AD78,Install_reason[],2,FALSE))","v":""},null,{"$f":"IF(AF78=\"\",\"\",VLOOKUP(AF78,status[],2,FALSE))","v":""},null,null,{"$f":"IF(AI78=\"\",\"\",VLOOKUP(AI78,asset_owner[],2,FALSE))","v":""},null,null,null,null,{"$f":"IF(AN78=\"\",\"\",VLOOKUP(AN78,gps_method[],2,FALSE))","v":""},null,{"$f":"IF(AP78=\"\",\"\",VLOOKUP(AP78,risk_likelihood[],2,FALSE))","v":""},null,{"$f":"IF(AR78=\"\",\"\",VLOOKUP(AR78,risk_consequence[],2,FALSE))","v":""},null,{"$f":"IF(AT78=\"\",\"\",VLOOKUP(AT78,risk[],2,FALSE))","v":""},null,{"$f":"IF(AV78=\"\",\"\",VLOOKUP(AV78,rul_reset[],2,FALSE))","v":""},null,{"$f":"IF(AX78=\"\",\"\",VLOOKUP(AX78,use_default_rc[],2,FALSE))","v":""},null,{"$f":"IF(AZ78=\"\",\"\",VLOOKUP(AZ78,condition[],2,FALSE))","v":""},null,null,{"$f":"IF(BC78=\"\",\"\",VLOOKUP(BC78,Organisation[],2,FALSE))","v":""}]
["null",null,null,null,{"$f":"IF(D79=\"\",\"\",VLOOKUP(D79,Material[],2,FALSE))","v":""},null,{"$f":"IF(F79=\"\",\"\",VLOOKUP(F79,shape[],2,FALSE))","v":""},null,{"$f":"IF(H79=\"\",\"\",VLOOKUP(H79,make[],2,FALSE))","v":""},null,{"$f":"IF(J79=\"\",\"\",VLOOKUP(J79,mounting_type[],2,FALSE))","v":""},null,{"$f":"IF(L79=\"\",\"\",VLOOKUP(L79,attachment[],2,FALSE))","v":""},null,{"$f":"IF(N79=\"\",\"\",VLOOKUP(N79,purpose[],2,FALSE))","v":""},null,{"$f":"IF(P79=\"\",\"\",VLOOKUP(P79,coating[],2,FALSE))","v":""},null,{"$f":"IF(R79=\"\",\"\",VLOOKUP(R79,pole_in_use[],2,FALSE))","v":""},null,{"$f":"IF(T79=\"\",\"\",VLOOKUP(T79,pole_control[],2,FALSE))","v":""},null,{"$f":"IF(V79=\"\",\"\",VLOOKUP(V79,power_company[],2,FALSE))","v":""},null,null,null,{"$f":"IF(Z79=\"\",\"\",VLOOKUP(Z79,side[],2,FALSE))","v":""},null,null,null,{"$f":"IF(AD79=\"\",\"\",VLOOKUP(AD79,Install_reason[],2,FALSE))","v":""},null,{"$f":"IF(AF79=\"\",\"\",VLOOKUP(AF79,status[],2,FALSE))","v":""},null,null,{"$f":"IF(AI79=\"\",\"\",VLOOKUP(AI79,asset_owner[],2,FALSE))","v":""},null,null,null,null,{"$f":"IF(AN79=\"\",\"\",VLOOKUP(AN79,gps_method[],2,FALSE))","v":""},null,{"$f":"IF(AP79=\"\",\"\",VLOOKUP(AP79,risk_likelihood[],2,FALSE))","v":""},null,{"$f":"IF(AR79=\"\",\"\",VLOOKUP(AR79,risk_consequence[],2,FALSE))","v":""},null,{"$f":"IF(AT79=\"\",\"\",VLOOKUP(AT79,risk[],2,FALSE))","v":""},null,{"$f":"IF(AV79=\"\",\"\",VLOOKUP(AV79,rul_reset[],2,FALSE))","v":""},null,{"$f":"IF(AX79=\"\",\"\",VLOOKUP(AX79,use_default_rc[],2,FALSE))","v":""},null,{"$f":"IF(AZ79=\"\",\"\",VLOOKUP(AZ79,condition[],2,FALSE))","v":""},null,null,{"$f":"IF(BC79=\"\",\"\",VLOOKUP(BC79,Organisation[],2,FALSE))","v":""}]
["null",null,null,null,{"$f":"IF(D80=\"\",\"\",VLOOKUP(D80,Material[],2,FALSE))","v":""},null,{"$f":"IF(F80=\"\",\"\",VLOOKUP(F80,shape[],2,FALSE))","v":""},null,{"$f":"IF(H80=\"\",\"\",VLOOKUP(H80,make[],2,FALSE))","v":""},null,{"$f":"IF(J80=\"\",\"\",VLOOKUP(J80,mounting_type[],2,FALSE))","v":""},null,{"$f":"IF(L80=\"\",\"\",VLOOKUP(L80,attachment[],2,FALSE))","v":""},null,{"$f":"IF(N80=\"\",\"\",VLOOKUP(N80,purpose[],2,FALSE))","v":""},null,{"$f":"IF(P80=\"\",\"\",VLOOKUP(P80,coating[],2,FALSE))","v":""},null,{"$f":"IF(R80=\"\",\"\",VLOOKUP(R80,pole_in_use[],2,FALSE))","v":""},null,{"$f":"IF(T80=\"\",\"\",VLOOKUP(T80,pole_control[],2,FALSE))","v":""},null,{"$f":"IF(V80=\"\",\"\",VLOOKUP(V80,power_company[],2,FALSE))","v":""},null,null,null,{"$f":"IF(Z80=\"\",\"\",VLOOKUP(Z80,side[],2,FALSE))","v":""},null,null,null,{"$f":"IF(AD80=\"\",\"\",VLOOKUP(AD80,Install_reason[],2,FALSE))","v":""},null,{"$f":"IF(AF80=\"\",\"\",VLOOKUP(AF80,status[],2,FALSE))","v":""},null,null,{"$f":"IF(AI80=\"\",\"\",VLOOKUP(AI80,asset_owner[],2,FALSE))","v":""},null,null,null,null,{"$f":"IF(AN80=\"\",\"\",VLOOKUP(AN80,gps_method[],2,FALSE))","v":""},null,{"$f":"IF(AP80=\"\",\"\",VLOOKUP(AP80,risk_likelihood[],2,FALSE))","v":""},null,{"$f":"IF(AR80=\"\",\"\",VLOOKUP(AR80,risk_consequence[],2,FALSE))","v":""},null,{"$f":"IF(AT80=\"\",\"\",VLOOKUP(AT80,risk[],2,FALSE))","v":""},null,{"$f":"IF(AV80=\"\",\"\",VLOOKUP(AV80,rul_reset[],2,FALSE))","v":""},null,{"$f":"IF(AX80=\"\",\"\",VLOOKUP(AX80,use_default_rc[],2,FALSE))","v":""},null,{"$f":"IF(AZ80=\"\",\"\",VLOOKUP(AZ80,condition[],2,FALSE))","v":""},null,null,{"$f":"IF(BC80=\"\",\"\",VLOOKUP(BC80,Organisation[],2,FALSE))","v":""}]
["null",null,null,null,{"$f":"IF(D81=\"\",\"\",VLOOKUP(D81,Material[],2,FALSE))","v":""},null,{"$f":"IF(F81=\"\",\"\",VLOOKUP(F81,shape[],2,FALSE))","v":""},null,{"$f":"IF(H81=\"\",\"\",VLOOKUP(H81,make[],2,FALSE))","v":""},null,{"$f":"IF(J81=\"\",\"\",VLOOKUP(J81,mounting_type[],2,FALSE))","v":""},null,{"$f":"IF(L81=\"\",\"\",VLOOKUP(L81,attachment[],2,FALSE))","v":""},null,{"$f":"IF(N81=\"\",\"\",VLOOKUP(N81,purpose[],2,FALSE))","v":""},null,{"$f":"IF(P81=\"\",\"\",VLOOKUP(P81,coating[],2,FALSE))","v":""},null,{"$f":"IF(R81=\"\",\"\",VLOOKUP(R81,pole_in_use[],2,FALSE))","v":""},null,{"$f":"IF(T81=\"\",\"\",VLOOKUP(T81,pole_control[],2,FALSE))","v":""},null,{"$f":"IF(V81=\"\",\"\",VLOOKUP(V81,power_company[],2,FALSE))","v":""},null,null,null,{"$f":"IF(Z81=\"\",\"\",VLOOKUP(Z81,side[],2,FALSE))","v":""},null,null,null,{"$f":"IF(AD81=\"\",\"\",VLOOKUP(AD81,Install_reason[],2,FALSE))","v":""},null,{"$f":"IF(AF81=\"\",\"\",VLOOKUP(AF81,status[],2,FALSE))","v":""},null,null,{"$f":"IF(AI81=\"\",\"\",VLOOKUP(AI81,asset_owner[],2,FALSE))","v":""},null,null,null,null,{"$f":"IF(AN81=\"\",\"\",VLOOKUP(AN81,gps_method[],2,FALSE))","v":""},null,{"$f":"IF(AP81=\"\",\"\",VLOOKUP(AP81,risk_likelihood[],2,FALSE))","v":""},null,{"$f":"IF(AR81=\"\",\"\",VLOOKUP(AR81,risk_consequence[],2,FALSE))","v":""},null,{"$f":"IF(AT81=\"\",\"\",VLOOKUP(AT81,risk[],2,FALSE))","v":""},null,{"$f":"IF(AV81=\"\",\"\",VLOOKUP(AV81,rul_reset[],2,FALSE))","v":""},null,{"$f":"IF(AX81=\"\",\"\",VLOOKUP(AX81,use_default_rc[],2,FALSE))","v":""},null,{"$f":"IF(AZ81=\"\",\"\",VLOOKUP(AZ81,condition[],2,FALSE))","v":""},null,null,{"$f":"IF(BC81=\"\",\"\",VLOOKUP(BC81,Organisation[],2,FALSE))","v":""}]
["null",null,null,null,{"$f":"IF(D82=\"\",\"\",VLOOKUP(D82,Material[],2,FALSE))","v":""},null,{"$f":"IF(F82=\"\",\"\",VLOOKUP(F82,shape[],2,FALSE))","v":""},null,{"$f":"IF(H82=\"\",\"\",VLOOKUP(H82,make[],2,FALSE))","v":""},null,{"$f":"IF(J82=\"\",\"\",VLOOKUP(J82,mounting_type[],2,FALSE))","v":""},null,{"$f":"IF(L82=\"\",\"\",VLOOKUP(L82,attachment[],2,FALSE))","v":""},null,{"$f":"IF(N82=\"\",\"\",VLOOKUP(N82,purpose[],2,FALSE))","v":""},null,{"$f":"IF(P82=\"\",\"\",VLOOKUP(P82,coating[],2,FALSE))","v":""},null,{"$f":"IF(R82=\"\",\"\",VLOOKUP(R82,pole_in_use[],2,FALSE))","v":""},null,{"$f":"IF(T82=\"\",\"\",VLOOKUP(T82,pole_control[],2,FALSE))","v":""},null,{"$f":"IF(V82=\"\",\"\",VLOOKUP(V82,power_company[],2,FALSE))","v":""},null,null,null,{"$f":"IF(Z82=\"\",\"\",VLOOKUP(Z82,side[],2,FALSE))","v":""},null,null,null,{"$f":"IF(AD82=\"\",\"\",VLOOKUP(AD82,Install_reason[],2,FALSE))","v":""},null,{"$f":"IF(AF82=\"\",\"\",VLOOKUP(AF82,status[],2,FALSE))","v":""},null,null,{"$f":"IF(AI82=\"\",\"\",VLOOKUP(AI82,asset_owner[],2,FALSE))","v":""},null,null,null,null,{"$f":"IF(AN82=\"\",\"\",VLOOKUP(AN82,gps_method[],2,FALSE))","v":""},null,{"$f":"IF(AP82=\"\",\"\",VLOOKUP(AP82,risk_likelihood[],2,FALSE))","v":""},null,{"$f":"IF(AR82=\"\",\"\",VLOOKUP(AR82,risk_consequence[],2,FALSE))","v":""},null,{"$f":"IF(AT82=\"\",\"\",VLOOKUP(AT82,risk[],2,FALSE))","v":""},null,{"$f":"IF(AV82=\"\",\"\",VLOOKUP(AV82,rul_reset[],2,FALSE))","v":""},null,{"$f":"IF(AX82=\"\",\"\",VLOOKUP(AX82,use_default_rc[],2,FALSE))","v":""},null,{"$f":"IF(AZ82=\"\",\"\",VLOOKUP(AZ82,condition[],2,FALSE))","v":""},null,null,{"$f":"IF(BC82=\"\",\"\",VLOOKUP(BC82,Organisation[],2,FALSE))","v":""}]
["null",null,null,null,{"$f":"IF(D83=\"\",\"\",VLOOKUP(D83,Material[],2,FALSE))","v":""},null,{"$f":"IF(F83=\"\",\"\",VLOOKUP(F83,shape[],2,FALSE))","v":""},null,{"$f":"IF(H83=\"\",\"\",VLOOKUP(H83,make[],2,FALSE))","v":""},null,{"$f":"IF(J83=\"\",\"\",VLOOKUP(J83,mounting_type[],2,FALSE))","v":""},null,{"$f":"IF(L83=\"\",\"\",VLOOKUP(L83,attachment[],2,FALSE))","v":""},null,{"$f":"IF(N83=\"\",\"\",VLOOKUP(N83,purpose[],2,FALSE))","v":""},null,{"$f":"IF(P83=\"\",\"\",VLOOKUP(P83,coating[],2,FALSE))","v":""},null,{"$f":"IF(R83=\"\",\"\",VLOOKUP(R83,pole_in_use[],2,FALSE))","v":""},null,{"$f":"IF(T83=\"\",\"\",VLOOKUP(T83,pole_control[],2,FALSE))","v":""},null,{"$f":"IF(V83=\"\",\"\",VLOOKUP(V83,power_company[],2,FALSE))","v":""},null,null,null,{"$f":"IF(Z83=\"\",\"\",VLOOKUP(Z83,side[],2,FALSE))","v":""},null,null,null,{"$f":"IF(AD83=\"\",\"\",VLOOKUP(AD83,Install_reason[],2,FALSE))","v":""},null,{"$f":"IF(AF83=\"\",\"\",VLOOKUP(AF83,status[],2,FALSE))","v":""},null,null,{"$f":"IF(AI83=\"\",\"\",VLOOKUP(AI83,asset_owner[],2,FALSE))","v":""},null,null,null,null,{"$f":"IF(AN83=\"\",\"\",VLOOKUP(AN83,gps_method[],2,FALSE))","v":""},null,{"$f":"IF(AP83=\"\",\"\",VLOOKUP(AP83,risk_likelihood[],2,FALSE))","v":""},null,{"$f":"IF(AR83=\"\",\"\",VLOOKUP(AR83,risk_consequence[],2,FALSE))","v":""},null,{"$f":"IF(AT83=\"\",\"\",VLOOKUP(AT83,risk[],2,FALSE))","v":""},null,{"$f":"IF(AV83=\"\",\"\",VLOOKUP(AV83,rul_reset[],2,FALSE))","v":""},null,{"$f":"IF(AX83=\"\",\"\",VLOOKUP(AX83,use_default_rc[],2,FALSE))","v":""},null,{"$f":"IF(AZ83=\"\",\"\",VLOOKUP(AZ83,condition[],2,FALSE))","v":""},null,null,{"$f":"IF(BC83=\"\",\"\",VLOOKUP(BC83,Organisation[],2,FALSE))","v":""}]
["null",null,null,null,{"$f":"IF(D84=\"\",\"\",VLOOKUP(D84,Material[],2,FALSE))","v":""},null,{"$f":"IF(F84=\"\",\"\",VLOOKUP(F84,shape[],2,FALSE))","v":""},null,{"$f":"IF(H84=\"\",\"\",VLOOKUP(H84,make[],2,FALSE))","v":""},null,{"$f":"IF(J84=\"\",\"\",VLOOKUP(J84,mounting_type[],2,FALSE))","v":""},null,{"$f":"IF(L84=\"\",\"\",VLOOKUP(L84,attachment[],2,FALSE))","v":""},null,{"$f":"IF(N84=\"\",\"\",VLOOKUP(N84,purpose[],2,FALSE))","v":""},null,{"$f":"IF(P84=\"\",\"\",VLOOKUP(P84,coating[],2,FALSE))","v":""},null,{"$f":"IF(R84=\"\",\"\",VLOOKUP(R84,pole_in_use[],2,FALSE))","v":""},null,{"$f":"IF(T84=\"\",\"\",VLOOKUP(T84,pole_control[],2,FALSE))","v":""},null,{"$f":"IF(V84=\"\",\"\",VLOOKUP(V84,power_company[],2,FALSE))","v":""},null,null,null,{"$f":"IF(Z84=\"\",\"\",VLOOKUP(Z84,side[],2,FALSE))","v":""},null,null,null,{"$f":"IF(AD84=\"\",\"\",VLOOKUP(AD84,Install_reason[],2,FALSE))","v":""},null,{"$f":"IF(AF84=\"\",\"\",VLOOKUP(AF84,status[],2,FALSE))","v":""},null,null,{"$f":"IF(AI84=\"\",\"\",VLOOKUP(AI84,asset_owner[],2,FALSE))","v":""},null,null,null,null,{"$f":"IF(AN84=\"\",\"\",VLOOKUP(AN84,gps_method[],2,FALSE))","v":""},null,{"$f":"IF(AP84=\"\",\"\",VLOOKUP(AP84,risk_likelihood[],2,FALSE))","v":""},null,{"$f":"IF(AR84=\"\",\"\",VLOOKUP(AR84,risk_consequence[],2,FALSE))","v":""},null,{"$f":"IF(AT84=\"\",\"\",VLOOKUP(AT84,risk[],2,FALSE))","v":""},null,{"$f":"IF(AV84=\"\",\"\",VLOOKUP(AV84,rul_reset[],2,FALSE))","v":""},null,{"$f":"IF(AX84=\"\",\"\",VLOOKUP(AX84,use_default_rc[],2,FALSE))","v":""},null,{"$f":"IF(AZ84=\"\",\"\",VLOOKUP(AZ84,condition[],2,FALSE))","v":""},null,null,{"$f":"IF(BC84=\"\",\"\",VLOOKUP(BC84,Organisation[],2,FALSE))","v":""}]
["null",null,null,null,{"$f":"IF(D85=\"\",\"\",VLOOKUP(D85,Material[],2,FALSE))","v":""},null,{"$f":"IF(F85=\"\",\"\",VLOOKUP(F85,shape[],2,FALSE))","v":""},null,{"$f":"IF(H85=\"\",\"\",VLOOKUP(H85,make[],2,FALSE))","v":""},null,{"$f":"IF(J85=\"\",\"\",VLOOKUP(J85,mounting_type[],2,FALSE))","v":""},null,{"$f":"IF(L85=\"\",\"\",VLOOKUP(L85,attachment[],2,FALSE))","v":""},null,{"$f":"IF(N85=\"\",\"\",VLOOKUP(N85,purpose[],2,FALSE))","v":""},null,{"$f":"IF(P85=\"\",\"\",VLOOKUP(P85,coating[],2,FALSE))","v":""},null,{"$f":"IF(R85=\"\",\"\",VLOOKUP(R85,pole_in_use[],2,FALSE))","v":""},null,{"$f":"IF(T85=\"\",\"\",VLOOKUP(T85,pole_control[],2,FALSE))","v":""},null,{"$f":"IF(V85=\"\",\"\",VLOOKUP(V85,power_company[],2,FALSE))","v":""},null,null,null,{"$f":"IF(Z85=\"\",\"\",VLOOKUP(Z85,side[],2,FALSE))","v":""},null,null,null,{"$f":"IF(AD85=\"\",\"\",VLOOKUP(AD85,Install_reason[],2,FALSE))","v":""},null,{"$f":"IF(AF85=\"\",\"\",VLOOKUP(AF85,status[],2,FALSE))","v":""},null,null,{"$f":"IF(AI85=\"\",\"\",VLOOKUP(AI85,asset_owner[],2,FALSE))","v":""},null,null,null,null,{"$f":"IF(AN85=\"\",\"\",VLOOKUP(AN85,gps_method[],2,FALSE))","v":""},null,{"$f":"IF(AP85=\"\",\"\",VLOOKUP(AP85,risk_likelihood[],2,FALSE))","v":""},null,{"$f":"IF(AR85=\"\",\"\",VLOOKUP(AR85,risk_consequence[],2,FALSE))","v":""},null,{"$f":"IF(AT85=\"\",\"\",VLOOKUP(AT85,risk[],2,FALSE))","v":""},null,{"$f":"IF(AV85=\"\",\"\",VLOOKUP(AV85,rul_reset[],2,FALSE))","v":""},null,{"$f":"IF(AX85=\"\",\"\",VLOOKUP(AX85,use_default_rc[],2,FALSE))","v":""},null,{"$f":"IF(AZ85=\"\",\"\",VLOOKUP(AZ85,condition[],2,FALSE))","v":""},null,null,{"$f":"IF(BC85=\"\",\"\",VLOOKUP(BC85,Organisation[],2,FALSE))","v":""}]
["null",null,null,null,{"$f":"IF(D86=\"\",\"\",VLOOKUP(D86,Material[],2,FALSE))","v":""},null,{"$f":"IF(F86=\"\",\"\",VLOOKUP(F86,shape[],2,FALSE))","v":""},null,{"$f":"IF(H86=\"\",\"\",VLOOKUP(H86,make[],2,FALSE))","v":""},null,{"$f":"IF(J86=\"\",\"\",VLOOKUP(J86,mounting_type[],2,FALSE))","v":""},null,{"$f":"IF(L86=\"\",\"\",VLOOKUP(L86,attachment[],2,FALSE))","v":""},null,{"$f":"IF(N86=\"\",\"\",VLOOKUP(N86,purpose[],2,FALSE))","v":""},null,{"$f":"IF(P86=\"\",\"\",VLOOKUP(P86,coating[],2,FALSE))","v":""},null,{"$f":"IF(R86=\"\",\"\",VLOOKUP(R86,pole_in_use[],2,FALSE))","v":""},null,{"$f":"IF(T86=\"\",\"\",VLOOKUP(T86,pole_control[],2,FALSE))","v":""},null,{"$f":"IF(V86=\"\",\"\",VLOOKUP(V86,power_company[],2,FALSE))","v":""},null,null,null,{"$f":"IF(Z86=\"\",\"\",VLOOKUP(Z86,side[],2,FALSE))","v":""},null,null,null,{"$f":"IF(AD86=\"\",\"\",VLOOKUP(AD86,Install_reason[],2,FALSE))","v":""},null,{"$f":"IF(AF86=\"\",\"\",VLOOKUP(AF86,status[],2,FALSE))","v":""},null,null,{"$f":"IF(AI86=\"\",\"\",VLOOKUP(AI86,asset_owner[],2,FALSE))","v":""},null,null,null,null,{"$f":"IF(AN86=\"\",\"\",VLOOKUP(AN86,gps_method[],2,FALSE))","v":""},null,{"$f":"IF(AP86=\"\",\"\",VLOOKUP(AP86,risk_likelihood[],2,FALSE))","v":""},null,{"$f":"IF(AR86=\"\",\"\",VLOOKUP(AR86,risk_consequence[],2,FALSE))","v":""},null,{"$f":"IF(AT86=\"\",\"\",VLOOKUP(AT86,risk[],2,FALSE))","v":""},null,{"$f":"IF(AV86=\"\",\"\",VLOOKUP(AV86,rul_reset[],2,FALSE))","v":""},null,{"$f":"IF(AX86=\"\",\"\",VLOOKUP(AX86,use_default_rc[],2,FALSE))","v":""},null,{"$f":"IF(AZ86=\"\",\"\",VLOOKUP(AZ86,condition[],2,FALSE))","v":""},null,null,{"$f":"IF(BC86=\"\",\"\",VLOOKUP(BC86,Organisation[],2,FALSE))","v":""}]
["null",null,null,null,{"$f":"IF(D87=\"\",\"\",VLOOKUP(D87,Material[],2,FALSE))","v":""},null,{"$f":"IF(F87=\"\",\"\",VLOOKUP(F87,shape[],2,FALSE))","v":""},null,{"$f":"IF(H87=\"\",\"\",VLOOKUP(H87,make[],2,FALSE))","v":""},null,{"$f":"IF(J87=\"\",\"\",VLOOKUP(J87,mounting_type[],2,FALSE))","v":""},null,{"$f":"IF(L87=\"\",\"\",VLOOKUP(L87,attachment[],2,FALSE))","v":""},null,{"$f":"IF(N87=\"\",\"\",VLOOKUP(N87,purpose[],2,FALSE))","v":""},null,{"$f":"IF(P87=\"\",\"\",VLOOKUP(P87,coating[],2,FALSE))","v":""},null,{"$f":"IF(R87=\"\",\"\",VLOOKUP(R87,pole_in_use[],2,FALSE))","v":""},null,{"$f":"IF(T87=\"\",\"\",VLOOKUP(T87,pole_control[],2,FALSE))","v":""},null,{"$f":"IF(V87=\"\",\"\",VLOOKUP(V87,power_company[],2,FALSE))","v":""},null,null,null,{"$f":"IF(Z87=\"\",\"\",VLOOKUP(Z87,side[],2,FALSE))","v":""},null,null,null,{"$f":"IF(AD87=\"\",\"\",VLOOKUP(AD87,Install_reason[],2,FALSE))","v":""},null,{"$f":"IF(AF87=\"\",\"\",VLOOKUP(AF87,status[],2,FALSE))","v":""},null,null,{"$f":"IF(AI87=\"\",\"\",VLOOKUP(AI87,asset_owner[],2,FALSE))","v":""},null,null,null,null,{"$f":"IF(AN87=\"\",\"\",VLOOKUP(AN87,gps_method[],2,FALSE))","v":""},null,{"$f":"IF(AP87=\"\",\"\",VLOOKUP(AP87,risk_likelihood[],2,FALSE))","v":""},null,{"$f":"IF(AR87=\"\",\"\",VLOOKUP(AR87,risk_consequence[],2,FALSE))","v":""},null,{"$f":"IF(AT87=\"\",\"\",VLOOKUP(AT87,risk[],2,FALSE))","v":""},null,{"$f":"IF(AV87=\"\",\"\",VLOOKUP(AV87,rul_reset[],2,FALSE))","v":""},null,{"$f":"IF(AX87=\"\",\"\",VLOOKUP(AX87,use_default_rc[],2,FALSE))","v":""},null,{"$f":"IF(AZ87=\"\",\"\",VLOOKUP(AZ87,condition[],2,FALSE))","v":""},null,null,{"$f":"IF(BC87=\"\",\"\",VLOOKUP(BC87,Organisation[],2,FALSE))","v":""}]
["null",null,null,null,{"$f":"IF(D88=\"\",\"\",VLOOKUP(D88,Material[],2,FALSE))","v":""},null,{"$f":"IF(F88=\"\",\"\",VLOOKUP(F88,shape[],2,FALSE))","v":""},null,{"$f":"IF(H88=\"\",\"\",VLOOKUP(H88,make[],2,FALSE))","v":""},null,{"$f":"IF(J88=\"\",\"\",VLOOKUP(J88,mounting_type[],2,FALSE))","v":""},null,{"$f":"IF(L88=\"\",\"\",VLOOKUP(L88,attachment[],2,FALSE))","v":""},null,{"$f":"IF(N88=\"\",\"\",VLOOKUP(N88,purpose[],2,FALSE))","v":""},null,{"$f":"IF(P88=\"\",\"\",VLOOKUP(P88,coating[],2,FALSE))","v":""},null,{"$f":"IF(R88=\"\",\"\",VLOOKUP(R88,pole_in_use[],2,FALSE))","v":""},null,{"$f":"IF(T88=\"\",\"\",VLOOKUP(T88,pole_control[],2,FALSE))","v":""},null,{"$f":"IF(V88=\"\",\"\",VLOOKUP(V88,power_company[],2,FALSE))","v":""},null,null,null,{"$f":"IF(Z88=\"\",\"\",VLOOKUP(Z88,side[],2,FALSE))","v":""},null,null,null,{"$f":"IF(AD88=\"\",\"\",VLOOKUP(AD88,Install_reason[],2,FALSE))","v":""},null,{"$f":"IF(AF88=\"\",\"\",VLOOKUP(AF88,status[],2,FALSE))","v":""},null,null,{"$f":"IF(AI88=\"\",\"\",VLOOKUP(AI88,asset_owner[],2,FALSE))","v":""},null,null,null,null,{"$f":"IF(AN88=\"\",\"\",VLOOKUP(AN88,gps_method[],2,FALSE))","v":""},null,{"$f":"IF(AP88=\"\",\"\",VLOOKUP(AP88,risk_likelihood[],2,FALSE))","v":""},null,{"$f":"IF(AR88=\"\",\"\",VLOOKUP(AR88,risk_consequence[],2,FALSE))","v":""},null,{"$f":"IF(AT88=\"\",\"\",VLOOKUP(AT88,risk[],2,FALSE))","v":""},null,{"$f":"IF(AV88=\"\",\"\",VLOOKUP(AV88,rul_reset[],2,FALSE))","v":""},null,{"$f":"IF(AX88=\"\",\"\",VLOOKUP(AX88,use_default_rc[],2,FALSE))","v":""},null,{"$f":"IF(AZ88=\"\",\"\",VLOOKUP(AZ88,condition[],2,FALSE))","v":""},null,null,{"$f":"IF(BC88=\"\",\"\",VLOOKUP(BC88,Organisation[],2,FALSE))","v":""}]
["null",null,null,null,{"$f":"IF(D89=\"\",\"\",VLOOKUP(D89,Material[],2,FALSE))","v":""},null,{"$f":"IF(F89=\"\",\"\",VLOOKUP(F89,shape[],2,FALSE))","v":""},null,{"$f":"IF(H89=\"\",\"\",VLOOKUP(H89,make[],2,FALSE))","v":""},null,{"$f":"IF(J89=\"\",\"\",VLOOKUP(J89,mounting_type[],2,FALSE))","v":""},null,{"$f":"IF(L89=\"\",\"\",VLOOKUP(L89,attachment[],2,FALSE))","v":""},null,{"$f":"IF(N89=\"\",\"\",VLOOKUP(N89,purpose[],2,FALSE))","v":""},null,{"$f":"IF(P89=\"\",\"\",VLOOKUP(P89,coating[],2,FALSE))","v":""},null,{"$f":"IF(R89=\"\",\"\",VLOOKUP(R89,pole_in_use[],2,FALSE))","v":""},null,{"$f":"IF(T89=\"\",\"\",VLOOKUP(T89,pole_control[],2,FALSE))","v":""},null,{"$f":"IF(V89=\"\",\"\",VLOOKUP(V89,power_company[],2,FALSE))","v":""},null,null,null,{"$f":"IF(Z89=\"\",\"\",VLOOKUP(Z89,side[],2,FALSE))","v":""},null,null,null,{"$f":"IF(AD89=\"\",\"\",VLOOKUP(AD89,Install_reason[],2,FALSE))","v":""},null,{"$f":"IF(AF89=\"\",\"\",VLOOKUP(AF89,status[],2,FALSE))","v":""},null,null,{"$f":"IF(AI89=\"\",\"\",VLOOKUP(AI89,asset_owner[],2,FALSE))","v":""},null,null,null,null,{"$f":"IF(AN89=\"\",\"\",VLOOKUP(AN89,gps_method[],2,FALSE))","v":""},null,{"$f":"IF(AP89=\"\",\"\",VLOOKUP(AP89,risk_likelihood[],2,FALSE))","v":""},null,{"$f":"IF(AR89=\"\",\"\",VLOOKUP(AR89,risk_consequence[],2,FALSE))","v":""},null,{"$f":"IF(AT89=\"\",\"\",VLOOKUP(AT89,risk[],2,FALSE))","v":""},null,{"$f":"IF(AV89=\"\",\"\",VLOOKUP(AV89,rul_reset[],2,FALSE))","v":""},null,{"$f":"IF(AX89=\"\",\"\",VLOOKUP(AX89,use_default_rc[],2,FALSE))","v":""},null,{"$f":"IF(AZ89=\"\",\"\",VLOOKUP(AZ89,condition[],2,FALSE))","v":""},null,null,{"$f":"IF(BC89=\"\",\"\",VLOOKUP(BC89,Organisation[],2,FALSE))","v":""}]
["null",null,null,null,{"$f":"IF(D90=\"\",\"\",VLOOKUP(D90,Material[],2,FALSE))","v":""},null,{"$f":"IF(F90=\"\",\"\",VLOOKUP(F90,shape[],2,FALSE))","v":""},null,{"$f":"IF(H90=\"\",\"\",VLOOKUP(H90,make[],2,FALSE))","v":""},null,{"$f":"IF(J90=\"\",\"\",VLOOKUP(J90,mounting_type[],2,FALSE))","v":""},null,{"$f":"IF(L90=\"\",\"\",VLOOKUP(L90,attachment[],2,FALSE))","v":""},null,{"$f":"IF(N90=\"\",\"\",VLOOKUP(N90,purpose[],2,FALSE))","v":""},null,{"$f":"IF(P90=\"\",\"\",VLOOKUP(P90,coating[],2,FALSE))","v":""},null,{"$f":"IF(R90=\"\",\"\",VLOOKUP(R90,pole_in_use[],2,FALSE))","v":""},null,{"$f":"IF(T90=\"\",\"\",VLOOKUP(T90,pole_control[],2,FALSE))","v":""},null,{"$f":"IF(V90=\"\",\"\",VLOOKUP(V90,power_company[],2,FALSE))","v":""},null,null,null,{"$f":"IF(Z90=\"\",\"\",VLOOKUP(Z90,side[],2,FALSE))","v":""},null,null,null,{"$f":"IF(AD90=\"\",\"\",VLOOKUP(AD90,Install_reason[],2,FALSE))","v":""},null,{"$f":"IF(AF90=\"\",\"\",VLOOKUP(AF90,status[],2,FALSE))","v":""},null,null,{"$f":"IF(AI90=\"\",\"\",VLOOKUP(AI90,asset_owner[],2,FALSE))","v":""},null,null,null,null,{"$f":"IF(AN90=\"\",\"\",VLOOKUP(AN90,gps_method[],2,FALSE))","v":""},null,{"$f":"IF(AP90=\"\",\"\",VLOOKUP(AP90,risk_likelihood[],2,FALSE))","v":""},null,{"$f":"IF(AR90=\"\",\"\",VLOOKUP(AR90,risk_consequence[],2,FALSE))","v":""},null,{"$f":"IF(AT90=\"\",\"\",VLOOKUP(AT90,risk[],2,FALSE))","v":""},null,{"$f":"IF(AV90=\"\",\"\",VLOOKUP(AV90,rul_reset[],2,FALSE))","v":""},null,{"$f":"IF(AX90=\"\",\"\",VLOOKUP(AX90,use_default_rc[],2,FALSE))","v":""},null,{"$f":"IF(AZ90=\"\",\"\",VLOOKUP(AZ90,condition[],2,FALSE))","v":""},null,null,{"$f":"IF(BC90=\"\",\"\",VLOOKUP(BC90,Organisation[],2,FALSE))","v":""}]
["null",null,null,null,{"$f":"IF(D91=\"\",\"\",VLOOKUP(D91,Material[],2,FALSE))","v":""},null,{"$f":"IF(F91=\"\",\"\",VLOOKUP(F91,shape[],2,FALSE))","v":""},null,{"$f":"IF(H91=\"\",\"\",VLOOKUP(H91,make[],2,FALSE))","v":""},null,{"$f":"IF(J91=\"\",\"\",VLOOKUP(J91,mounting_type[],2,FALSE))","v":""},null,{"$f":"IF(L91=\"\",\"\",VLOOKUP(L91,attachment[],2,FALSE))","v":""},null,{"$f":"IF(N91=\"\",\"\",VLOOKUP(N91,purpose[],2,FALSE))","v":""},null,{"$f":"IF(P91=\"\",\"\",VLOOKUP(P91,coating[],2,FALSE))","v":""},null,{"$f":"IF(R91=\"\",\"\",VLOOKUP(R91,pole_in_use[],2,FALSE))","v":""},null,{"$f":"IF(T91=\"\",\"\",VLOOKUP(T91,pole_control[],2,FALSE))","v":""},null,{"$f":"IF(V91=\"\",\"\",VLOOKUP(V91,power_company[],2,FALSE))","v":""},null,null,null,{"$f":"IF(Z91=\"\",\"\",VLOOKUP(Z91,side[],2,FALSE))","v":""},null,null,null,{"$f":"IF(AD91=\"\",\"\",VLOOKUP(AD91,Install_reason[],2,FALSE))","v":""},null,{"$f":"IF(AF91=\"\",\"\",VLOOKUP(AF91,status[],2,FALSE))","v":""},null,null,{"$f":"IF(AI91=\"\",\"\",VLOOKUP(AI91,asset_owner[],2,FALSE))","v":""},null,null,null,null,{"$f":"IF(AN91=\"\",\"\",VLOOKUP(AN91,gps_method[],2,FALSE))","v":""},null,{"$f":"IF(AP91=\"\",\"\",VLOOKUP(AP91,risk_likelihood[],2,FALSE))","v":""},null,{"$f":"IF(AR91=\"\",\"\",VLOOKUP(AR91,risk_consequence[],2,FALSE))","v":""},null,{"$f":"IF(AT91=\"\",\"\",VLOOKUP(AT91,risk[],2,FALSE))","v":""},null,{"$f":"IF(AV91=\"\",\"\",VLOOKUP(AV91,rul_reset[],2,FALSE))","v":""},null,{"$f":"IF(AX91=\"\",\"\",VLOOKUP(AX91,use_default_rc[],2,FALSE))","v":""},null,{"$f":"IF(AZ91=\"\",\"\",VLOOKUP(AZ91,condition[],2,FALSE))","v":""},null,null,{"$f":"IF(BC91=\"\",\"\",VLOOKUP(BC91,Organisation[],2,FALSE))","v":""}]
["null",null,null,null,{"$f":"IF(D92=\"\",\"\",VLOOKUP(D92,Material[],2,FALSE))","v":""},null,{"$f":"IF(F92=\"\",\"\",VLOOKUP(F92,shape[],2,FALSE))","v":""},null,{"$f":"IF(H92=\"\",\"\",VLOOKUP(H92,make[],2,FALSE))","v":""},null,{"$f":"IF(J92=\"\",\"\",VLOOKUP(J92,mounting_type[],2,FALSE))","v":""},null,{"$f":"IF(L92=\"\",\"\",VLOOKUP(L92,attachment[],2,FALSE))","v":""},null,{"$f":"IF(N92=\"\",\"\",VLOOKUP(N92,purpose[],2,FALSE))","v":""},null,{"$f":"IF(P92=\"\",\"\",VLOOKUP(P92,coating[],2,FALSE))","v":""},null,{"$f":"IF(R92=\"\",\"\",VLOOKUP(R92,pole_in_use[],2,FALSE))","v":""},null,{"$f":"IF(T92=\"\",\"\",VLOOKUP(T92,pole_control[],2,FALSE))","v":""},null,{"$f":"IF(V92=\"\",\"\",VLOOKUP(V92,power_company[],2,FALSE))","v":""},null,null,null,{"$f":"IF(Z92=\"\",\"\",VLOOKUP(Z92,side[],2,FALSE))","v":""},null,null,null,{"$f":"IF(AD92=\"\",\"\",VLOOKUP(AD92,Install_reason[],2,FALSE))","v":""},null,{"$f":"IF(AF92=\"\",\"\",VLOOKUP(AF92,status[],2,FALSE))","v":""},null,null,{"$f":"IF(AI92=\"\",\"\",VLOOKUP(AI92,asset_owner[],2,FALSE))","v":""},null,null,null,null,{"$f":"IF(AN92=\"\",\"\",VLOOKUP(AN92,gps_method[],2,FALSE))","v":""},null,{"$f":"IF(AP92=\"\",\"\",VLOOKUP(AP92,risk_likelihood[],2,FALSE))","v":""},null,{"$f":"IF(AR92=\"\",\"\",VLOOKUP(AR92,risk_consequence[],2,FALSE))","v":""},null,{"$f":"IF(AT92=\"\",\"\",VLOOKUP(AT92,risk[],2,FALSE))","v":""},null,{"$f":"IF(AV92=\"\",\"\",VLOOKUP(AV92,rul_reset[],2,FALSE))","v":""},null,{"$f":"IF(AX92=\"\",\"\",VLOOKUP(AX92,use_default_rc[],2,FALSE))","v":""},null,{"$f":"IF(AZ92=\"\",\"\",VLOOKUP(AZ92,condition[],2,FALSE))","v":""},null,null,{"$f":"IF(BC92=\"\",\"\",VLOOKUP(BC92,Organisation[],2,FALSE))","v":""}]
["null",null,null,null,{"$f":"IF(D93=\"\",\"\",VLOOKUP(D93,Material[],2,FALSE))","v":""},null,{"$f":"IF(F93=\"\",\"\",VLOOKUP(F93,shape[],2,FALSE))","v":""},null,{"$f":"IF(H93=\"\",\"\",VLOOKUP(H93,make[],2,FALSE))","v":""},null,{"$f":"IF(J93=\"\",\"\",VLOOKUP(J93,mounting_type[],2,FALSE))","v":""},null,{"$f":"IF(L93=\"\",\"\",VLOOKUP(L93,attachment[],2,FALSE))","v":""},null,{"$f":"IF(N93=\"\",\"\",VLOOKUP(N93,purpose[],2,FALSE))","v":""},null,{"$f":"IF(P93=\"\",\"\",VLOOKUP(P93,coating[],2,FALSE))","v":""},null,{"$f":"IF(R93=\"\",\"\",VLOOKUP(R93,pole_in_use[],2,FALSE))","v":""},null,{"$f":"IF(T93=\"\",\"\",VLOOKUP(T93,pole_control[],2,FALSE))","v":""},null,{"$f":"IF(V93=\"\",\"\",VLOOKUP(V93,power_company[],2,FALSE))","v":""},null,null,null,{"$f":"IF(Z93=\"\",\"\",VLOOKUP(Z93,side[],2,FALSE))","v":""},null,null,null,{"$f":"IF(AD93=\"\",\"\",VLOOKUP(AD93,Install_reason[],2,FALSE))","v":""},null,{"$f":"IF(AF93=\"\",\"\",VLOOKUP(AF93,status[],2,FALSE))","v":""},null,null,{"$f":"IF(AI93=\"\",\"\",VLOOKUP(AI93,asset_owner[],2,FALSE))","v":""},null,null,null,null,{"$f":"IF(AN93=\"\",\"\",VLOOKUP(AN93,gps_method[],2,FALSE))","v":""},null,{"$f":"IF(AP93=\"\",\"\",VLOOKUP(AP93,risk_likelihood[],2,FALSE))","v":""},null,{"$f":"IF(AR93=\"\",\"\",VLOOKUP(AR93,risk_consequence[],2,FALSE))","v":""},null,{"$f":"IF(AT93=\"\",\"\",VLOOKUP(AT93,risk[],2,FALSE))","v":""},null,{"$f":"IF(AV93=\"\",\"\",VLOOKUP(AV93,rul_reset[],2,FALSE))","v":""},null,{"$f":"IF(AX93=\"\",\"\",VLOOKUP(AX93,use_default_rc[],2,FALSE))","v":""},null,{"$f":"IF(AZ93=\"\",\"\",VLOOKUP(AZ93,condition[],2,FALSE))","v":""},null,null,{"$f":"IF(BC93=\"\",\"\",VLOOKUP(BC93,Organisation[],2,FALSE))","v":""}]
["null",null,null,null,{"$f":"IF(D94=\"\",\"\",VLOOKUP(D94,Material[],2,FALSE))","v":""},null,{"$f":"IF(F94=\"\",\"\",VLOOKUP(F94,shape[],2,FALSE))","v":""},null,{"$f":"IF(H94=\"\",\"\",VLOOKUP(H94,make[],2,FALSE))","v":""},null,{"$f":"IF(J94=\"\",\"\",VLOOKUP(J94,mounting_type[],2,FALSE))","v":""},null,{"$f":"IF(L94=\"\",\"\",VLOOKUP(L94,attachment[],2,FALSE))","v":""},null,{"$f":"IF(N94=\"\",\"\",VLOOKUP(N94,purpose[],2,FALSE))","v":""},null,{"$f":"IF(P94=\"\",\"\",VLOOKUP(P94,coating[],2,FALSE))","v":""},null,{"$f":"IF(R94=\"\",\"\",VLOOKUP(R94,pole_in_use[],2,FALSE))","v":""},null,{"$f":"IF(T94=\"\",\"\",VLOOKUP(T94,pole_control[],2,FALSE))","v":""},null,{"$f":"IF(V94=\"\",\"\",VLOOKUP(V94,power_company[],2,FALSE))","v":""},null,null,null,{"$f":"IF(Z94=\"\",\"\",VLOOKUP(Z94,side[],2,FALSE))","v":""},null,null,null,{"$f":"IF(AD94=\"\",\"\",VLOOKUP(AD94,Install_reason[],2,FALSE))","v":""},null,{"$f":"IF(AF94=\"\",\"\",VLOOKUP(AF94,status[],2,FALSE))","v":""},null,null,{"$f":"IF(AI94=\"\",\"\",VLOOKUP(AI94,asset_owner[],2,FALSE))","v":""},null,null,null,null,{"$f":"IF(AN94=\"\",\"\",VLOOKUP(AN94,gps_method[],2,FALSE))","v":""},null,{"$f":"IF(AP94=\"\",\"\",VLOOKUP(AP94,risk_likelihood[],2,FALSE))","v":""},null,{"$f":"IF(AR94=\"\",\"\",VLOOKUP(AR94,risk_consequence[],2,FALSE))","v":""},null,{"$f":"IF(AT94=\"\",\"\",VLOOKUP(AT94,risk[],2,FALSE))","v":""},null,{"$f":"IF(AV94=\"\",\"\",VLOOKUP(AV94,rul_reset[],2,FALSE))","v":""},null,{"$f":"IF(AX94=\"\",\"\",VLOOKUP(AX94,use_default_rc[],2,FALSE))","v":""},null,{"$f":"IF(AZ94=\"\",\"\",VLOOKUP(AZ94,condition[],2,FALSE))","v":""},null,null,{"$f":"IF(BC94=\"\",\"\",VLOOKUP(BC94,Organisation[],2,FALSE))","v":""}]
["null",null,null,null,{"$f":"IF(D95=\"\",\"\",VLOOKUP(D95,Material[],2,FALSE))","v":""},null,{"$f":"IF(F95=\"\",\"\",VLOOKUP(F95,shape[],2,FALSE))","v":""},null,{"$f":"IF(H95=\"\",\"\",VLOOKUP(H95,make[],2,FALSE))","v":""},null,{"$f":"IF(J95=\"\",\"\",VLOOKUP(J95,mounting_type[],2,FALSE))","v":""},null,{"$f":"IF(L95=\"\",\"\",VLOOKUP(L95,attachment[],2,FALSE))","v":""},null,{"$f":"IF(N95=\"\",\"\",VLOOKUP(N95,purpose[],2,FALSE))","v":""},null,{"$f":"IF(P95=\"\",\"\",VLOOKUP(P95,coating[],2,FALSE))","v":""},null,{"$f":"IF(R95=\"\",\"\",VLOOKUP(R95,pole_in_use[],2,FALSE))","v":""},null,{"$f":"IF(T95=\"\",\"\",VLOOKUP(T95,pole_control[],2,FALSE))","v":""},null,{"$f":"IF(V95=\"\",\"\",VLOOKUP(V95,power_company[],2,FALSE))","v":""},null,null,null,{"$f":"IF(Z95=\"\",\"\",VLOOKUP(Z95,side[],2,FALSE))","v":""},null,null,null,{"$f":"IF(AD95=\"\",\"\",VLOOKUP(AD95,Install_reason[],2,FALSE))","v":""},null,{"$f":"IF(AF95=\"\",\"\",VLOOKUP(AF95,status[],2,FALSE))","v":""},null,null,{"$f":"IF(AI95=\"\",\"\",VLOOKUP(AI95,asset_owner[],2,FALSE))","v":""},null,null,null,null,{"$f":"IF(AN95=\"\",\"\",VLOOKUP(AN95,gps_method[],2,FALSE))","v":""},null,{"$f":"IF(AP95=\"\",\"\",VLOOKUP(AP95,risk_likelihood[],2,FALSE))","v":""},null,{"$f":"IF(AR95=\"\",\"\",VLOOKUP(AR95,risk_consequence[],2,FALSE))","v":""},null,{"$f":"IF(AT95=\"\",\"\",VLOOKUP(AT95,risk[],2,FALSE))","v":""},null,{"$f":"IF(AV95=\"\",\"\",VLOOKUP(AV95,rul_reset[],2,FALSE))","v":""},null,{"$f":"IF(AX95=\"\",\"\",VLOOKUP(AX95,use_default_rc[],2,FALSE))","v":""},null,{"$f":"IF(AZ95=\"\",\"\",VLOOKUP(AZ95,condition[],2,FALSE))","v":""},null,null,{"$f":"IF(BC95=\"\",\"\",VLOOKUP(BC95,Organisation[],2,FALSE))","v":""}]
["null",null,null,null,{"$f":"IF(D96=\"\",\"\",VLOOKUP(D96,Material[],2,FALSE))","v":""},null,{"$f":"IF(F96=\"\",\"\",VLOOKUP(F96,shape[],2,FALSE))","v":""},null,{"$f":"IF(H96=\"\",\"\",VLOOKUP(H96,make[],2,FALSE))","v":""},null,{"$f":"IF(J96=\"\",\"\",VLOOKUP(J96,mounting_type[],2,FALSE))","v":""},null,{"$f":"IF(L96=\"\",\"\",VLOOKUP(L96,attachment[],2,FALSE))","v":""},null,{"$f":"IF(N96=\"\",\"\",VLOOKUP(N96,purpose[],2,FALSE))","v":""},null,{"$f":"IF(P96=\"\",\"\",VLOOKUP(P96,coating[],2,FALSE))","v":""},null,{"$f":"IF(R96=\"\",\"\",VLOOKUP(R96,pole_in_use[],2,FALSE))","v":""},null,{"$f":"IF(T96=\"\",\"\",VLOOKUP(T96,pole_control[],2,FALSE))","v":""},null,{"$f":"IF(V96=\"\",\"\",VLOOKUP(V96,power_company[],2,FALSE))","v":""},null,null,null,{"$f":"IF(Z96=\"\",\"\",VLOOKUP(Z96,side[],2,FALSE))","v":""},null,null,null,{"$f":"IF(AD96=\"\",\"\",VLOOKUP(AD96,Install_reason[],2,FALSE))","v":""},null,{"$f":"IF(AF96=\"\",\"\",VLOOKUP(AF96,status[],2,FALSE))","v":""},null,null,{"$f":"IF(AI96=\"\",\"\",VLOOKUP(AI96,asset_owner[],2,FALSE))","v":""},null,null,null,null,{"$f":"IF(AN96=\"\",\"\",VLOOKUP(AN96,gps_method[],2,FALSE))","v":""},null,{"$f":"IF(AP96=\"\",\"\",VLOOKUP(AP96,risk_likelihood[],2,FALSE))","v":""},null,{"$f":"IF(AR96=\"\",\"\",VLOOKUP(AR96,risk_consequence[],2,FALSE))","v":""},null,{"$f":"IF(AT96=\"\",\"\",VLOOKUP(AT96,risk[],2,FALSE))","v":""},null,{"$f":"IF(AV96=\"\",\"\",VLOOKUP(AV96,rul_reset[],2,FALSE))","v":""},null,{"$f":"IF(AX96=\"\",\"\",VLOOKUP(AX96,use_default_rc[],2,FALSE))","v":""},null,{"$f":"IF(AZ96=\"\",\"\",VLOOKUP(AZ96,condition[],2,FALSE))","v":""},null,null,{"$f":"IF(BC96=\"\",\"\",VLOOKUP(BC96,Organisation[],2,FALSE))","v":""}]
["null",null,null,null,{"$f":"IF(D97=\"\",\"\",VLOOKUP(D97,Material[],2,FALSE))","v":""},null,{"$f":"IF(F97=\"\",\"\",VLOOKUP(F97,shape[],2,FALSE))","v":""},null,{"$f":"IF(H97=\"\",\"\",VLOOKUP(H97,make[],2,FALSE))","v":""},null,{"$f":"IF(J97=\"\",\"\",VLOOKUP(J97,mounting_type[],2,FALSE))","v":""},null,{"$f":"IF(L97=\"\",\"\",VLOOKUP(L97,attachment[],2,FALSE))","v":""},null,{"$f":"IF(N97=\"\",\"\",VLOOKUP(N97,purpose[],2,FALSE))","v":""},null,{"$f":"IF(P97=\"\",\"\",VLOOKUP(P97,coating[],2,FALSE))","v":""},null,{"$f":"IF(R97=\"\",\"\",VLOOKUP(R97,pole_in_use[],2,FALSE))","v":""},null,{"$f":"IF(T97=\"\",\"\",VLOOKUP(T97,pole_control[],2,FALSE))","v":""},null,{"$f":"IF(V97=\"\",\"\",VLOOKUP(V97,power_company[],2,FALSE))","v":""},null,null,null,{"$f":"IF(Z97=\"\",\"\",VLOOKUP(Z97,side[],2,FALSE))","v":""},null,null,null,{"$f":"IF(AD97=\"\",\"\",VLOOKUP(AD97,Install_reason[],2,FALSE))","v":""},null,{"$f":"IF(AF97=\"\",\"\",VLOOKUP(AF97,status[],2,FALSE))","v":""},null,null,{"$f":"IF(AI97=\"\",\"\",VLOOKUP(AI97,asset_owner[],2,FALSE))","v":""},null,null,null,null,{"$f":"IF(AN97=\"\",\"\",VLOOKUP(AN97,gps_method[],2,FALSE))","v":""},null,{"$f":"IF(AP97=\"\",\"\",VLOOKUP(AP97,risk_likelihood[],2,FALSE))","v":""},null,{"$f":"IF(AR97=\"\",\"\",VLOOKUP(AR97,risk_consequence[],2,FALSE))","v":""},null,{"$f":"IF(AT97=\"\",\"\",VLOOKUP(AT97,risk[],2,FALSE))","v":""},null,{"$f":"IF(AV97=\"\",\"\",VLOOKUP(AV97,rul_reset[],2,FALSE))","v":""},null,{"$f":"IF(AX97=\"\",\"\",VLOOKUP(AX97,use_default_rc[],2,FALSE))","v":""},null,{"$f":"IF(AZ97=\"\",\"\",VLOOKUP(AZ97,condition[],2,FALSE))","v":""},null,null,{"$f":"IF(BC97=\"\",\"\",VLOOKUP(BC97,Organisation[],2,FALSE))","v":""}]
["null",null,null,null,{"$f":"IF(D98=\"\",\"\",VLOOKUP(D98,Material[],2,FALSE))","v":""},null,{"$f":"IF(F98=\"\",\"\",VLOOKUP(F98,shape[],2,FALSE))","v":""},null,{"$f":"IF(H98=\"\",\"\",VLOOKUP(H98,make[],2,FALSE))","v":""},null,{"$f":"IF(J98=\"\",\"\",VLOOKUP(J98,mounting_type[],2,FALSE))","v":""},null,{"$f":"IF(L98=\"\",\"\",VLOOKUP(L98,attachment[],2,FALSE))","v":""},null,{"$f":"IF(N98=\"\",\"\",VLOOKUP(N98,purpose[],2,FALSE))","v":""},null,{"$f":"IF(P98=\"\",\"\",VLOOKUP(P98,coating[],2,FALSE))","v":""},null,{"$f":"IF(R98=\"\",\"\",VLOOKUP(R98,pole_in_use[],2,FALSE))","v":""},null,{"$f":"IF(T98=\"\",\"\",VLOOKUP(T98,pole_control[],2,FALSE))","v":""},null,{"$f":"IF(V98=\"\",\"\",VLOOKUP(V98,power_company[],2,FALSE))","v":""},null,null,null,{"$f":"IF(Z98=\"\",\"\",VLOOKUP(Z98,side[],2,FALSE))","v":""},null,null,null,{"$f":"IF(AD98=\"\",\"\",VLOOKUP(AD98,Install_reason[],2,FALSE))","v":""},null,{"$f":"IF(AF98=\"\",\"\",VLOOKUP(AF98,status[],2,FALSE))","v":""},null,null,{"$f":"IF(AI98=\"\",\"\",VLOOKUP(AI98,asset_owner[],2,FALSE))","v":""},null,null,null,null,{"$f":"IF(AN98=\"\",\"\",VLOOKUP(AN98,gps_method[],2,FALSE))","v":""},null,{"$f":"IF(AP98=\"\",\"\",VLOOKUP(AP98,risk_likelihood[],2,FALSE))","v":""},null,{"$f":"IF(AR98=\"\",\"\",VLOOKUP(AR98,risk_consequence[],2,FALSE))","v":""},null,{"$f":"IF(AT98=\"\",\"\",VLOOKUP(AT98,risk[],2,FALSE))","v":""},null,{"$f":"IF(AV98=\"\",\"\",VLOOKUP(AV98,rul_reset[],2,FALSE))","v":""},null,{"$f":"IF(AX98=\"\",\"\",VLOOKUP(AX98,use_default_rc[],2,FALSE))","v":""},null,{"$f":"IF(AZ98=\"\",\"\",VLOOKUP(AZ98,condition[],2,FALSE))","v":""},null,null,{"$f":"IF(BC98=\"\",\"\",VLOOKUP(BC98,Organisation[],2,FALSE))","v":""}]
["null",null,null,null,{"$f":"IF(D99=\"\",\"\",VLOOKUP(D99,Material[],2,FALSE))","v":""},null,{"$f":"IF(F99=\"\",\"\",VLOOKUP(F99,shape[],2,FALSE))","v":""},null,{"$f":"IF(H99=\"\",\"\",VLOOKUP(H99,make[],2,FALSE))","v":""},null,{"$f":"IF(J99=\"\",\"\",VLOOKUP(J99,mounting_type[],2,FALSE))","v":""},null,{"$f":"IF(L99=\"\",\"\",VLOOKUP(L99,attachment[],2,FALSE))","v":""},null,{"$f":"IF(N99=\"\",\"\",VLOOKUP(N99,purpose[],2,FALSE))","v":""},null,{"$f":"IF(P99=\"\",\"\",VLOOKUP(P99,coating[],2,FALSE))","v":""},null,{"$f":"IF(R99=\"\",\"\",VLOOKUP(R99,pole_in_use[],2,FALSE))","v":""},null,{"$f":"IF(T99=\"\",\"\",VLOOKUP(T99,pole_control[],2,FALSE))","v":""},null,{"$f":"IF(V99=\"\",\"\",VLOOKUP(V99,power_company[],2,FALSE))","v":""},null,null,null,{"$f":"IF(Z99=\"\",\"\",VLOOKUP(Z99,side[],2,FALSE))","v":""},null,null,null,{"$f":"IF(AD99=\"\",\"\",VLOOKUP(AD99,Install_reason[],2,FALSE))","v":""},null,{"$f":"IF(AF99=\"\",\"\",VLOOKUP(AF99,status[],2,FALSE))","v":""},null,null,{"$f":"IF(AI99=\"\",\"\",VLOOKUP(AI99,asset_owner[],2,FALSE))","v":""},null,null,null,null,{"$f":"IF(AN99=\"\",\"\",VLOOKUP(AN99,gps_method[],2,FALSE))","v":""},null,{"$f":"IF(AP99=\"\",\"\",VLOOKUP(AP99,risk_likelihood[],2,FALSE))","v":""},null,{"$f":"IF(AR99=\"\",\"\",VLOOKUP(AR99,risk_consequence[],2,FALSE))","v":""},null,{"$f":"IF(AT99=\"\",\"\",VLOOKUP(AT99,risk[],2,FALSE))","v":""},null,{"$f":"IF(AV99=\"\",\"\",VLOOKUP(AV99,rul_reset[],2,FALSE))","v":""},null,{"$f":"IF(AX99=\"\",\"\",VLOOKUP(AX99,use_default_rc[],2,FALSE))","v":""},null,{"$f":"IF(AZ99=\"\",\"\",VLOOKUP(AZ99,condition[],2,FALSE))","v":""},null,null,{"$f":"IF(BC99=\"\",\"\",VLOOKUP(BC99,Organisation[],2,FALSE))","v":""}]
["null",null,null,null,{"$f":"IF(D100=\"\",\"\",VLOOKUP(D100,Material[],2,FALSE))","v":""},null,{"$f":"IF(F100=\"\",\"\",VLOOKUP(F100,shape[],2,FALSE))","v":""},null,{"$f":"IF(H100=\"\",\"\",VLOOKUP(H100,make[],2,FALSE))","v":""},null,{"$f":"IF(J100=\"\",\"\",VLOOKUP(J100,mounting_type[],2,FALSE))","v":""},null,{"$f":"IF(L100=\"\",\"\",VLOOKUP(L100,attachment[],2,FALSE))","v":""},null,{"$f":"IF(N100=\"\",\"\",VLOOKUP(N100,purpose[],2,FALSE))","v":""},null,{"$f":"IF(P100=\"\",\"\",VLOOKUP(P100,coating[],2,FALSE))","v":""},null,{"$f":"IF(R100=\"\",\"\",VLOOKUP(R100,pole_in_use[],2,FALSE))","v":""},null,{"$f":"IF(T100=\"\",\"\",VLOOKUP(T100,pole_control[],2,FALSE))","v":""},null,{"$f":"IF(V100=\"\",\"\",VLOOKUP(V100,power_company[],2,FALSE))","v":""},null,null,null,{"$f":"IF(Z100=\"\",\"\",VLOOKUP(Z100,side[],2,FALSE))","v":""},null,null,null,{"$f":"IF(AD100=\"\",\"\",VLOOKUP(AD100,Install_reason[],2,FALSE))","v":""},null,{"$f":"IF(AF100=\"\",\"\",VLOOKUP(AF100,status[],2,FALSE))","v":""},null,null,{"$f":"IF(AI100=\"\",\"\",VLOOKUP(AI100,asset_owner[],2,FALSE))","v":""},null,null,null,null,{"$f":"IF(AN100=\"\",\"\",VLOOKUP(AN100,gps_method[],2,FALSE))","v":""},null,{"$f":"IF(AP100=\"\",\"\",VLOOKUP(AP100,risk_likelihood[],2,FALSE))","v":""},null,{"$f":"IF(AR100=\"\",\"\",VLOOKUP(AR100,risk_consequence[],2,FALSE))","v":""},null,{"$f":"IF(AT100=\"\",\"\",VLOOKUP(AT100,risk[],2,FALSE))","v":""},null,{"$f":"IF(AV100=\"\",\"\",VLOOKUP(AV100,rul_reset[],2,FALSE))","v":""},null,{"$f":"IF(AX100=\"\",\"\",VLOOKUP(AX100,use_default_rc[],2,FALSE))","v":""},null,{"$f":"IF(AZ100=\"\",\"\",VLOOKUP(AZ100,condition[],2,FALSE))","v":""},null,null,{"$f":"IF(BC100=\"\",\"\",VLOOKUP(BC100,Organisation[],2,FALSE))","v":""}]

{"sheet":"Lookups","index":1,"n_rows":151,"n_cols":65,"rows_kept":151,"cut":false,"hidden":false,"merged":[]}
["material.description","material.code",null,"shape.description","shape.code",null,"make.description","make.code",null,"mounting type.description","mounting type.code",null,"attachment.description","attachment.code",null,"purpose description","purpose code",null,"coating.description","coating.code",null,"pole_in_use.description","pole_in_use.code",null,"pole_control.description","pole_control.code",null,"power_company.description","power_company.code",null,"side.description","side.code",null,"Install reason.description","Install reason.code",null,"status.description","status.code",null,"asset owner.description","asset owner.code",null,"gps method.description","gps method.code",null,"condition.description","condition.code",null,"Organisation.description","Organisation.code",null,"risk_likelihood.description","risk_likelihood.code",null,"risk_consequence.description","risk_consequence.code",null,"risk.description","risk.code",null,"rul_reset.description","rul_reset.code",null,"use_default_rc.description","use_default_rc.code"]
["Alimiumn","AL",null,"Bollard","B",null,"Concrete Precast","CP",null,"ShearBase Adaptor","AP",null,"Banner Arm","BA",null,"Anchor pole","A",null,"Epoxy Paint System","EPOX",null,"Not in use","N",null,"Other","O",null,"Contact Energy","CE",null,"Centre","C",null,"Removed","99",null,"New","N",null,"Horizon","HZ",null,"Aerial photography","A",null,"Excellent","1",null,"3M","3M",null,"Rare","1",null,"Insignificant","1",null,"Very Low","1",null,"Not Reset","N",null,"Default","D"]
["Concrete","CON",null,"Circular","CIRC",null,"CSP Pacific","CSP",null,"Building","B",null,"Banner Arm (Double Bracket)","DBA",null,"Trolley/Tram Bus pole","B",null,"Galvanised & Epoxy","GALE",null,"Yes","Y",null,"Photocell","P",null,"Ecotricity","EC",null,"Left","L",null,"Accident Damage","AD",null,"Reconditioned","R",null,"Local Authority","LA",null,"Default","D",null,"Good","2",null,"Automobile Association","AA",null,"Unlikely","2",null,"Minor","2",null,"Low","2",null,"Reset to Zero","R",null,"User","U"]
["Fibreglass","FIBR",null,"Hexagonal","HEX",null,"Fergusson","F",null,"Bridge","BR",null,"Information Sign","IS",null,"Electrical distribution","E",null,"Galvanised","GALV",null,null,null,null,"Relay","R",null,"Electric Kiwi","EK",null,"Right","R",null,"Aged - bulb blown","AG",null,null,null,null,"NZTA","NZ",null,"GPS device","G",null,"Average","3",null,"Auckland Council","ACC",null,"Possible","3",null,"Moderate","3",null,"Medium","3"]
["High Steel (wind resistant)","HSTE",null,"I Beam","IB",null,"Fibreglass Company","FC",null,"Corbel","CO",null,"Lighting Harness and Banner Arm","LB",null,"Transformer","F",null,"None","NONE",null,null,null,null,"Timeswitch","T",null,"Electra","EL",null,null,null,null,"Block Change","BC",null,null,null,null,"Power Board","PB",null,"Click on Map","M",null,"Poor","4",null,"Alarm Centre Installation Ltd","ACI",null,"Likely","4",null,"Major","4",null,"High","4"]
["Not Applicable (no pole)","NA",null,"Lattice","LATT",null,"GRP","GRP",null,"Flange mounted","F",null,"Lighting Harness","LH",null,"Gantry","G",null,"Powder coated","PCOT",null,null,null,null,null,null,null,"EnergyOnline","EO",null,null,null,null,"Bulk Lamp Replacement","BL",null,null,null,null,"Telecom","TC",null,"Other","O",null,"Very poor","5",null,"Agfirst","AGF",null,"Almost Certain","5",null,"Extreme","5",null,"Extreme","5"]
["Spun Concrete","SPC",null,"No Pole","NONE",null,"High Mast Light Tower","HMLT",null,"Ground plant","G",null,"Multiple Attachments see pole notes","MA",null,"High Mast Light Tower","H",null,"Rhino Coating","RHI",null,null,null,null,null,null,null,"Flick","FL",null,null,null,null,"Corrosion","CO",null,null,null,null,"Vodafone","VO",null,"RAMM Generated","R",null,null,null,null,"Auckland Motorway Alliance","AMA",null,"Unknown","U",null,"Unknown","U",null,"Unknown","U"]
["Steel powder coated","ST",null,"Octagonal","OCT",null,"Humes Concrete","HUME",null,"No Pole","NO",null,"Name Blade","NB",null,"Belisha Beacon","I",null,"Tape & Paint","TP",null,null,null,null,null,null,null,"Genesis","GE",null,null,null,null,"Damaged","D",null,null,null,null,null,null,null,null,null,null,null,null,null,"Asset Management Engineers Ltd","AME"]
["Steel (Standard Steel)","STEE",null,"Octyle","OTY",null,"Kendelier Lighting","KEN",null,"Shear Base","S",null,"Other Attachment","O",null,"Lighting unit","L",null,null,null,null,null,null,null,null,null,null,"Just Energy","JE",null,null,null,null,"Deliberate damage","DM",null,null,null,null,null,null,null,null,null,null,null,null,null,"Asset Management Technicians Ltd","AMT"]
["Wood","WOOD",null,"Rectangular","RECT",null,"Not Applicable","NA",null,"Tunnel","T",null,"Road Sign","RS",null,"Montrose Box","M",null,null,null,null,null,null,null,null,null,null,"Mercury","ME",null,null,null,null,"Fault","F",null,null,null,null,null,null,null,null,null,null,null,null,null,"Armitage Systems","ARM"]
[null,null,null,"Square","SQUA",null,"No Pole","NONE",null,null,null,null,null,null,null,"No Pole","N",null,null,null,null,null,null,null,null,null,null,"Meridian","MR",null,null,null,null,"Lightning","LN",null,null,null,null,null,null,null,null,null,null,null,null,null,"Aspect Solutions Ltd","ASL"]
[null,null,null,"Triangular","TRI",null,"Oclyte","OC",null,null,null,null,null,null,null,"Pedestrian Light","P",null,null,null,null,null,null,null,null,null,null,"Nova","NO",null,null,null,null,"Minor safety project","MS",null,null,null,null,null,null,null,null,null,null,null,null,null,"Auckland System Management","ASM"]
[null,null,null,null,null,null,"Power New Zealand","PNZ",null,null,null,null,null,null,null,"Switch gear","S",null,null,null,null,null,null,null,null,null,null,"North Power","NP",null,null,null,null,"New Subdivision","NS",null,null,null,null,null,null,null,null,null,null,null,null,null,"Auckland Transport","AT2"]
[null,null,null,null,null,null,"Reticulation Pole","RET",null,null,null,null,null,null,null,"Telephone aerial","T",null,null,null,null,null,null,null,null,null,null,"PowerCo","PO",null,null,null,null,"Removed","RM",null,null,null,null,null,null,null,null,null,null,null,null,null,"Aspect Technology and Equipment Ltd","ATE"]
[null,null,null,null,null,null,"Spuncrete","SC",null,null,null,null,null,null,null,"Power pole O/H","W",null,null,null,null,null,null,null,null,null,null,"The Lines Company","TL",null,null,null,null,"Safety Issues","SF",null,null,null,null,null,null,null,null,null,null,null,null,null,"ARRB Transport Research Ltd","ATR"]
[null,null,null,null,null,null,"Steelgal","SG",null,null,null,null,null,null,null,"Traffic Signal","Z",null,null,null,null,null,null,null,null,null,null,"Top Energy","TO",null,null,null,null,"Upgrade","UG",null,null,null,null,null,null,null,null,null,null,null,null,null,"Auckland University","AUN"]
[null,null,null,null,null,null,"Spunlite","SL",null,null,null,null,null,null,null,null,null,null,null,null,null,null,null,null,null,null,null,"Trust Power","TP",null,null,null,null,"Vehicle Collision","VC",null,null,null,null,null,null,null,null,null,null,null,null,null,"Broadspectrum (NZ) Ltd","B(L"]
[null,null,null,null,null,null,"Simes Magaring","SM",null,null,null,null,null,null,null,null,null,null,null,null,null,null,null,null,null,null,null,"Unison","US",null,null,null,null,"Vandalised","VD",null,null,null,null,null,null,null,null,null,null,null,null,null,"Bri-Ken and Associates Ltd","BAA"]
[null,null,null,null,null,null,"Streetscape","STSC",null,null,null,null,null,null,null,null,null,null,null,null,null,null,null,null,null,null,null,"Vector","VE",null,null,null,null,null,null,null,null,null,null,null,null,null,null,null,null,null,null,null,"Bartley Consultants Ltd","BAR"]
[null,null,null,null,null,null,"Tauranga","TA",null,null,null,null,null,null,null,null,null,null,null,null,null,null,null,null,null,null,null,"Waipa Networks","WA",null,null,null,null,null,null,null,null,null,null,null,null,null,null,null,null,null,null,null,"Bloxam Burnett & Olliver Ltd","BB&"]
[null,null,null,null,null,null,"Unicast Concrete","UC",null,null,null,null,null,null,null,null,null,null,null,null,null,null,null,null,null,null,null,"WEL Networks","WE",null,null,null,null,null,null,null,null,null,null,null,null,null,null,null,null,null,null,null,"Beca Infrastructure","BCF"]
[null,null,null,null,null,null,"Vision Concepts","VC",null,null,null,null,null,null,null,null,null,null,null,null,null,null,null,null,null,null,null,null,null,null,null,null,null,null,null,null,null,null,null,null,null,null,null,null,null,null,null,null,"Buller District Council","BDC"]
[null,null,null,null,null,null,"Vic Pole","VICP",null,null,null,null,null,null,null,null,null,null,null,null,null,null,null,null,null,null,null,null,null,null,null,null,null,null,null,null,null,null,null,null,null,null,null,null,null,null,null,null,"Blacktop","BLA"]
[null,null,null,null,null,null,"Windsor Heritage","WH",null,null,null,null,null,null,null,null,null,null,null,null,null,null,null,null,null,null,null,null,null,null,null,null,null,null,null,null,null,null,null,null,null,null,null,null,null,null,null,null,"Beca Ltd.","BLT"]
[null,null,null,null,null,null,null,null,null,null,null,null,null,null,null,null,null,null,null,null,null,null,null,null,null,null,null,null,null,null,null,null,null,null,null,null,null,null,null,null,null,null,null,null,null,null,null,null,"Civil Assist Ltd","CAL"]
[null,null,null,null,null,null,null,null,null,null,null,null,null,null,null,null,null,null,null,null,null,null,null,null,null,null,null,null,null,null,null,null,null,null,null,null,null,null,null,null,null,null,null,null,null,null,null,null,"Christchurch City Council","CCC"]
[null,null,null,null,null,null,null,null,null,null,null,null,null,null,null,null,null,null,null,null,null,null,null,null,null,null,null,null,null,null,null,null,null,null,null,null,null,null,null,null,null,null,null,null,null,null,null,null,"City Care Ltd","CCL"]
[null,null,null,null,null,null,null,null,null,null,null,null,null,null,null,null,null,null,null,null,null,null,null,null,null,null,null,null,null,null,null,null,null,null,null,null,null,null,null,null,null,null,null,null,null,null,null,null,"Currie Electrical Ltd.","CEL"]
[null,null,null,null,null,null,null,null,null,null,null,null,null,null,null,null,null,null,null,null,null,null,null,null,null,null,null,null,null,null,null,null,null,null,null,null,null,null,null,null,null,null,null,null,null,null,null,null,"Company-X Ltd.","CL"]
[null,null,null,null,null,null,null,null,null,null,null,null,null,null,null,null,null,null,null,null,null,null,null,null,null,null,null,null,null,null,null,null,null,null,null,null,null,null,null,null,null,null,null,null,null,null,null,null,"Critchlow Limited","CL2"]
[null,null,null,null,null,null,null,null,null,null,null,null,null,null,null,null,null,null,null,null,null,null,null,null,null,null,null,null,null,null,null,null,null,null,null,null,null,null,null,null,null,null,null,null,null,null,null,null,"Coastline Markers Ltd","CML"]
[null,null,null,null,null,null,null,null,null,null,null,null,null,null,null,null,null,null,null,null,null,null,null,null,null,null,null,null,null,null,null,null,null,null,null,null,null,null,null,null,null,null,null,null,null,null,null,null,"CoreLogic NZ Ltd.","CNL"]
[null,null,null,null,null,null,null,null,null,null,null,null,null,null,null,null,null,null,null,null,null,null,null,null,null,null,null,null,null,null,null,null,null,null,null,null,null,null,null,null,null,null,null,null,null,null,null,null,"Central Otago District Council","COD"]
[null,null,null,null,null,null,null,null,null,null,null,null,null,null,null,null,null,null,null,null,null,null,null,null,null,null,null,null,null,null,null,null,null,null,null,null,null,null,null,null,null,null,null,null,null,null,null,null,"Other Contractor","CON"]
[null,null,null,null,null,null,null,null,null,null,null,null,null,null,null,null,null,null,null,null,null,null,null,null,null,null,null,null,null,null,null,null,null,null,null,null,null,null,null,null,null,null,null,null,null,null,null,null,"CSL Traffic","CSL"]
[null,null,null,null,null,null,null,null,null,null,null,null,null,null,null,null,null,null,null,null,null,null,null,null,null,null,null,null,null,null,null,null,null,null,null,null,null,null,null,null,null,null,null,null,null,null,null,null,"Connell Wagner Ltd","CWL"]
[null,null,null,null,null,null,null,null,null,null,null,null,null,null,null,null,null,null,null,null,null,null,null,null,null,null,null,null,null,null,null,null,null,null,null,null,null,null,null,null,null,null,null,null,null,null,null,null,"Dunedin City Council","DCC"]
[null,null,null,null,null,null,null,null,null,null,null,null,null,null,null,null,null,null,null,null,null,null,null,null,null,null,null,null,null,null,null,null,null,null,null,null,null,null,null,null,null,null,null,null,null,null,null,null,"D & L Crowe Ltd","DLC"]
[null,null,null,null,null,null,null,null,null,null,null,null,null,null,null,null,null,null,null,null,null,null,null,null,null,null,null,null,null,null,null,null,null,null,null,null,null,null,null,null,null,null,null,null,null,null,null,null,"Spiire NZ Ltd","DWK"]
[null,null,null,null,null,null,null,null,null,null,null,null,null,null,null,null,null,null,null,null,null,null,null,null,null,null,null,null,null,null,null,null,null,null,null,null,null,null,null,null,null,null,null,null,null,null,null,null,"Excell Corporation","ECL"]
[null,null,null,null,null,null,null,null,null,null,null,null,null,null,null,null,null,null,null,null,null,null,null,null,null,null,null,null,null,null,null,null,null,null,null,null,null,null,null,null,null,null,null,null,null,null,null,null,"Ferguson Ind","FGI"]
[null,null,null,null,null,null,null,null,null,null,null,null,null,null,null,null,null,null,null,null,null,null,null,null,null,null,null,null,null,null,null,null,null,null,null,null,null,null,null,null,null,null,null,null,null,null,null,null,"Fulton Hogan (NZ) Ltd.","FUL"]
[null,null,null,null,null,null,null,null,null,null,null,null,null,null,null,null,null,null,null,null,null,null,null,null,null,null,null,null,null,null,null,null,null,null,null,null,null,null,null,null,null,null,null,null,null,null,null,null,"Gisborne District Council","GDC"]
[null,null,null,null,null,null,null,null,null,null,null,null,null,null,null,null,null,null,null,null,null,null,null,null,null,null,null,null,null,null,null,null,null,null,null,null,null,null,null,null,null,null,null,null,null,null,null,null,"Geosolve Ltd","GEO"]
[null,null,null,null,null,null,null,null,null,null,null,null,null,null,null,null,null,null,null,null,null,null,null,null,null,null,null,null,null,null,null,null,null,null,null,null,null,null,null,null,null,null,null,null,null,null,null,null,"GHD Ltd.","GHD"]
[null,null,null,null,null,null,null,null,null,null,null,null,null,null,null,null,null,null,null,null,null,null,null,null,null,null,null,null,null,null,null,null,null,null,null,null,null,null,null,null,null,null,null,null,null,null,null,null,"HEB Construction Ltd","HEB"]
[null,null,null,null,null,null,null,null,null,null,null,null,null,null,null,null,null,null,null,null,null,null,null,null,null,null,null,null,null,null,null,null,null,null,null,null,null,null,null,null,null,null,null,null,null,null,null,null,"Higgins Contractors Ltd.","HIG"]
[null,null,null,null,null,null,null,null,null,null,null,null,null,null,null,null,null,null,null,null,null,null,null,null,null,null,null,null,null,null,null,null,null,null,null,null,null,null,null,null,null,null,null,null,null,null,null,null,"HMI Technologies","HMI"]
[null,null,null,null,null,null,null,null,null,null,null,null,null,null,null,null,null,null,null,null,null,null,null,null,null,null,null,null,null,null,null,null,null,null,null,null,null,null,null,null,null,null,null,null,null,null,null,null,"HERE New Zealand Ltd","HNZ"]
[null,null,null,null,null,null,null,null,null,null,null,null,null,null,null,null,null,null,null,null,null,null,null,null,null,null,null,null,null,null,null,null,null,null,null,null,null,null,null,null,null,null,null,null,null,null,null,null,"HTS Group","HTS"]
[null,null,null,null,null,null,null,null,null,null,null,null,null,null,null,null,null,null,null,null,null,null,null,null,null,null,null,null,null,null,null,null,null,null,null,null,null,null,null,null,null,null,null,null,null,null,null,null,"Inframix Construction Ltd","IMX"]
[null,null,null,null,null,null,null,null,null,null,null,null,null,null,null,null,null,null,null,null,null,null,null,null,null,null,null,null,null,null,null,null,null,null,null,null,null,null,null,null,null,null,null,null,null,null,null,null,"Inzone","INZ"]
[null,null,null,null,null,null,null,null,null,null,null,null,null,null,null,null,null,null,null,null,null,null,null,null,null,null,null,null,null,null,null,null,null,null,null,null,null,null,null,null,null,null,null,null,null,null,null,null,"Isaac Construction","ISC"]
[null,null,null,null,null,null,null,null,null,null,null,null,null,null,null,null,null,null,null,null,null,null,null,null,null,null,null,null,null,null,null,null,null,null,null,null,null,null,null,null,null,null,null,null,null,null,null,null,"Island Asphalts","ISL"]
[null,null,null,null,null,null,null,null,null,null,null,null,null,null,null,null,null,null,null,null,null,null,null,null,null,null,null,null,null,null,null,null,null,null,null,null,null,null,null,null,null,null,null,null,null,null,null,null,"ITS","ITS"]
[null,null,null,null,null,null,null,null,null,null,null,null,null,null,null,null,null,null,null,null,null,null,null,null,null,null,null,null,null,null,null,null,null,null,null,null,null,null,null,null,null,null,null,null,null,null,null,null,"Jacobs New Zealand Ltd","JAC"]
[null,null,null,null,null,null,null,null,null,null,null,null,null,null,null,null,null,null,null,null,null,null,null,null,null,null,null,null,null,null,null,null,null,null,null,null,null,null,null,null,null,null,null,null,null,null,null,null,"JCW Consultant","JC"]
[null,null,null,null,null,null,null,null,null,null,null,null,null,null,null,null,null,null,null,null,null,null,null,null,null,null,null,null,null,null,null,null,null,null,null,null,null,null,null,null,null,null,null,null,null,null,null,null,"JCL Asphalt subcontractor","JCL"]
[null,null,null,null,null,null,null,null,null,null,null,null,null,null,null,null,null,null,null,null,null,null,null,null,null,null,null,null,null,null,null,null,null,null,null,null,null,null,null,null,null,null,null,null,null,null,null,null,"JJ Walters","JJW"]
[null,null,null,null,null,null,null,null,null,null,null,null,null,null,null,null,null,null,null,null,null,null,null,null,null,null,null,null,null,null,null,null,null,null,null,null,null,null,null,null,null,null,null,null,null,null,null,null,"Johnstone & Masters Ltd","JM"]
[null,null,null,null,null,null,null,null,null,null,null,null,null,null,null,null,null,null,null,null,null,null,null,null,null,null,null,null,null,null,null,null,null,null,null,null,null,null,null,null,null,null,null,null,null,null,null,null,"NZTA (JTOC)","JTO"]
[null,null,null,null,null,null,null,null,null,null,null,null,null,null,null,null,null,null,null,null,null,null,null,null,null,null,null,null,null,null,null,null,null,null,null,null,null,null,null,null,null,null,null,null,null,null,null,null,"Juno Services Ltd","JUN"]
[null,null,null,null,null,null,null,null,null,null,null,null,null,null,null,null,null,null,null,null,null,null,null,null,null,null,null,null,null,null,null,null,null,null,null,null,null,null,null,null,null,null,null,null,null,null,null,null,"Kapiti Coast District Council","KCD"]
[null,null,null,null,null,null,null,null,null,null,null,null,null,null,null,null,null,null,null,null,null,null,null,null,null,null,null,null,null,null,null,null,null,null,null,null,null,null,null,null,null,null,null,null,null,null,null,null,"Kampung Consulting Ltd.","KCL"]
[null,null,null,null,null,null,null,null,null,null,null,null,null,null,null,null,null,null,null,null,null,null,null,null,null,null,null,null,null,null,null,null,null,null,null,null,null,null,null,null,null,null,null,null,null,null,null,null,"Kelcroft Engineering","KEL"]
[null,null,null,null,null,null,null,null,null,null,null,null,null,null,null,null,null,null,null,null,null,null,null,null,null,null,null,null,null,null,null,null,null,null,null,null,null,null,null,null,null,null,null,null,null,null,null,null,"Local Authority","LA"]
[null,null,null,null,null,null,null,null,null,null,null,null,null,null,null,null,null,null,null,null,null,null,null,null,null,null,null,null,null,null,null,null,null,null,null,null,null,null,null,null,null,null,null,null,null,null,null,null,"Lonrix Ltd","LL"]
[null,null,null,null,null,null,null,null,null,null,null,null,null,null,null,null,null,null,null,null,null,null,null,null,null,null,null,null,null,null,null,null,null,null,null,null,null,null,null,null,null,null,null,null,null,null,null,null,"McKays Consultants","MCC"]
[null,null,null,null,null,null,null,null,null,null,null,null,null,null,null,null,null,null,null,null,null,null,null,null,null,null,null,null,null,null,null,null,null,null,null,null,null,null,null,null,null,null,null,null,null,null,null,null,"Matamata-Piako District Council","MD2"]
[null,null,null,null,null,null,null,null,null,null,null,null,null,null,null,null,null,null,null,null,null,null,null,null,null,null,null,null,null,null,null,null,null,null,null,null,null,null,null,null,null,null,null,null,null,null,null,null,"Manawatu District Council","MDC"]
[null,null,null,null,null,null,null,null,null,null,null,null,null,null,null,null,null,null,null,null,null,null,null,null,null,null,null,null,null,null,null,null,null,null,null,null,null,null,null,null,null,null,null,null,null,null,null,null,"McKay Electrical Ltd","MEL"]
[null,null,null,null,null,null,null,null,null,null,null,null,null,null,null,null,null,null,null,null,null,null,null,null,null,null,null,null,null,null,null,null,null,null,null,null,null,null,null,null,null,null,null,null,null,null,null,null,"Aecom NZ Ltd","MER"]
[null,null,null,null,null,null,null,null,null,null,null,null,null,null,null,null,null,null,null,null,null,null,null,null,null,null,null,null,null,null,null,null,null,null,null,null,null,null,null,null,null,null,null,null,null,null,null,null,"MetService","MET"]
[null,null,null,null,null,null,null,null,null,null,null,null,null,null,null,null,null,null,null,null,null,null,null,null,null,null,null,null,null,null,null,null,null,null,null,null,null,null,null,null,null,null,null,null,null,null,null,null,"Marlborough NOC JV","MJV"]
[null,null,null,null,null,null,null,null,null,null,null,null,null,null,null,null,null,null,null,null,null,null,null,null,null,null,null,null,null,null,null,null,null,null,null,null,null,null,null,null,null,null,null,null,null,null,null,null,"McKay Ltd.","ML"]
[null,null,null,null,null,null,null,null,null,null,null,null,null,null,null,null,null,null,null,null,null,null,null,null,null,null,null,null,null,null,null,null,null,null,null,null,null,null,null,null,null,null,null,null,null,null,null,null,"Marlborough Roads","MR"]
[null,null,null,null,null,null,null,null,null,null,null,null,null,null,null,null,null,null,null,null,null,null,null,null,null,null,null,null,null,null,null,null,null,null,null,null,null,null,null,null,null,null,null,null,null,null,null,null,"MWH NZ Ltd.","MWH"]
[null,null,null,null,null,null,null,null,null,null,null,null,null,null,null,null,null,null,null,null,null,null,null,null,null,null,null,null,null,null,null,null,null,null,null,null,null,null,null,null,null,null,null,null,null,null,null,null,"Napier City Council","NCC"]
[null,null,null,null,null,null,null,null,null,null,null,null,null,null,null,null,null,null,null,null,null,null,null,null,null,null,null,null,null,null,null,null,null,null,null,null,null,null,null,null,null,null,null,null,null,null,null,null,"NZ Transport Agency - Highway Programme","NTA"]
[null,null,null,null,null,null,null,null,null,null,null,null,null,null,null,null,null,null,null,null,null,null,null,null,null,null,null,null,null,null,null,null,null,null,null,null,null,null,null,null,null,null,null,null,null,null,null,null,"NZ Transport Agency - Funding","NTF"]
[null,null,null,null,null,null,null,null,null,null,null,null,null,null,null,null,null,null,null,null,null,null,null,null,null,null,null,null,null,null,null,null,null,null,null,null,null,null,null,null,null,null,null,null,null,null,null,null,"North Power","NTH"]
[null,null,null,null,null,null,null,null,null,null,null,null,null,null,null,null,null,null,null,null,null,null,null,null,null,null,null,null,null,null,null,null,null,null,null,null,null,null,null,null,null,null,null,null,null,null,null,null,"Nutech Security","NUT"]
[null,null,null,null,null,null,null,null,null,null,null,null,null,null,null,null,null,null,null,null,null,null,null,null,null,null,null,null,null,null,null,null,null,null,null,null,null,null,null,null,null,null,null,null,null,null,null,null,"Odyssey Energy (2009) Ltd.","OE("]
[null,null,null,null,null,null,null,null,null,null,null,null,null,null,null,null,null,null,null,null,null,null,null,null,null,null,null,null,null,null,null,null,null,null,null,null,null,null,null,null,null,null,null,null,null,null,null,null,"Opus International Consultants Ltd (NZ)","OI2"]
[null,null,null,null,null,null,null,null,null,null,null,null,null,null,null,null,null,null,null,null,null,null,null,null,null,null,null,null,null,null,null,null,null,null,null,null,null,null,null,null,null,null,null,null,null,null,null,null,"Opus International Consultants Ltd.","OIC"]
[null,null,null,null,null,null,null,null,null,null,null,null,null,null,null,null,null,null,null,null,null,null,null,null,null,null,null,null,null,null,null,null,null,null,null,null,null,null,null,null,null,null,null,null,null,null,null,null,"Oldfields","OLD"]
[null,null,null,null,null,null,null,null,null,null,null,null,null,null,null,null,null,null,null,null,null,null,null,null,null,null,null,null,null,null,null,null,null,null,null,null,null,null,null,null,null,null,null,null,null,null,null,null,"Porirua City Council","PCC"]
[null,null,null,null,null,null,null,null,null,null,null,null,null,null,null,null,null,null,null,null,null,null,null,null,null,null,null,null,null,null,null,null,null,null,null,null,null,null,null,null,null,null,null,null,null,null,null,null,"Pinnacles Civil Group Ltd.","PCG"]
[null,null,null,null,null,null,null,null,null,null,null,null,null,null,null,null,null,null,null,null,null,null,null,null,null,null,null,null,null,null,null,null,null,null,null,null,null,null,null,null,null,null,null,null,null,null,null,null,"Pope Electrical Ltd","PE2"]
[null,null,null,null,null,null,null,null,null,null,null,null,null,null,null,null,null,null,null,null,null,null,null,null,null,null,null,null,null,null,null,null,null,null,null,null,null,null,null,null,null,null,null,null,null,null,null,null,"Pope Electrical Limited","PEL"]
[null,null,null,null,null,null,null,null,null,null,null,null,null,null,null,null,null,null,null,null,null,null,null,null,null,null,null,null,null,null,null,null,null,null,null,null,null,null,null,null,null,null,null,null,null,null,null,null,"Pavement Management Services","PMS"]
[null,null,null,null,null,null,null,null,null,null,null,null,null,null,null,null,null,null,null,null,null,null,null,null,null,null,null,null,null,null,null,null,null,null,null,null,null,null,null,null,null,null,null,null,null,null,null,null,"Power Solutions Ltd","PSL"]
[null,null,null,null,null,null,null,null,null,null,null,null,null,null,null,null,null,null,null,null,null,null,null,null,null,null,null,null,null,null,null,null,null,null,null,null,null,null,null,null,null,null,null,null,null,null,null,null,"Queenstown-Lakes District Council","QDC"]
[null,null,null,null,null,null,null,null,null,null,null,null,null,null,null,null,null,null,null,null,null,null,null,null,null,null,null,null,null,null,null,null,null,null,null,null,null,null,null,null,null,null,null,null,null,null,null,null,"Quality Roading and Services","QRS"]
[null,null,null,null,null,null,null,null,null,null,null,null,null,null,null,null,null,null,null,null,null,null,null,null,null,null,null,null,null,null,null,null,null,null,null,null,null,null,null,null,null,null,null,null,null,null,null,null,"Read-only access for Tenderers","RAF"]
[null,null,null,null,null,null,null,null,null,null,null,null,null,null,null,null,null,null,null,null,null,null,null,null,null,null,null,null,null,null,null,null,null,null,null,null,null,null,null,null,null,null,null,null,null,null,null,null,"Rangitikei District Council","RDC"]
[null,null,null,null,null,null,null,null,null,null,null,null,null,null,null,null,null,null,null,null,null,null,null,null,null,null,null,null,null,null,null,null,null,null,null,null,null,null,null,null,null,null,null,null,null,null,null,null,"Roadex","RDX"]
[null,null,null,null,null,null,null,null,null,null,null,null,null,null,null,null,null,null,null,null,null,null,null,null,null,null,null,null,null,null,null,null,null,null,null,null,null,null,null,null,null,null,null,null,null,null,null,null,"Roading Logistics Ltd","RLL"]
[null,null,null,null,null,null,null,null,null,null,null,null,null,null,null,null,null,null,null,null,null,null,null,null,null,null,null,null,null,null,null,null,null,null,null,null,null,null,null,null,null,null,null,null,null,null,null,null,"Rationale Ltd","RLT"]
[null,null,null,null,null,null,null,null,null,null,null,null,null,null,null,null,null,null,null,null,null,null,null,null,null,null,null,null,null,null,null,null,null,null,null,null,null,null,null,null,null,null,null,null,null,null,null,null,"Rotorua District Council","ROT"]
[null,null,null,null,null,null,null,null,null,null,null,null,null,null,null,null,null,null,null,null,null,null,null,null,null,null,null,null,null,null,null,null,null,null,null,null,null,null,null,null,null,null,null,null,null,null,null,null,"RAMM Software Limited","RSL"]
[null,null,null,null,null,null,null,null,null,null,null,null,null,null,null,null,null,null,null,null,null,null,null,null,null,null,null,null,null,null,null,null,null,null,null,null,null,null,null,null,null,null,null,null,null,null,null,null,"Road Signs & Traffic Control Equipment Limited","RTL"]
[null,null,null,null,null,null,null,null,null,null,null,null,null,null,null,null,null,null,null,null,null,null,null,null,null,null,null,null,null,null,null,null,null,null,null,null,null,null,null,null,null,null,null,null,null,null,null,null,"Russell Roads","RUS"]
[null,null,null,null,null,null,null,null,null,null,null,null,null,null,null,null,null,null,null,null,null,null,null,null,null,null,null,null,null,null,null,null,null,null,null,null,null,null,null,null,null,null,null,null,null,null,null,null,"Salient Consultants","SAL"]
[null,null,null,null,null,null,null,null,null,null,null,null,null,null,null,null,null,null,null,null,null,null,null,null,null,null,null,null,null,null,null,null,null,null,null,null,null,null,null,null,null,null,null,null,null,null,null,null,"Sealcoat Central Ltd.","SCL"]
[null,null,null,null,null,null,null,null,null,null,null,null,null,null,null,null,null,null,null,null,null,null,null,null,null,null,null,null,null,null,null,null,null,null,null,null,null,null,null,null,null,null,null,null,null,null,null,null,"Shaw's Consulting Services Ltd","SCS"]
[null,null,null,null,null,null,null,null,null,null,null,null,null,null,null,null,null,null,null,null,null,null,null,null,null,null,null,null,null,null,null,null,null,null,null,null,null,null,null,null,null,null,null,null,null,null,null,null,"Southland District Council","SDC"]
[null,null,null,null,null,null,null,null,null,null,null,null,null,null,null,null,null,null,null,null,null,null,null,null,null,null,null,null,null,null,null,null,null,null,null,null,null,null,null,null,null,null,null,null,null,null,null,null,"Signopsys Electronic Signs","SES"]
[null,null,null,null,null,null,null,null,null,null,null,null,null,null,null,null,null,null,null,null,null,null,null,null,null,null,null,null,null,null,null,null,null,null,null,null,null,null,null,null,null,null,null,null,null,null,null,null,"Sicon Ltd.","SL2"]
[null,null,null,null,null,null,null,null,null,null,null,null,null,null,null,null,null,null,null,null,null,null,null,null,null,null,null,null,null,null,null,null,null,null,null,null,null,null,null,null,null,null,null,null,null,null,null,null,"Stantec New Zealand","SN2"]
[null,null,null,null,null,null,null,null,null,null,null,null,null,null,null,null,null,null,null,null,null,null,null,null,null,null,null,null,null,null,null,null,null,null,null,null,null,null,null,null,null,null,null,null,null,null,null,null,"Stantec New Zealand Ltd","SNZ"]
[null,null,null,null,null,null,null,null,null,null,null,null,null,null,null,null,null,null,null,null,null,null,null,null,null,null,null,null,null,null,null,null,null,null,null,null,null,null,null,null,null,null,null,null,null,null,null,null,"SouthRoads Ltd.","SOU"]
[null,null,null,null,null,null,null,null,null,null,null,null,null,null,null,null,null,null,null,null,null,null,null,null,null,null,null,null,null,null,null,null,null,null,null,null,null,null,null,null,null,null,null,null,null,null,null,null,"Safe Roads Alliance","SRA"]
[null,null,null,null,null,null,null,null,null,null,null,null,null,null,null,null,null,null,null,null,null,null,null,null,null,null,null,null,null,null,null,null,null,null,null,null,null,null,null,null,null,null,null,null,null,null,null,null,"Services South East (NZ) Ltd.","SS2"]
[null,null,null,null,null,null,null,null,null,null,null,null,null,null,null,null,null,null,null,null,null,null,null,null,null,null,null,null,null,null,null,null,null,null,null,null,null,null,null,null,null,null,null,null,null,null,null,null,"Services South East Pty Ltd","SSE"]
[null,null,null,null,null,null,null,null,null,null,null,null,null,null,null,null,null,null,null,null,null,null,null,null,null,null,null,null,null,null,null,null,null,null,null,null,null,null,null,null,null,null,null,null,null,null,null,null,"Tonkin & Taylor Ltd","T&T"]
[null,null,null,null,null,null,null,null,null,null,null,null,null,null,null,null,null,null,null,null,null,null,null,null,null,null,null,null,null,null,null,null,null,null,null,null,null,null,null,null,null,null,null,null,null,null,null,null,"Tasman Howey","TAS"]
[null,null,null,null,null,null,null,null,null,null,null,null,null,null,null,null,null,null,null,null,null,null,null,null,null,null,null,null,null,null,null,null,null,null,null,null,null,null,null,null,null,null,null,null,null,null,null,null,"NZTA and WDM","TAW"]
[null,null,null,null,null,null,null,null,null,null,null,null,null,null,null,null,null,null,null,null,null,null,null,null,null,null,null,null,null,null,null,null,null,null,null,null,null,null,null,null,null,null,null,null,null,null,null,null,"Tauranga City Council","TC2"]
[null,null,null,null,null,null,null,null,null,null,null,null,null,null,null,null,null,null,null,null,null,null,null,null,null,null,null,null,null,null,null,null,null,null,null,null,null,null,null,null,null,null,null,null,null,null,null,null,"Taranaki Civil Construction","TCC"]
[null,null,null,null,null,null,null,null,null,null,null,null,null,null,null,null,null,null,null,null,null,null,null,null,null,null,null,null,null,null,null,null,null,null,null,null,null,null,null,null,null,null,null,null,null,null,null,null,"TC Nicholls","TCN"]
[null,null,null,null,null,null,null,null,null,null,null,null,null,null,null,null,null,null,null,null,null,null,null,null,null,null,null,null,null,null,null,null,null,null,null,null,null,null,null,null,null,null,null,null,null,null,null,null,"Traffic Control Systems","TCS"]
[null,null,null,null,null,null,null,null,null,null,null,null,null,null,null,null,null,null,null,null,null,null,null,null,null,null,null,null,null,null,null,null,null,null,null,null,null,null,null,null,null,null,null,null,null,null,null,null,"Taupo District Council","TD2"]
[null,null,null,null,null,null,null,null,null,null,null,null,null,null,null,null,null,null,null,null,null,null,null,null,null,null,null,null,null,null,null,null,null,null,null,null,null,null,null,null,null,null,null,null,null,null,null,null,"Tasman District Council","TDC"]
[null,null,null,null,null,null,null,null,null,null,null,null,null,null,null,null,null,null,null,null,null,null,null,null,null,null,null,null,null,null,null,null,null,null,null,null,null,null,null,null,null,null,null,null,null,null,null,null,"The Datastack Ltd","TDL"]
[null,null,null,null,null,null,null,null,null,null,null,null,null,null,null,null,null,null,null,null,null,null,null,null,null,null,null,null,null,null,null,null,null,null,null,null,null,null,null,null,null,null,null,null,null,null,null,null,"Taupo East Traffic Services Contractor","TET"]
[null,null,null,null,null,null,null,null,null,null,null,null,null,null,null,null,null,null,null,null,null,null,null,null,null,null,null,null,null,null,null,null,null,null,null,null,null,null,null,null,null,null,null,null,null,null,null,null,"Broadspectrum (NZ) Ltd","TFD"]
[null,null,null,null,null,null,null,null,null,null,null,null,null,null,null,null,null,null,null,null,null,null,null,null,null,null,null,null,null,null,null,null,null,null,null,null,null,null,null,null,null,null,null,null,null,null,null,null,"Waka Kotahi NZ Transport Agency","TNZ"]
[null,null,null,null,null,null,null,null,null,null,null,null,null,null,null,null,null,null,null,null,null,null,null,null,null,null,null,null,null,null,null,null,null,null,null,null,null,null,null,null,null,null,null,null,null,null,null,null,"Top Energy","TOP"]
[null,null,null,null,null,null,null,null,null,null,null,null,null,null,null,null,null,null,null,null,null,null,null,null,null,null,null,null,null,null,null,null,null,null,null,null,null,null,null,null,null,null,null,null,null,null,null,null,"The Roading Company","TRC"]
[null,null,null,null,null,null,null,null,null,null,null,null,null,null,null,null,null,null,null,null,null,null,null,null,null,null,null,null,null,null,null,null,null,null,null,null,null,null,null,null,null,null,null,null,null,null,null,null,"Transfield Services (NZ) Ltd","TS("]
[null,null,null,null,null,null,null,null,null,null,null,null,null,null,null,null,null,null,null,null,null,null,null,null,null,null,null,null,null,null,null,null,null,null,null,null,null,null,null,null,null,null,null,null,null,null,null,null,"Tonkin and Taylor Ltd","TT"]
[null,null,null,null,null,null,null,null,null,null,null,null,null,null,null,null,null,null,null,null,null,null,null,null,null,null,null,null,null,null,null,null,null,null,null,null,null,null,null,null,null,null,null,null,null,null,null,null,"Tyco Traffic and Transportation","TYC"]
[null,null,null,null,null,null,null,null,null,null,null,null,null,null,null,null,null,null,null,null,null,null,null,null,null,null,null,null,null,null,null,null,null,null,null,null,null,null,null,null,null,null,null,null,null,null,null,null,"Urban Connection Ltd","UCL"]
[null,null,null,null,null,null,null,null,null,null,null,null,null,null,null,null,null,null,null,null,null,null,null,null,null,null,null,null,null,null,null,null,null,null,null,null,null,null,null,null,null,null,null,null,null,null,null,null,"University of Canterbury","UOC"]
[null,null,null,null,null,null,null,null,null,null,null,null,null,null,null,null,null,null,null,null,null,null,null,null,null,null,null,null,null,null,null,null,null,null,null,null,null,null,null,null,null,null,null,null,null,null,null,null,"Ventia Pty Ltd","VPL"]
[null,null,null,null,null,null,null,null,null,null,null,null,null,null,null,null,null,null,null,null,null,null,null,null,null,null,null,null,null,null,null,null,null,null,null,null,null,null,null,null,null,null,null,null,null,null,null,null,"Western Bay of Plenty District Council","WBO"]
[null,null,null,null,null,null,null,null,null,null,null,null,null,null,null,null,null,null,null,null,null,null,null,null,null,null,null,null,null,null,null,null,null,null,null,null,null,null,null,null,null,null,null,null,null,null,null,null,"Wellington City Council","WCC"]
[null,null,null,null,null,null,null,null,null,null,null,null,null,null,null,null,null,null,null,null,null,null,null,null,null,null,null,null,null,null,null,null,null,null,null,null,null,null,null,null,null,null,null,null,null,null,null,null,"Waimakariri District Council","WD2"]
[null,null,null,null,null,null,null,null,null,null,null,null,null,null,null,null,null,null,null,null,null,null,null,null,null,null,null,null,null,null,null,null,null,null,null,null,null,null,null,null,null,null,null,null,null,null,null,null,"Whakatane District Council","WD3"]
[null,null,null,null,null,null,null,null,null,null,null,null,null,null,null,null,null,null,null,null,null,null,null,null,null,null,null,null,null,null,null,null,null,null,null,null,null,null,null,null,null,null,null,null,null,null,null,null,"Wairoa District Council","WD4"]
[null,null,null,null,null,null,null,null,null,null,null,null,null,null,null,null,null,null,null,null,null,null,null,null,null,null,null,null,null,null,null,null,null,null,null,null,null,null,null,null,null,null,null,null,null,null,null,null,"Waipa District Council","WD5"]
[null,null,null,null,null,null,null,null,null,null,null,null,null,null,null,null,null,null,null,null,null,null,null,null,null,null,null,null,null,null,null,null,null,null,null,null,null,null,null,null,null,null,null,null,null,null,null,null,"Waikato District Council","WD6"]
[null,null,null,null,null,null,null,null,null,null,null,null,null,null,null,null,null,null,null,null,null,null,null,null,null,null,null,null,null,null,null,null,null,null,null,null,null,null,null,null,null,null,null,null,null,null,null,null,"Whangarei District Council","WDC"]
[null,null,null,null,null,null,null,null,null,null,null,null,null,null,null,null,null,null,null,null,null,null,null,null,null,null,null,null,null,null,null,null,null,null,null,null,null,null,null,null,null,null,null,null,null,null,null,null,"WDM","WDM"]
[null,null,null,null,null,null,null,null,null,null,null,null,null,null,null,null,null,null,null,null,null,null,null,null,null,null,null,null,null,null,null,null,null,null,null,null,null,null,null,null,null,null,null,null,null,null,null,null,"WSP-Opus International Consultants Ltd","WIC"]
[null,null,null,null,null,null,null,null,null,null,null,null,null,null,null,null,null,null,null,null,null,null,null,null,null,null,null,null,null,null,null,null,null,null,null,null,null,null,null,null,null,null,null,null,null,null,null,null,"Downer New Zealand Limited","WIL"]
[null,null,null,null,null,null,null,null,null,null,null,null,null,null,null,null,null,null,null,null,null,null,null,null,null,null,null,null,null,null,null,null,null,null,null,null,null,null,null,null,null,null,null,null,null,null,null,null,"W J Ashton Service Ltd","WJA"]
[null,null,null,null,null,null,null,null,null,null,null,null,null,null,null,null,null,null,null,null,null,null,null,null,null,null,null,null,null,null,null,null,null,null,null,null,null,null,null,null,null,null,null,null,null,null,null,null,"Waka Kotahi NZ Transport Agency - Highways","WK2"]
[null,null,null,null,null,null,null,null,null,null,null,null,null,null,null,null,null,null,null,null,null,null,null,null,null,null,null,null,null,null,null,null,null,null,null,null,null,null,null,null,null,null,null,null,null,null,null,null,"Waka Kotahi NZ Transport Agency","WKN"]
[null,null,null,null,null,null,null,null,null,null,null,null,null,null,null,null,null,null,null,null,null,null,null,null,null,null,null,null,null,null,null,null,null,null,null,null,null,null,null,null,null,null,null,null,null,null,null,null,"WSP New Zealand Ltd","WNZ"]